{"text_format":"1","workbook":"xlsx","n_sheets":2,"sheets":["Bestandaufnahme","Verzeichnisse"],"not_rendered":{"charts":0,"images":0,"macros":1,"external_links":1,"defined_names":49,"comments":0,"pivot_tables":0},"unopened":[],"bounds":{"document_bytes":16777216,"sheet_cells":100000,"rows_first":2000,"rows_last":500,"rows_between":2000,"halvings":0,"cell_chars":16384,"cell_head_chars":4096},"cells_cut":0,"cells_raw":0,"read":"whole","date_system":"1900"}

{"sheet":"Bestandaufnahme","index":0,"n_rows":87,"n_cols":43,"rows_kept":87,"cut":false,"hidden":false,"merged":[[2,36,2,39],[2,40,2,42],[3,14,4,15],[3,17,3,33],[3,34,4,34],[4,17,4,26],[4,27,4,33],[0,0,0,34],[1,0,1,1],[1,2,1,34],[2,0,4,13],[2,14,2,34]]}
["BESTANDSAUFNAHME DER KORRUPTIONSGEFÄHRDETEN TÄTIGKEITEN"]
["Struktur",null,"GESUNDHEIT"]
["Defintion des prozesses/Phase",null,null,null,null,null,null,null,null,null,null,null,null,null,"Risikobewertung",null,null,null,null,null,null,null,null,null,null,null,null,null,null,null,null,null,null,null,null,null,"Vorbeugungsmaßnahme",null,null,null,"Monitoring über die Vorbeugungsmaßnahme"]
[null,null,null,null,null,null,null,null,null,null,null,null,null,null,"a) Identifizierung des Risikos",null,null,"b) Analyse des Risikos",null,null,null,null,null,null,null,null,null,null,null,null,null,null,null,null,"c) Risikogewichtung"]
[null,null,null,null,null,null,null,null,null,null,null,null,null,null,null,null,null,"WAHRSCHEINLICHKEIT - Indikatoren für die Bewertung der Wahrscheinlichkeit, dass das jeweilige Risiko eintritt",null,null,null,null,null,null,null,null,null,"AUSWIRKUNGEN - Indikatoren für die Bewertung der möglichen Auswirkungen eines Risikoeintritts",null,null,null,null,null,null,null,null,"Maßnahme","Parameter","Verantwortliche Struktur","Frist für die Umsetzung ","Umsetzung","Frist","Wirksamkeit"]
["Amt / Organisationseinheit / Bereich","Risikobereich","Beschreibung des \"weiteren\" Risikobereiches ","Entscheidungsprozess (siehe Anlage 2)","Korruptionsgefährdete Phase des Entscheidungsprozesses","Stakeholder \n(externe / interne / öffentliche) ","primäres Interesse","sekundäres Interesse","Ursprung / Erfordernisse des Prozesses (INPUT)","Erhofftes Ergebnis (OUTPUT)","Rechtsquelle","Wer ist der Verantwortliche des Verfahrens?","Gesamtbetrag der im vergangenen Jahr getätigten Ausgaben","Gesamtzahl der Verfahren im vergangenen Jahr","Beschreibung des Risikos","Ursache des Risikos","Wesentliche Anomalien","Ermessensfreiheit","Verwaltungsexterne Relevanz\n","Komplexität des Entscheidungsprozesses","Wirtschaftliche Bedeutung\n\n","Teilbarkeit des Entscheidungsprozesses\n\n","Kontrollen im Rahmen des Entscheidungsprozesses","Rückverfolgbarkeit und Transparenz","Beteiligung von externen Subjekten","SUMME","DURCHSCHNITTSWERT DER WAHRSCHEINLICHKEIT ","Organisatorische Auswirkungen\n\n","Wirtschaftliche  Auswirkungen\n\n","Rufschädigende Auswirkungen\n\n","Auswirkungen auf Image und Organisation\n\n","SUMME","DURCHSCHNITTSWERT DER AUSWIRKUNGEN ","GESAMTBEWERTUNG DES RISIKOS","Risikorangordnung\n","Verschiedene Anmerkungen - Korruptionsgefährdete Tätigkeiten","Vorbeugungsmaßnahme","Parameter für die Bewertung der Wirksamkeit der Maßnahme ","Für die Umsetzung verantwortliche Struktur","Frist für die Umsetzung ","Wurde die Maßnahme umgesetzt?","Wurde die Frist eingehalten? ","Bewertung"]
["23.0 Abteilung Gesundheit","- K) Rechtsangelegenheiten und Streitsachen",null,"Außergerichtliche Streitbeilegung bei Haftungsfragen im Gesundheitsbereich\n- Antrag,\n- Prüfung der Zulässigkeit des Antrags,\n- Schlichtungsversuch,\nMisslingt dieser folgt die \n- Einleitung des Verfahrens,\n- Bewertung durch die Kommission,\n- Schlichtungsempfehlung","Phase der Prüfung der Zulässigkeit des Antrags\nBewertungsphase, die in die Schlichtungsempfehlung mündet","Externe Personen: Patienten, Ärzte, öffentliche oder private Gesundheitseinrichtungen, Versicherungen;\ninterne Stellen: Gesundheitsassessorat, Landesabteilung Gesundheit;\nöffentliche Einrichtungen: Sanitätsbetrieb, Gesundheitsassessorat, Autonome Provinz Bozen (Abteilung Gesundheit)","ständige Verbesserung der Gesundheitsdienste; Beibehaltung eines hohen qualitativen Niveaus beim Erbringen von Gesundheitsleistungen","Anerkennung eines gerechten Schadenersatzes/Entschädigung; außergerichtliche Beilegung von Streitigkeiten bei Haftungsfragen im Gesundheitsbereich; Verbesserung der Gesundheitsdienste","Antrag","Schlichtung,\nSchlichtungsempfehlung","Artikel 4/bis LG 05.03.2001, Nr. 7\nDLH 18.01.2007, Nr. 11","- Zuständiger Bediensteter",32157.88,31,"Parteiergreifung zugunsten der Patienten beziehungsweise zugunsten der betroffenen Ärzte\npotentiell mögliche verzerrte Bewertung","obligatorischer Risikobereich laut Art. 1, Abs. 16, Buchstabe c) des G. 190/2012, weil bei jedem Rechtsfall auch ein gewisser potentieller Ermessensspielraum gegeben ist.\n","keine","Das Verfahren ist teilweise von Gesetzen und/oder Verwaltungsakten geregelt (3) ","Ja, das Ergebnis des Entscheidungsprozesses ist an Subjekte außerhalb der Landesverwaltung gerichtet (5)","Ja, der Entscheidungsprozess sieht die Beteiligung von mehr als 3 Verwaltungen vor  (3)","Der Entscheidungsprozess bedingt die Gewährung von erheblichen Vergünstigungen bzw. Vorteilen an externe Subjekte (z.B. Erteilung von öffentlichen Aufträgen)  (5)","Nein  (1)","Nein, es ist keine Kontrolle vorgesehen  (5) ","Ja (1)","Ja (5)",21,{"$f":"ROUND(+Z7/8,1)","v":2.6},"Von 20% bis ungefähr 60%    (3)","Nein (1)","Wir haben diesbezüglich keine Kenntnis    (1)","Die Position eines einfachen Mitarbeiters   (1)",6,{"$f":"ROUND(+AF7/4,1)","v":1.5},{"$f":"+AA7*AG7","v":3.9000000000000004},null,"keine","Die Mitglieder der Schlichtungskommission stehen in keinem Berufsverhältnis mit dem Landesgesundheitsdienst (Neutralität);\nder Rechtsmediziner (Kommissionsmitglied) wird von außerhalb der Provinz berufen, um Interessenkonflikte zu vermeiden;\nwird ein Bewertungsverfahren eingeleitet, wird eventuell das Gutachten von einem Facharzt außerhalb der Provinz eingeholt;\nder Mitarbeiter des Landes ist in diesem Bereich seinen Vorgesetzten gegenüber nicht weisungsgebunden.","Beibehaltung der Vorbeugemaßnahmen","Abteilung Gesundheit","sofort","Ja","Ja","wirksam"]
["23.1 Amt für Gesundheitsleistungen","- D) Gewährung und Auszahlung von Subventionen, Beiträgen, Zuschüssen, Prämien und wirtschaftlichen Vergünstigungen jeglicher Art ",null,"Beiträge an Körperschaften und  Organisationen  im Bereich der Abhängigkeiten","Phase 1,2,3","externe: Körperschaften und Organisationen im Bereich der Abhängigkeiten;  interne Stellen: Landesabteilung Gesundheit; öffentliche: Autonome Provinz Bozen","Schutz der Gesundheit der Personen mit Abhängigkeitserkrankungen","allgemeine Präventionsarbeit","Annahme des Beitragsansuchens","Dekret zur Genehmigung des Beitrages","L.G 18.05.2006. Nr.3, Art.8","- Amtsdirektor",1457429.64,3,"unterlassene oder verzerrte Bewertung hinsichtlich der Zulässigkeit eines Beitragsgesuchs","wenig Möglichkeit für eine Rotation des Personals","keine","Das Verfahren ist teilweise von Gesetzen und/oder Verwaltungsakten geregelt (3) ","Ja, das Ergebnis des Entscheidungsprozesses ist an Subjekte außerhalb der Landesverwaltung gerichtet (5)","Nein, der Entscheidungsprozess betrifft ausschließlich die Landesverwaltung  (1)","Der Entscheidungsprozess bedingt zwar die Gewährung von Vergünstigungen bzw. Vorteilen an externe Subjekte, aber diese Vorteile haben keine besondere wirtschaftliche Relevanz (z.B. Gewährung von Studienbeihilfen an Studenten)  (3)","Nein  (1)","Von mehreren Personen, darunter auch jene Person, die für vorhergehende Phasen zuständig war (3)","Ja (1)","Nein (1)",18,2.2999999999999998,"Bis ungefähr 20%    (1)","Nein (1)","Wir haben diesbezüglich keine Kenntnis    (1)","Die Position eines einfachen Mitarbeiters   (1)",4,1,2.2999999999999998,2,"keine","Überprüfung des Beitragsanträge und der Beitragsgewährung in Anwesenheit eines weiteren Mitarbeiters des Amtes 23.1","verminderte Ermessensfreiheit","Amt für Gesundheitsleistungen","bereits abgelaufen","Ja","Ja","wirksam"]
["23.1 Amt für Gesundheitsleistungen","- D) Gewährung und Auszahlung von Subventionen, Beiträgen, Zuschüssen, Prämien und wirtschaftlichen Vergünstigungen jeglicher Art ",null,"Beiträge an Körperschaften und  Organisationen  im Bereich der Essstörungen","Phase 1,2,3","externe: Körperschaften und Organisationen im Bereich der Essstörungen;  interne Stellen: Landesabteilung Gesundheit; öffentliche: Autonome Provinz Bozen ","Schutz der Gesundheit der Personen mit Essstörungen","allgemeine Präventionsarbeit","Annahme des Beitragsansuchens","Dekret zur Genehmigung des Beitrages","L.G 05.03.2001, Nr. 7 i.g.F., Art. 81","- Amtsdirektor",139920,1,"unterlassene oder verzerrte Bewertung hinsichtlich der Zulässigkeit eines Beitragsgesuchs","wenig Möglichkeit für eine Rotation des Personals","keine","Das Verfahren ist teilweise von Gesetzen und/oder Verwaltungsakten geregelt (3) ","Ja, das Ergebnis des Entscheidungsprozesses ist an Subjekte außerhalb der Landesverwaltung gerichtet (5)","Nein, der Entscheidungsprozess betrifft ausschließlich die Landesverwaltung  (1)","Der Entscheidungsprozess bedingt zwar die Gewährung von Vergünstigungen bzw. Vorteilen an externe Subjekte, aber diese Vorteile haben keine besondere wirtschaftliche Relevanz (z.B. Gewährung von Studienbeihilfen an Studenten)  (3)","Nein  (1)","Von mehreren Personen, darunter auch jene Person, die für vorhergehende Phasen zuständig war (3)","Ja (1)","Nein (1)",18,2.2999999999999998,"Bis ungefähr 20%    (1)","Nein (1)","Wir haben diesbezüglich keine Kenntnis    (1)","Die Position eines einfachen Mitarbeiters   (1)",4,1,2.2999999999999998,3,"keine","Überprüfung des Beitragsansuchen und der Beitragsgewährung in Anwesenheit eines weiteren Mitarbeiters des Amtes 23.1","Verminderte Ermessensfreiheit ","Amt für Gesundheitsleistungen","bereits abgelaufen","Ja","Ja","wirksam"]
["23.1 Amt für Gesundheitsleistungen","- D) Gewährung und Auszahlung von Subventionen, Beiträgen, Zuschüssen, Prämien und wirtschaftlichen Vergünstigungen jeglicher Art ",null,"Auszahlung der Wohnortszulage  an die Inhaber oder verantwortlichen Direktoren einer Landesapotheke ","Phase 1,2,3","externe: Inhaber oder verantwortliche Direktoren von Landapotheken","Sicherung des Bestandes von Apotheken auch in ländlichen Gebieten und damit gute kapillare Arzneimittelversorgung der Bevölkerung","Kostenreduzierung = Steigerung des Gewinnes","Annahme des Beitragsansuchens","Dekret zur Genehmigung des Beitrages","Gesetz Nr. 221 vom 08.03.1968, Art. 2, 3, 4, 5, 6 und 8","- Amtsdirektor",14493.54,50,"unterlassene oder verzerrte Bewertung hinsichtlich der Zulässigkeit eines Beitragsgesuchs","wenig Möglichkeit für eine Rotation des Personals","keine","Das Verfahren ist teilweise von Gesetzen und/oder Verwaltungsakten geregelt (3) ","Ja, das Ergebnis des Entscheidungsprozesses ist an Subjekte außerhalb der Landesverwaltung gerichtet (5)","Nein, der Entscheidungsprozess betrifft ausschließlich die Landesverwaltung  (1)","Der Entscheidungsprozess bedingt zwar die Gewährung von Vergünstigungen bzw. Vorteilen an externe Subjekte, aber diese Vorteile haben keine besondere wirtschaftliche Relevanz (z.B. Gewährung von Studienbeihilfen an Studenten)  (3)","Nein  (1)","Ja, von einer anderen Person  (1)","Ja (1)","Ja (5)",20,2.5,"Bis ungefähr 20%    (1)","Nein (1)","Wir haben diesbezüglich keine Kenntnis    (1)","Die Position eines einfachen Mitarbeiters   (1)",4,1,2.5,4,"keine","Überprüfung des Beitragsansuchen und der Beitragsgewährung in Anwesenheit eines weiteren Mitarbeiters des Amtes 23.1","Verminderte Ermessensfreiheit ","Amt für Gesundheitsleistungen","bereits abgelaufen","Ja","Ja","wirksam"]
["23.1 Amt für Gesundheitsleistungen","- C) Ermächtigungen oder Konzessionen",null,"Verfahren für die Genehmigung zur Verlegung einer bestehenden Apotheke","Bewertung des Ansuchen und der vorgelegten Dokumentation und Veröffentlichung des Dekretes","externe Personen: Inhaber von Apotheken","Sicherstellung, dass der neue Standort, in den die Apotheke verlegt werden soll, den Gesetzesbestimmungen in den verschiedenen Bereichen entspricht","In geeigneteren Lokalen arbeiten können um einen besseren Dienst anbieten zu können.","Annahme Gesuch","Ermächtigungsdekret","königliches Dekret vom 27. Juli 1934, Nr. 1265; G 2.4.1968, Nr. 475; DPR 21.8.1971, Nr. 1275; \t DLH 9.11 2009, Nr. 54; LG 16/2012; Decr Assessore Sanitá 4.11.2011, n.382; Delib GP 176/2012","- Amtsdirektor",0,1,"Potentiell mögliche verzerrte Bewertung hinsichtlich der Überprüfung des Gesuchs und potentiell mögliche Mängel an Transparenz hinsichtlich der Veröffentlichung der Maßnahme.","wenig Trasparenz in der Veröffentlichung der Authorisierungsmaßnahme und wenig Möglichkeiten für eine Rotation des Personals","keine","Das Verfahren ist teilweise von Gesetzen und/oder Verwaltungsakten geregelt (3) ","Ja, das Ergebnis des Entscheidungsprozesses ist an Subjekte außerhalb der Landesverwaltung gerichtet (5)","Ja, der Entscheidungsprozess sieht die Beteiligung von mehr als 3 Verwaltungen vor  (3)","Der Entscheidungsprozess bedingt zwar die Gewährung von Vergünstigungen bzw. Vorteilen an externe Subjekte, aber diese Vorteile haben keine besondere wirtschaftliche Relevanz (z.B. Gewährung von Studienbeihilfen an Studenten)  (3)","Nein  (1)","Von mehreren Personen, darunter auch jene Person, die für vorhergehende Phasen zuständig war (3)","Ja (1)","Ja (5)",24,3,"Bis ungefähr 20%    (1)","Nein (1)","Wir haben diesbezüglich keine Kenntnis    (1)","Die Position eines einfachen Mitarbeiters   (1)",4,1,3,3,"keine","Veröffentlichung der Verwaltungsmaßnahme in einem eigens vorgesehenen Bereich der Homepage der Abteilung Gesundheit","Erhöhte Transparenz nach Außen","Amt für Gesundheitsleistungen","bereits abgelaufen","Ja","Ja","wirksam"]
["23.1 Amt für Gesundheitsleistungen","- C) Ermächtigungen oder Konzessionen",null,"Verfahren für die Genehmigung zur Eröffnung einer Apotheke","Bewertung eventueller Bemerkungen und Einhaltung eventueller Vorschriften und Veröffentlichung des Dekretes","externe: Apotheker oder Gesellschaften von Apotheken","Sicherstellung der Arzneimittelversorgung der Bevölkerung auf dem gesamten Landesgebiet gemäß gesetzlichen Vorgaben","wirtschaftliche Interesse an der Führung einer Apotheke","Eröffnung einer Apotheke von Seiten eines geeigneten Kandidaten","Ermächtigungsdekret","LG 16/2012\nL 475/1968\nDLR 382/2011\nDLH 54/2009\nDL 269/2003\nL 326/2003\nRD 1265/1934","- Amtsdirektor",0,8,"Potentiell mögliche verzerrte Bewertung hinsichtlich etwaiger Eingaben und in der Überprüfung des Gesuchs und potentiell mögliche Mängel an Transparenz hinsichtlich der Veröffentlichung der Maßnahme.","wenig Transparenz in der Veröffentlichung und wenig Möglichkeiten für eine Rotation des Personals","keine","Das Verfahren ist teilweise von Gesetzen und/oder Verwaltungsakten geregelt (3) ","Ja, das Ergebnis des Entscheidungsprozesses ist an Subjekte außerhalb der Landesverwaltung gerichtet (5)","Ja, der Entscheidungsprozess sieht die Beteiligung von mehr als 3 Verwaltungen vor  (3)","Der Entscheidungsprozess bedingt zwar die Gewährung von Vergünstigungen bzw. Vorteilen an externe Subjekte, aber diese Vorteile haben keine besondere wirtschaftliche Relevanz (z.B. Gewährung von Studienbeihilfen an Studenten)  (3)","Nein  (1)","Ja, von einer anderen Person  (1)","Ja (1)","Ja (5)",22,2.8,"Bis ungefähr 20%    (1)","Nein (1)","Wir haben diesbezüglich keine Kenntnis    (1)","Die Position eines einfachen Mitarbeiters   (1)",4,1,2.8,1,"keine","Veröffentlichung der Verwaltungsmaßnahme in einem eigens vorgesehenen Bereich der Homepage der Abteilung Gesundheit","Erhöhte Transparenz nach Außen","Amt für Gesundheitsleistungen","bereits abgelaufen","Ja","Ja","wirksam"]
["23.1 Amt für Gesundheitsleistungen","- C) Ermächtigungen oder Konzessionen",null,"Übertragung / Änderung der Inhaberschaft/ Leitung einer Apotheke","Bewertung des Ansuchen und der vorgelegten Dokumentation und Veröffentlichung des Dekretes","externe: Apotheker oder Gesellschaften von Apotheken","Kontrolle über die Einhaltung der gesetzlichen Vorgaben betreffend die Inhaberschaft und die Direktion von Apotheken","Strategische unternehmerische Entscheidung","Annahme Gesuch","Mitteilung an den Betroffenen","\t - Gesetz vom 8. November 1991, Nr. 362\n\t - Gesetz vom 2. April 1968, Nr. 475\n\t - Landesgesetz vom 11. Oktober 2012, Nr. 16 \n","- Amtsdirektor",0,3,"Potentiell mögliche verzerrte Bewertung hinsichtlich vorgelegter Dokumente und in der Überprüfung des Gesuchs","wenig Möglichkeiten für eine Rotation des Personals","keine","Das Verfahren ist teilweise von Gesetzen und/oder Verwaltungsakten geregelt (3) ","Ja, das Ergebnis des Entscheidungsprozesses ist an Subjekte außerhalb der Landesverwaltung gerichtet (5)","Ja, der Entscheidungsprozess sieht die Beteiligung von mehr als 3 Verwaltungen vor  (3)","Der Entscheidungsprozess bedingt zwar die Gewährung von Vergünstigungen bzw. Vorteilen an externe Subjekte, aber diese Vorteile haben keine besondere wirtschaftliche Relevanz (z.B. Gewährung von Studienbeihilfen an Studenten)  (3)","Nein  (1)","Ja, von einer anderen Person  (1)","Ja (1)","Ja (5)",22,2.8,"Bis ungefähr 20%    (1)","Nein (1)","Wir haben diesbezüglich keine Kenntnis    (1)","Die Position eines einfachen Mitarbeiters   (1)",4,1,2.8,2,"keine","Veröffentlichung der Verwaltungsmaßnahme in einem eigens vorgesehenen Bereich der Homepage der Abteilung Gesundheit","Erhöhte Transparenz nach Außen","Amt für Gesundheitsleistungen","bereits abgelaufen","Ja","Ja","wirksam"]
["23.1 Amt für Gesundheitsleistungen","- C) Ermächtigungen oder Konzessionen",null,"Verfahren für die Genehmigung zur Eröffnung einer Arzneimittelausgabestelle ","Bewertung der Voraussetzungen und des Auswahliters der Apotheker und Veröffentlichung des Dekretes","externe: Inhaber einer Apotheke","kapillare Arzneimittelversorgung der Bürger auf dem gesamten Landesgebiet","Steigerung des Gewinnes - strategische Entscheidung","Annahme Gesuch","Ermächtigungsdekret","Königliches Dekret 30 September 1938, Nr. 1706\nGesetz 8. März 1968, Nr. 221\nLandesgesetz vom 11. Oktober 2012, Nr. 16\nBeschluss der Landesregierung vom 20. September 2016, Nr. 1018\n\n\n","- Amtsdirektor",0,0,"Potentiell mögliche verzerrte Bewertung hinsichtlich des Auswahliters der Apotheker und potentiell mögliche Mängel an Transparenz hinsichtlich der Veröffentlichung der Maßnahme.","wenig Trasparenz in der Veröffentlichung der Authorisierungsmaßnahme und wenig Möglichkeiten für eine Rotation des Personals","keine","Das Verfahren ist teilweise von Gesetzen und/oder Verwaltungsakten geregelt (3) ","Ja, das Ergebnis des Entscheidungsprozesses ist an Subjekte außerhalb der Landesverwaltung gerichtet (5)","Ja, der Entscheidungsprozess sieht die Beteiligung von mehr als 3 Verwaltungen vor  (3)","Der Entscheidungsprozess bedingt zwar die Gewährung von Vergünstigungen bzw. Vorteilen an externe Subjekte, aber diese Vorteile haben keine besondere wirtschaftliche Relevanz (z.B. Gewährung von Studienbeihilfen an Studenten)  (3)","Nein  (1)","Ja, von einer anderen Person  (1)","Ja (1)","Ja (5)",22,2.8,"Bis ungefähr 20%    (1)","Nein (1)","Wir haben diesbezüglich keine Kenntnis    (1)","Die Position eines einfachen Mitarbeiters   (1)",4,1,2.8,3,"keine","Veröffentlichung der Verwaltungsmaßnahme und der entsprechenden Prozedur in einem eigens vorgesehenen Bereich der Homepage der Abteilung Gesundheit","Erhöhte Transparenz nach Außen","Amt für Gesundheitsleistungen","bereits abgelaufen","Ja","Ja","wirksam"]
["23.1 Amt für Gesundheitsleistungen","- I) Kontrollen, Überprüfungen, Inspektionen und Sanktionen",null,"Ordentliche Kontrollinspektion in der Apotheke und im zur Abgabe von Arzneimitteln ermächtigten Handelsbetrieb","Auswahlverfahren der Apotheken für die Kontrollen","externe : Inhaber einer Apotheke","Überwachung der Apotheken im Landesgebiet","Weiterführung des Apothekenbetriebes","Vorgesehene Kontrollinspektion gemäß Gesetz","Protokoll der Kommission","LG 16/2012;\nKönigl.  Dekret 1265/1934","- Amtsdirektor",0,0,"Missbrauch in der Funktion der Kontrollinstanz","Ermessensspielraum im Auswahlverfahren der Apotheken","keine","Das Verfahren ist teilweise von Gesetzen und/oder Verwaltungsakten geregelt (3) ","Ja, das Ergebnis des Entscheidungsprozesses ist an Subjekte außerhalb der Landesverwaltung gerichtet (5)","Nein, der Entscheidungsprozess betrifft ausschließlich die Landesverwaltung  (1)","Der Entscheidungsprozess bedingt zwar die Gewährung von Vergünstigungen bzw. Vorteilen an externe Subjekte, aber diese Vorteile haben keine besondere wirtschaftliche Relevanz (z.B. Gewährung von Studienbeihilfen an Studenten)  (3)","Nein  (1)","Von mehreren Personen, darunter auch jene Person, die für vorhergehende Phasen zuständig war (3)","Ja (1)","Ja (5)",22,2.8,"Bis ungefähr 60%    (3)","Nein (1)","Wir haben diesbezüglich keine Kenntnis    (1)","Die Position eines einfachen Mitarbeiters   (1)",6,1.5,4.1999999999999993,null,"im Laufe des Jahres 2018 wurden nur vom Gesetz als obligatorische Inspektionen vor der Eröffnung einer Apotheke durchgeführt (erhöhte Anzahlt aufgrund des laufenden außerodentlichen Wettbewerbs) ","Ausarbeitung von Kritierien für das Auswahlverfahren der Apothekeninspektionen","Verminderte Ermessensfreiheit durch Verordnungstätigkeit ","Amt für Gesundheitssprengel","1 Jahr"]
["23.1 Amt für Gesundheitsleistungen","- K) Rechtsangelegenheiten und Streitsachen",null,"Rekurse im Bereich Ticketbefreiung aus Einkommensgründen","Bewertung der vorgelegten Unterlagen","externe: Bürger; öffentliche Einrichtungen: Sanitätsbetrieb","bestmöglicher Einsatz der im Gesundheitsbereich zur Verfügung stehenden Finanzmittel zu Gunsten der gesamten Bevölkerung","Vermeidung Zahlung der Verwaltungsstrafe","Annahme des Rekurses","Verordnung des Amtsdirektors (Archivierung oder Bußgeldbescheid)","Artikel 8, Absatz 16, Gesetz Nr. 537/1993","- Amtsdirektor",0,30,"Potentiell mögliche Beeinflussung der Bewertung von Verteidigungsschreiben/Rekursen hinsichtlich Annahme/Zurückweisung des Rekurses","Wenig Möglichkeiten für eine Rotation des Personals","keine","Das Verfahren ist teilweise von Gesetzen und/oder Verwaltungsakten geregelt (3) ","Ja, das Ergebnis des Entscheidungsprozesses ist an Subjekte außerhalb der Landesverwaltung gerichtet (5)","Ja, der Entscheidungsprozess sieht die Beteiligung von mehr als 3 Verwaltungen vor  (3)","Der Entscheidungsprozess bedingt zwar die Gewährung von Vergünstigungen bzw. Vorteilen an externe Subjekte, aber diese Vorteile haben keine besondere wirtschaftliche Relevanz (z.B. Gewährung von Studienbeihilfen an Studenten)  (3)","Nein  (1)","Von mehreren Personen, darunter auch jene Person, die für vorhergehende Phasen zuständig war (3)","Ja (1)","Ja (5)",24,3,"Bis ungefähr 20%    (1)","Nein (1)","Wir haben diesbezüglich keine Kenntnis    (1)","Die Position eines einfachen Mitarbeiters   (1)",4,1,3,1,"keine","Überprüfung der Unterlagen in Anwesenheit eines weiteren Mitarbeiters des Amtes 23.1","Verminderte Ermessensfreiheit durch Verordnungstätigkeit ","Amt für Gesundheitsleistungen","bereits abgelaufen","Ja","Ja","wirksam"]
["23.1 Amt für Gesundheitsleistungen","- K) Rechtsangelegenheiten und Streitsachen",null,"Rekurs gegen die Ablehnung der Zuerkennung der Befreiung von der Zuzahlung im Gesundheitsbereich seitens des BSB wegen Bedürftigkeit","Bewertung der vorgelegten Unterlagen","externe Personen: Bürger; öffentliche Einrichtungen: BSB","den Personen, die die Voraussetzungen für die Befreiung von der Zuzahlung besitzen, soll diese auch gewährt werden","Recht auf Gewährung der Befreiung zur Zuzahlung seitens des Bürgers, wenn die Voraussetzungen bestehen","Annahme des Rekurses","Protokoll der Kommission","Articolo 35, comma 1, LP 05/03/2001, n. 7","- Amtsdirektor",0,4,"Potentiell mögliche Beeinflussung der Bewertung von Verteidigungsschreiben/Rekursen hinsichtlich Annahme/Zurückweisung des Rekurses","Wenig Möglichkeiten für eine Rotation des Personals","keine","Das Verfahren ist teilweise von Gesetzen und/oder Verwaltungsakten geregelt (3) ","Ja, das Ergebnis des Entscheidungsprozesses ist an Subjekte außerhalb der Landesverwaltung gerichtet (5)","Ja, der Entscheidungsprozess sieht die Beteiligung von mehr als 3 Verwaltungen vor  (3)","Der Entscheidungsprozess bedingt zwar die Gewährung von Vergünstigungen bzw. Vorteilen an externe Subjekte, aber diese Vorteile haben keine besondere wirtschaftliche Relevanz (z.B. Gewährung von Studienbeihilfen an Studenten)  (3)","Nein  (1)","Von mehreren Personen, darunter auch jene Person, die für vorhergehende Phasen zuständig war (3)","Ja (1)","Ja (5)",24,3,"Bis ungefähr 20%    (1)","Nein (1)","Wir haben diesbezüglich keine Kenntnis    (1)","Die Position eines einfachen Mitarbeiters   (1)",4,1,3,2,"keine","interne Kontrolle durch Überprüfung des Gesuchs und der Erstellung der Landesrangordnung der Ärzte für Allgemeinmedizin in Anwesenheit eines weiteren Mitarbeiters des Amtes 23.1","Verminderte Ermessensfreiheit durch Verordnungstätigkeit ","Amt für Gesundheitsleistungen","bereits abgelaufen","Ja","Ja","wirksam"]
["23.1 Amt für Gesundheitsleistungen","- Weiteres (angeben ob weitere riskante Tätigkeiten außer der oben genannten bestehen)","Unkorrekte Bewertung der Zugangsvoraussetzungen und Vorzugstitel","Rangordnung  der Ärzte für Allgemeinmedizin","Meritorische Bewertung","externe: private Freiberufler; interne: Abt. Gesundheit; öffentliche: Sanitätsbetrieb","Gesundheitsversorgung der Bevölkerung außerhalb des Krankenhauses","unbefristete Vertragsbindung des Arztes mit dem Sanitätsbetrieb","Annahme der Gesuche","Genehmigungsdekret ","Gesamtstaatlicher Kollektivvertrag für die Regelung der Beziehungen mit den Ärzten für Allgemeinmedizin im Sinne des Artikels 8 des Legislativdekretes n. 502 von 1992 in geltender Fassung","- Amtsdirektor",0,70,"potenziell mögliche unterlassene oder verzerrte Bewertung betreffend die Zulässigkeit des Antrags und die Punktezuteilung","Wenig Möglichkeiten für eine Rotation des Personals","keine","Das Verfahren ist teilweise von Gesetzen und/oder Verwaltungsakten geregelt (3) ","Ja, das Ergebnis des Entscheidungsprozesses ist an Subjekte außerhalb der Landesverwaltung gerichtet (5)","Nein, der Entscheidungsprozess betrifft ausschließlich die Landesverwaltung  (1)","Der Entscheidungsprozess bedingt zwar die Gewährung von Vergünstigungen bzw. Vorteilen an externe Subjekte, aber diese Vorteile haben keine besondere wirtschaftliche Relevanz (z.B. Gewährung von Studienbeihilfen an Studenten)  (3)","Nein  (1)","Von mehreren Personen, darunter auch jene Person, die für vorhergehende Phasen zuständig war (3)","Ja (1)","Nein (1)",18,2.2999999999999998,"Bis ungefähr 20%    (1)","Nein (1)","Wir haben diesbezüglich keine Kenntnis    (1)","Die Position eines einfachen Mitarbeiters   (1)",4,1,2.2999999999999998,1,"keine","Interne Kontrolle Überprüfung des Gesuchs und der Erstellung der Landesrangordnung der Ärzte für Allgemeinmedizin in Anwesenheit eines weiteren Mitarbeiters des Amtes 23.1","Verminderte  Ermessensfreiheit","Amt für Gesundheitsleistungen","bereits abgelaufen","Ja","Ja","wirksam"]
["23.1 Amt für Gesundheitsleistungen","- Weiteres (angeben ob weitere riskante Tätigkeiten außer der oben genannten bestehen)","Unkorrekte Bewertung der Vorzugstitel","Zuteilung der Stellen der Ärzte für Allgemeinmedizin für die Betreuungskontinuität und der Grundversorgung","Meritorische Bewertung","Ärzte  und Autonome Provinz","Gesundheitsversorgung","Einen unbefristeten Arbeitsauftrag haben bzw. über ausreichend unbefristetes Personal für die Abdeckung des Dienstes verfügen","Annahme der Gesuche","Dekret ","Gesamtstaatlicher Kollektivvertrag für die Regelung der Beziehungen mit den Ärzten für Allgemeinmedizin im Sinne des Artikels 8 des Legislativdekretes n. 502 von 1992 in geltender Fassung","- Amtsdirektor",0,35,"Potentiell mögliche Beeinflussung der Zulässigkeit und bei der Bewertung des Ansuchens. ","Wenig Möglichkeiten für eine Rotation des Personals",null,"Keine, es ist vollständig geregelt (1)","Ja, das Ergebnis des Entscheidungsprozesses ist an Subjekte außerhalb der Landesverwaltung gerichtet (5)","Nein, der Entscheidungsprozess betrifft ausschließlich die Landesverwaltung  (1)","Der Entscheidungsprozess hat ausschließlich interne Bedeutung  (1)","Nein  (1)","Von mehreren Personen, darunter auch jene Person, die für vorhergehende Phasen zuständig war (3)","Ja (1)","Nein (1)",20,2.5,"Bis ungefähr 20%    (1)","Nein (1)","Wir haben diesbezüglich keine Kenntnis    (1)","Die Position eines einfachen Mitarbeiters   (1)",4,1,2.5,3,"keine","Überprüfung der Punktezuteilung durch einen weiteren Mitarbeiters des Amtes 23.1","Verminderte  Ermessensfreiheit","Amt für Gesundheitsleistungen","bereits abgelaufen","Ja","Ja","wirksam"]
["23.1 Amt für Gesundheitsleistungen","- I) Kontrollen, Überprüfungen, Inspektionen und Sanktionen",null,"Festlegung des Tagessatzes für die Betreuung von forensischen Patienten in der von der Vereinigung \"La Strada-Der Weg\"geführten Rehabilitationseinrichtung \"St. Isidor\"  ","Nicht korrekte Berechnung und Festsetzung des Tagessatzes ","Rehabilitationseinrichtung \"St. Isidor\"  und Autonome Provinz Bozen","Schutz der Gesundheit von forensichen Patienten","Kostendeckung seitens der Einrichtung St. Isidor","Anfrage der Vereinigung","Genehmigungsbeschluss","Beschluss der Landesregierung vom 18.02.2013  Nr. 251 und Beschluss der Landesregierung Nr. 696 vom 09.06.2015","- Amtsdirektor",0,0,"Potentiell mögliche Beeinflussung der Bewertung des Tagessatzes. ","Wenig Möglichkeiten für eine Rotation des Personals","keine","Das Verfahren ist teilweise von Gesetzen und/oder Verwaltungsakten geregelt (3) ","Ja, das Ergebnis des Entscheidungsprozesses ist an Subjekte außerhalb der Landesverwaltung gerichtet (5)","Ja, der Entscheidungsprozess sieht die Beteiligung von mehr als 3 Verwaltungen vor  (3)","Der Entscheidungsprozess bedingt zwar die Gewährung von Vergünstigungen bzw. Vorteilen an externe Subjekte, aber diese Vorteile haben keine besondere wirtschaftliche Relevanz (z.B. Gewährung von Studienbeihilfen an Studenten)  (3)","Nein  (1)","Von mehreren Personen, darunter auch jene Person, die für vorhergehende Phasen zuständig war (3)","Ja (1)","Nein (1)",20,2.5,"Bis ungefähr 20%    (1)","Nein (1)","Wir haben diesbezüglich keine Kenntnis    (1)","Die Position eines einfachen Mitarbeiters   (1)",4,1,2.5,1,"Mit Dekretes\n des Landeshauptmannes vom 10.07.2017, Nr. 22, ist diese Zuständigkeit auf das Amt für Gesundheitssteuerung übergegangen.","Beratung mit den entsprechenden Diensten des Sanitätsbetriebes","Verminderte Ermessensfreiheit durch Verordnungstätigkeit ","Amt für Gesundheitsleistungen","bereits abgelaufen","Ja","Ja","wirksam"]
["23.1 Amt für Gesundheitsleistungen","- I) Kontrollen, Überprüfungen, Inspektionen und Sanktionen",null,"Verwaltungsstrafen an Apotheken und Handelsbetreiben, die zum Verkauf von Arzneimitteln, sowie jene, die zum Großhandel und Verkauf von Humanarzneimitteln ermächtigt sind","Bewertung der Schwere der Gesetzesübertretung für die Festsetzung des Strafausmaßes","externe: Inhaber von Apotheken (Apotheker oder Gesellschafter von Apotheken)","Einhaltung der gesetzlichen Bestimmungen- Schutz der allgemeinen Gesundheit","Vermeidung Zahlung der Verwaltungsstrafe","Feststellung der Nichteinhaltung einer gesetzlichen Vorgabe im Bereich, die von einer Kontrollbehörde festgestellt wird","Dekret der Abteilungsdirektion","königliches Dekret 27.7.1934, Nr. 1265; königliches Dekret 30.9.1938, Nr. 1706; Gesetz Nr. 475/1968; DPR 21.8.1971, Nr. 1275; DLH 9.11.2009, Nr. 54; gvD 24.4.2006, Nr.219; DPR 9.10.1990; Nr. 309; LG Nr. 16/2012; LG Nr. 9/1977; Beschluss LR 1244/2016","- Amtsdirektor",0,0,"Unterlassene oder verzerrte Beanstandung im Rahmen der Kontrolltätigkeit","Wenig Möglichkeiten für eine Rotation des Personals","keine","Das Verfahren ist teilweise von Gesetzen und/oder Verwaltungsakten geregelt (3) ","Ja, das Ergebnis des Entscheidungsprozesses ist an Subjekte außerhalb der Landesverwaltung gerichtet (5)","Ja, der Entscheidungsprozess sieht die Beteiligung von mehr als 3 Verwaltungen vor  (3)","Der Entscheidungsprozess bedingt zwar die Gewährung von Vergünstigungen bzw. Vorteilen an externe Subjekte, aber diese Vorteile haben keine besondere wirtschaftliche Relevanz (z.B. Gewährung von Studienbeihilfen an Studenten)  (3)","Nein  (1)","Von mehreren Personen, darunter auch jene Person, die für vorhergehende Phasen zuständig war (3)","Ja (1)","Nein (1)",20,2.5,"Bis ungefähr 20%    (1)","Nein (1)","Wir haben diesbezüglich keine Kenntnis    (1)","Die Position eines einfachen Mitarbeiters   (1)",4,1,2.5,2,"keine","Die Beanstandung erfolgt durch eine mehrköpfige Kommission","verminderte Ermessensfreiheit; Beanstandungsprotokoll wird von den Kontrollierenden und dem Kontrollierten unterschrieben. Ermessensspielraum wird dadurch vermindert.","Amt für Gesundheitsleistungen","bereits abgelaufen","Ja","Ja","wirksam"]
["23.1 Amt für Gesundheitsleistungen","- H) Verwaltung der Einnahmen, der Ausgaben und des Vermögens",null,"Verfahren für die Gewährung der Ratenzahlung von Verwaltungsstrafen","Unkorrekte Archivierung des Zahlungsbescheides ","Amt für Einnahmen","Sicherstellung der Zahlungseingänge, die dem Land geschuldet sind","Eintreibung der geschuldeten Beträge","Annahme Gesuch","Verordnung des Amtsdirektors","LG 9/1977, Art. 5, Abs. 2","- Amtsdirektor",0,23,"ungenaue Bewertung des\"Härtefalls\" laut gesetzlicher Bestimmung","Wenig Möglichkeiten für eine Rotation des Personals","keine","Das Verfahren ist teilweise von Gesetzen und/oder Verwaltungsakten geregelt (3) ","Ja, das Ergebnis des Entscheidungsprozesses ist an Subjekte außerhalb der Landesverwaltung gerichtet (5)","Nein, der Entscheidungsprozess betrifft ausschließlich die Landesverwaltung  (1)","Der Entscheidungsprozess hat ausschließlich interne Bedeutung  (1)","Nein  (1)","Von mehreren Personen, darunter auch jene Person, die für vorhergehende Phasen zuständig war (3)","Ja (1)","Nein (1)",16,{"$f":"ROUND(+Z22/8,1)","v":2},"Bis ungefähr 20%    (1)","Nein (1)","Wir haben diesbezüglich keine Kenntnis    (1)","Die Position eines einfachen Mitarbeiters   (1)",4,{"$f":"ROUND(+AF22/4,1)","v":1},{"$f":"+AA22*AG22","v":2},null,"keine","Überprüfung und Bewertung des Gesuchs von 2 Mitarbeitern im Team","verminderte Ermessensfreiheit","Amt für Gesundheitsleistungen","bereits abgelaufen","Ja","Ja","wirksam"]
["23.1 Amt für Gesundheitsleistungen","- H) Verwaltung der Einnahmen, der Ausgaben und des Vermögens",null,"Verfahren, das eingeleitet wird, wenn eine Verwaltungsstrafe nicht beglichen wird","Unkorrekte Archivierung des Zahlungsbescheides ","externe: Bürger; interne: Amt für Einnahmen","Vermeidung eines Erarial-schadens","Zahlung der Verwaltungsstrafe in Raten bzw. Vermeidung der Zwangseintreibung","durch das Amt festgestellte Nichtbezahlung einer Verwaltungsstrafe","Bußgeldbescheid","LG 9/1977","- Amtsdirektor",0,35,"unterlassene Weiterleitung des Verfahrens zur Zwangsvollstreckung im Falle andauernder Nichtbezahlung","Wenig Möglichkeiten für eine Rotation des Personals","keine","Das Verfahren ist teilweise von Gesetzen und/oder Verwaltungsakten geregelt (3) ","Ja, das Ergebnis des Entscheidungsprozesses ist an Subjekte außerhalb der Landesverwaltung gerichtet (5)","Nein, der Entscheidungsprozess betrifft ausschließlich die Landesverwaltung  (1)","Der Entscheidungsprozess hat ausschließlich interne Bedeutung  (1)","Nein  (1)","Ja, von einer anderen Person  (1)","Ja (1)","Nein (1)",14,1.8,"Bis ungefähr 20%    (1)","Nein (1)","Wir haben diesbezüglich keine Kenntnis    (1)","Die Position eines einfachen Mitarbeiters   (1)",4,1,1.8,null,"keine","Interne Überprüfung des Finanzierungsansuchen zusammen mit einem Mitarbeiter des Amtes 23.1","verminderte Ermessensfreiheit","Amt für Gesundheitsleistungen","bereits abgelaufen","Ja","Ja","wirksam"]
["23.2 Amt für Gesundheitssteuerung","- Weiteres (angeben ob weitere riskante Tätigkeiten außer der oben genannten bestehen)","Verwaltung des Landes-gesundheitsinformationssystems ","Autorisierung zum Zugang zu den Datenbanken\n\n","Phase der Bewertung der Zugangsvoraussetzungen","Ämter der Ministerien in Rom","Handhabung der statistischen Daten zur Überwachung und Erarbeitung von Strategien zum Schutz der Gesundheit","Verarbeitung und Überwachung der Daten betreffend die Gesundheit","Zugangsanfrage","Genehmigung oder Verweigerung des Zugangs","LG 7/2001\nGvD 196/2003 GDV 101/2018 ","- Amtsdirektor",0,5,"Potentiell nicht korrekte Bewertung der Voraussetzungen","Fehlende Kriterien für die Gewährung von Zugängen","keine","Das Verfahren ist teilweise und nur von Gesetzen geregelt (3)","Nein, das Ergebnis des Entscheidungsprozesses richtet sich ausschließlich an ein internes Amt (2)","Nein, der Entscheidungsprozess betrifft ausschließlich die Landesverwaltung  (1)","Der Entscheidungsprozess hat ausschließlich interne Bedeutung  (1)","Nein  (1)","Von mehreren Personen, darunter auch jene Person, die für vorhergehende Phasen zuständig war (3)","Ja (1)","Nein (1)",13,1.6,"Bis ungefähr 20%    (1)","Nein (1)","Wir haben diesbezüglich keine Kenntnis    (1)","Die Position einer Führungskraft   (5) ",8,2,3.2,null,"Mit Dekretes\n des Landeshauptmannes vom 10.07.2017, Nr. 22, ist diese Zuständigkeit auf das Amt für Gesundheitssteuerung übergegangen.","Festlegung einer Prozedur für die Anfrage und Erteilung der Zugänge und entsprechender Kriterien.\n","Die Prozedur exisitert.","Amt für Gesundheitssteuerung","1 Jahr"]
["23.2 Amt für Gesundheitssteuerung","- C) Ermächtigungen oder Konzessionen",null,"Betriebsgenehmigung und institutionelle Akkreditierung","Bewertungsphase der Voraussetzugnen","Ärzte, ehrenamtliche Vereinigungen, Gesundheitseinrichtungen","Autorisierung von geeigneten Strukturen zur Durchführung von Funktionen im Gesundheitsbereich","Autorisierung und Akkreditierung zur Ausübung der eigenen Funktion","Antrag","Dekret der Landesrat ","LG Nr. 7 vom 5 März 2001","- Amtsdirektor",0,90,"potentiell mögliche verzerrte Bewertung:\n- betreffend den Besitz der Mindestanforderungen für die Bewilligung oder \n- der Zusatzanforderungen für die institutionelle Akkreditierung, in Zusammenhang mit dem Bedarf.\nPotetiell mögliche verzerrte Bewertung des Bedarfes.","Ermessensspielraum in der Bewertung ","keine","Das Verfahren ist teilweise von Gesetzen und/oder Verwaltungsakten geregelt (3) ","Nein, das Ergebnis des Entscheidungsprozesses richtet sich ausschließlich an ein internes Amt (2)","Ja, der Entscheidungsprozess sieht die Beteiligung von mehr als 3 Verwaltungen vor  (3)","Der Entscheidungsprozess bedingt zwar die Gewährung von Vergünstigungen bzw. Vorteilen an externe Subjekte, aber diese Vorteile haben keine besondere wirtschaftliche Relevanz (z.B. Gewährung von Studienbeihilfen an Studenten)  (3)","Nein  (1)","Ja, von einer anderen Person  (1)","Ja (1)","Nein (1)",15,1.9,"Von 20% bis ungefähr 60%    (3)","Nein (1)","Ja, in lokalen Zeitungen oder Zeitschriften   (3)","Die Position eines einfachen Mitarbeiters   (1)",8,2,3.8,null,"Mit Dekretes\n des Landeshauptmannes vom 10.07.2017, Nr. 22, ist diese Zuständigkeit auf das Amt für Gesundheitssteuerung übergegangen.","Festlegung von Methoden zur Festlegung des Bedarfes ","Verfügbarkeit von Planungsdokumenten, wie z.B. ein aktuallisierte r Landesgesundheitsplan, durch welchen der Ermessenspielraum eingegrenzt wird\n\n","Amt für Gesundheitssteuerung","1 Jahr"]
["23.2 Amt für Gesundheitssteuerung","- D) Gewährung und Auszahlung von Subventionen, Beiträgen, Zuschüssen, Prämien und wirtschaftlichen Vergünstigungen jeglicher Art ",null,"Beiträge zugunsten öffentlicher und privater Akteure im Bereich des Gesundheitswesen, zur Erreichung oder Unterstützung der Ziele des Landesgesundheitsplanes sowie der Schwerpunktvorhaben und geplanten Maßnahmen, welche mit demselben übereinstimmen","Phase 2","Bürger, ehrenamtliche Vereinigungen, Gemeinden, welche Gesundheitsbereich tätig sind","Unterstützung der öffentlichen medizinischen Betreuung","Gewährung von Beiträgen zur Ausführung der Tätigkeiten, welche vom öffentlichem Interesse sind","Beitragsgesuch","Dekret","L.G. Nr. 7 vom 5. März 2001","- Amtsdirektor",1394000,20,"Unterlassene oder verzerrte Bewertung hinsichtlich der Zulässigkeit des Gesuchs für die Beitragsgewährung","Geringe Möglichkeit von Rotierungsmöglichkeiten des Personals; hoher Ermessensspielraum","keine","Das Verfahren ist teilweise von Gesetzen und/oder Verwaltungsakten geregelt (3) ","Ja, das Ergebnis des Entscheidungsprozesses ist an Subjekte außerhalb der Landesverwaltung gerichtet (5)","Nein, der Entscheidungsprozess betrifft ausschließlich die Landesverwaltung  (1)","Der Entscheidungsprozess bedingt die Gewährung von erheblichen Vergünstigungen bzw. Vorteilen an externe Subjekte (z.B. Erteilung von öffentlichen Aufträgen)  (5)","Nein  (1)","Von mehreren Personen, darunter auch jene Person, die für vorhergehende Phasen zuständig war (3)","Ja (1)","Nein (1)",20,2.5,"Von 20% bis ungefähr 60%    (3)","Nein (1)","Ja, in lokalen Zeitungen oder Zeitschriften   (3)","Die Position einer Führungskraft   (5) ",12,3,7.5,1,"Mit Dekretes\n des Landeshauptmannes vom 10.07.2017, Nr. 22, ist diese Zuständigkeit teilweise auf das Amt für Gesundheitsordnung und teilweise auf das Amt für Gesundheitssteuerung übergegangen.","Kontrolle von Leistungen, welche ausgelost werden, durch  rotierende Akteure","Überprüfung der Übereinstimmung mit den gesetzlichen Vorschriften und Kontrolle der Höhe des zugewiesenen Betrages.","Amt für Gesundheitssteuerung","1 Jahr"]
["23.2 Amt für Gesundheitssteuerung","- D) Gewährung und Auszahlung von Subventionen, Beiträgen, Zuschüssen, Prämien und wirtschaftlichen Vergünstigungen jeglicher Art",null,"Beiträge zugunsten öffentlicher und privater Körperschaften und Konsortien, ausgenommen die  Krankenhauskörperschaften, und Vereinigungen, welche auf dem Territorium der Provinz tätig sind und satzungsgemäß Tätigkeiten der Gesundheitsfürsorge ausüben",{"$f":"E26","v":"Phase 2"},"Bürger, öffentliche und private Körperschaften und Verbände, ausgeschlossen Krankenhauseinrichtungen,   und Vereinigungen, welche in Südtirol tätig sind","Unterstützung der öffentlichen medizinischen Betreuung","Gewährung von Beiträgen zur Ausführung der Tätigkeiten, welche vom öffentlichem Interesse sind","Beitragsgesuch","Dekret","L.G. Nr. 60 vom 17. September 1973 ","- Amtsdirektor",110000,1,"Unterlassene oder verzerrte Bewertung hinsichtlich der Zulässigkeit des Gesuchs für die Beitragsgewährung","Geringe Möglichkeit von Rotierungsmöglichkeiten des Personals; hoher Ermessensspielraum","keine","Das Verfahren ist teilweise von Gesetzen und/oder Verwaltungsakten geregelt (3) ","Ja, das Ergebnis des Entscheidungsprozesses ist an Subjekte außerhalb der Landesverwaltung gerichtet (5)","Nein, der Entscheidungsprozess betrifft ausschließlich die Landesverwaltung  (1)","Der Entscheidungsprozess bedingt die Gewährung von erheblichen Vergünstigungen bzw. Vorteilen an externe Subjekte (z.B. Erteilung von öffentlichen Aufträgen)  (5)","Nein  (1)","Von mehreren Personen, darunter auch jene Person, die für vorhergehende Phasen zuständig war (3)","Ja (1)","Nein (1)",20,2.5,"Von 20% bis ungefähr 60%    (3)","Nein (1)","Ja, in lokalen Zeitungen oder Zeitschriften   (3)","Die Position einer Führungskraft   (5) ",12,3,7.5,2,"Mit Dekretes\n des Landeshauptmannes vom 10.07.2017, Nr. 22, ist diese Zuständigkeit auf das Amt für Gesundheitssteuerung übergegangen.","Kontrolle von Leistungen, welche ausgelost werden, durch  rotierende Akteure","Überprüfung der Einhaltung der gesetzlichen Bestimmungen und Kontrolle der Höhe des zugewiesenen Betrages","Amt für Gesundheitssteuerung","3 Jahre"]
["23.2 Amt für Gesundheitssteuerung","- K) Rechtsangelegenheiten und Streitsachen",null,"Landesrekurskommission für die Behandlung von Beschwerden im Bereich der indirekten Krankenhausbetreuung","Bewertung der Fälle","Bürger","Unparteiische Bewertung des Rekurses","Annahme des Ansuchens, wie auch von in erster Instanz abgelehnten Anfragen","Rekurs","Schreiben","L.G. Nr. 7 vom 5. März 2001","- Amtsdirektor",0,220,"Unterlassene oder verzerrte Bewertung hinsichtlich der Zulässigkeit des Rekurses","Geringe Möglichkeit von Rotierungsmöglichkeiten des Personals; begrenzter Ermessensspielraum","keine","Das Verfahren ist teilweise von Gesetzen und/oder Verwaltungsakten geregelt (3) ","Ja, das Ergebnis des Entscheidungsprozesses ist an Subjekte außerhalb der Landesverwaltung gerichtet (5)","Nein, der Entscheidungsprozess betrifft ausschließlich die Landesverwaltung  (1)","Der Entscheidungsprozess bedingt zwar die Gewährung von Vergünstigungen bzw. Vorteilen an externe Subjekte, aber diese Vorteile haben keine besondere wirtschaftliche Relevanz (z.B. Gewährung von Studienbeihilfen an Studenten)  (3)","Nein  (1)","Von mehreren Personen, darunter auch jene Person, die für vorhergehende Phasen zuständig war (3)","Ja (1)","Nein (1)",22,2.8,"Von 20% bis ungefähr 60%    (3)","Nein (1)","Ja, in lokalen Zeitungen oder Zeitschriften   (3)","Die Position einer Führungskraft   (5) ",12,3,8.3999999999999986,null,"Mit Dekretes\n des Landeshauptmannes vom 10.07.2017, Nr. 22, ist diese Zuständigkeit auf das Amt für Gesundheitssteuerung übergegangen.","Kontrolle  von Seiten des Amtes der Tätigkeit der Kommmission mit Hilfe von externen Fachleuten ","Überprüfung der Einhaltung der gesetzlichen Bestimmungen über die Angemessenheit der Leistung in Bezug auf nationale Leitlinien und Leitlinien der Provinz ","Amt für Gesundheitssteuerung","1 Jahr"]
["23.2 Amt für Gesundheitssteuerung","- D) Gewährung und Auszahlung von Subventionen, Beiträgen, Zuschüssen, Prämien und wirtschaftlichen Vergünstigungen jeglicher Art",null,"Gewährung von Beiträgen für die Bereitstellung von Bluteinheiten","Phase 2 ","AVIS","Unterstützung der öffentlichen medizinischen Betreuung","Gewährung von Beiträgen zur Ausführung der Tätigkeiten, welche vom öffentlichem Interesse sind","Beitragsgesuch","Dekret","L.G. Nr. 14 vom 7. Mai 1991","- Amtsdirektor",600000,12,"Unterlassene oder verzerrte Bewertung hinsichtlich der Zulässigkeit des Beitragsgesuchs","Geringe Möglichkeit von Rotierungsmöglichkeiten des Personals; begrenzter Ermessensspielraum","keine","Das Verfahren ist teilweise von Gesetzen und/oder Verwaltungsakten geregelt (3) ","Ja, das Ergebnis des Entscheidungsprozesses ist an Subjekte außerhalb der Landesverwaltung gerichtet (5)","Nein, der Entscheidungsprozess betrifft ausschließlich die Landesverwaltung  (1)","Der Entscheidungsprozess bedingt zwar die Gewährung von Vergünstigungen bzw. Vorteilen an externe Subjekte, aber diese Vorteile haben keine besondere wirtschaftliche Relevanz (z.B. Gewährung von Studienbeihilfen an Studenten)  (3)","Nein  (1)","Ja, von einer anderen Person  (1)","Ja (1)","Nein (1)",16,2,"Von 20% bis ungefähr 60%    (3)","Nein (1)","Nein    (0)","Die Position einer Führungskraft   (5) ",9,2.2999999999999998,4.5999999999999996,1,"Mit Dekretes\n des Landeshauptmannes vom 10.07.2017, Nr. 22, ist diese Zuständigkeit auf das Amt für Gesundheitssteuerung übergegangen.","Kontrolle von Leistungen, welche ausgelost werden, durch  rotierende Akteure","Überprüfung der Einhaltung der gesetzlichen Bestimmungen, der  Fristen im Rahmen der Ausarbeitung der Bewertung","Amt für Gesundheitsteuerung","1 Jahr"]
["23.2 Amt für Gesundheitssteuerung","- I) Kontrollen, Überprüfungen, Inspektionen und Sanktionen",null,"Gutachten über die Mehrjahresplanung der Investitionen in den Bereichen \"Bauten im Gesundheitswesen\",\"Ankäufe von medizintechnischen Geräten\", \"Modernisierung des IT-Systems\" und \"Ankäufe von Einrichtungen\"","Bewertung des Gutachtens","Sanitätsbetrieb","Genehmigung des Programmierungsplanes zum Bau, Ankauf und Wartung von beweglichen und unbeweglichen Gütern ","Genehmigung des Planes zur Realisierung der Programmierung","Antrag durch den Sanitätsbetrieb","Beschlüsse der Landesregierung ","L.G. Nr. 1/1981- L.G. Nr. 7 vom 5.3.2001 - L.G.Nr 14 vom 5.11.2001","- Amtsdirektor",null,4,"Es besteht die Gefahr, dass die Stellungnahme negativ oder positiv, zu Gunsten oder zu Ungunsten des Sanitätsbetriebes, beinflusst ist","Geringe Möglichkeit von Rotierungsmöglichkeiten des Personals; begrenzter Ermessensspielraum","keine","Das Verfahren ist teilweise von Gesetzen und/oder Verwaltungsakten geregelt (3) ","Ja, das Ergebnis des Entscheidungsprozesses ist an Subjekte außerhalb der Landesverwaltung gerichtet (5)","Nein, der Entscheidungsprozess betrifft ausschließlich die Landesverwaltung  (1)","Der Entscheidungsprozess bedingt zwar die Gewährung von Vergünstigungen bzw. Vorteilen an externe Subjekte, aber diese Vorteile haben keine besondere wirtschaftliche Relevanz (z.B. Gewährung von Studienbeihilfen an Studenten)  (3)","Nein  (1)","Ja, von einer anderen Person  (1)","Ja (1)","Nein (1)",16,2,"Von 20% bis ungefähr 60%    (3)","Nein (1)","Nein    (0)","Die Position einer Führungskraft   (5) ",9,2.2999999999999998,4.5999999999999996,2,"Mit Dekretes\n des Landeshauptmannes vom 10.07.2017, Nr. 22, ist diese Zuständigkeit auf das Amt für Gesundheitssteuerung übergegangen.","Kontrolle der Aktivität mit Hilfe von externen, technischen Fachleuten ","Einhaltung der Bestimmungen und der Landesprogrammierung","Amt für Gesundheitsteuerung","1 Jahr"]
["23.2 Amt für Gesundheitssteuerung","- D) Gewährung und Auszahlung von Subventionen, Beiträgen, Zuschüssen, Prämien und wirtschaftlichen Vergünstigungen jeglicher Art",null,"Realisierung, Restrukturierung und Adaptierung der öffentlichen und  konventionierten Einrichtungen in den Bereichen \"Gesundheits- und Sozialsprengel und -stützpunkte\", \n\"Psychiatrische Einrichtungen\", \"Einrichtungen für Palliative-Care\" und \"Einrichtungen für Abhängigkeitskranke\", inklusive der Ersteinrichtung\n","Phase 2","Öffentliche und private, vertragsgebundene Körperschaften","Unterstützung der öffentlichen medizinischen Betreuung","Gewährung von Beiträgen zur Ausführung der Tätigkeiten, welche vom öffentlichem Interesse sind","Annahme des Finanzierungsgesuchs ","Beschluss","\t - Landesgesetz Nr. 7 vom 05. März 2001\n","- Amtsdirektor",338316,7,"Unterlassene oder verzerrte Bewertung hinsichtlich der Zulässigkeit des Beitragsgesuchs","Wenig Möglichkeiten der Rotation des Personals","keine","Das Verfahren ist teilweise von Gesetzen und/oder Verwaltungsakten geregelt (3) ","Ja, das Ergebnis des Entscheidungsprozesses ist an Subjekte außerhalb der Landesverwaltung gerichtet (5)","Nein, der Entscheidungsprozess betrifft ausschließlich die Landesverwaltung  (1)","Der Entscheidungsprozess bedingt die Gewährung von erheblichen Vergünstigungen bzw. Vorteilen an externe Subjekte (z.B. Erteilung von öffentlichen Aufträgen)  (5)","Nein  (1)","Von mehreren Personen, darunter auch jene Person, die für vorhergehende Phasen zuständig war (3)","Ja (1)","Nein (1)",20,2.5,"Bis ungefähr 20%    (1)","Nein (1)","Nein    (0)","Die Position einer Führungskraft   (5) ",7,1.8,4.5,null,"Mit Dekretes\n des Landeshauptmannes vom 10.07.2017 Nr. 22 ist diese Zuständigkeit auf das Amt für Gesundheitssteuerung übergegangen","Interne Kontrolle durch Überprüfung des Finanzierungsansuchen, zusammen mit einem Mitarbeiter des Amtes 23.2","Verminderung der Ermessensfreihei, da neue Vorschriften angewandt wurden ","Amt für Gesundheitssteuerung","1 Jahr"]
["23.2\nAmt für Gesundheitssteuerung ","- B) Öffentliche Verträge",null,"Ausarbeitung des Lastenheft für die Vergabe einer Dienstleistungsbeauftragung (z.B. technische Beratung)","Planung der Vergabe","Bürger, öffentliche und private Körperschaften","Unterstützung der öffentlichen medizinischen Betreuung","Gewährung von Beiträgen zur Ausführung der Tätigkeiten, welche vom öffentlichem Interesse sind","Bedarf der Auslagerung eines Dienstes","Übertragene Beratung","Landesgesetz vom 17.12.2015, Nr. 16, Art. 6 und folgende Landesgesetz vom 22.10.1993, Nr. 17; D. LH vom 31.05.1995, Nr. 25; gesetzesvertretendes Dekret vom 18.04.2016, Nr. 50","- Amtsdirektor",15000,4,"Ernennung von Personen, bedingt von subjektiver Bewertung","Bekanntschaften, Druck von Vorgesetzten und von Außen","keine","Das Verfahren ist teilweise von Gesetzen und/oder Verwaltungsakten geregelt (3) ","Ja, das Ergebnis des Entscheidungsprozesses ist an Subjekte außerhalb der Landesverwaltung gerichtet (5)","Nein, der Entscheidungsprozess betrifft ausschließlich die Landesverwaltung  (1)","Der Entscheidungsprozess bedingt zwar die Gewährung von Vergünstigungen bzw. Vorteilen an externe Subjekte, aber diese Vorteile haben keine besondere wirtschaftliche Relevanz (z.B. Gewährung von Studienbeihilfen an Studenten)  (3)","Nein  (1)","Ja, von einer anderen Person  (1)","Ja (1)","Nein (1)",16,{"$f":"ROUND(+Z32/8,1)","v":2},"Bis ungefähr 20%    (1)","Nein (1)","Nein    (0)","Die Position einer Führungskraft   (5) ",7,1.8,3.6,null,"Mit Dekretes\n des Landeshauptmannes vom 10.07.2017 Nr. 22 ist die Zuständigkeit \"Ausschreibungen und Verträge für die Abteilung\" dem Amt für Gesundheitsordnung übertragen worden.","1) Eine andere verantwortliche Stelle ist mit den  Vergabeprozeduren betraut \n2) Aus- und ständige Weiterbildung des Personals","Keine Beanstandung durch die Nutzer","Amt für Gesundheitssteuerung","sofort","Ja","Ja","wirksam"]
["23.2 Amt für Gesundheitssteuerung","- Weiteres (angeben ob weitere riskante Tätigkeiten außer der oben genannten bestehen)","Festelgung der  Medizinprodukte, welche für die Anspruchsberechtigen  zu Lasten des Landesgesundheitsdienstes erbringbar sind, durch die territorialen Apotheken ","Definition und Identifikation der Medizinprodukte","Identifizierung der Prokukte","Bürger, Unternehmen","Unterstützung der öffentlichen medizinischen Betreuung","Einfügen, hinsichtlich  der Vermarktung, der Medizinprodukte ins entsprechende Landesverzeichnis ","Externe Anfragen ","Beschluss","DPCM 12 Jänner 2017","- Amtsdirektor",22000000,1,"Ausfindigmachung des Medizinproduktes, welche durch subjektive Bewertungen beinflusst ist","Bekanntschaften, Druck von Vorgesetzten und von Außen","keine","Das Verfahren sieht eine völlige Ermessensfreiheit vor (5)","Ja, das Ergebnis des Entscheidungsprozesses ist an Subjekte außerhalb der Landesverwaltung gerichtet (5)","Nein, der Entscheidungsprozess betrifft ausschließlich die Landesverwaltung  (1)","Der Entscheidungsprozess bedingt zwar die Gewährung von Vergünstigungen bzw. Vorteilen an externe Subjekte, aber diese Vorteile haben keine besondere wirtschaftliche Relevanz (z.B. Gewährung von Studienbeihilfen an Studenten)  (3)","Nein  (1)","Von mehreren Personen, darunter auch jene Person, die für vorhergehende Phasen zuständig war (3)","Ja (1)","Nein (1)",20,2.5,"Bis ungefähr 20%    (1)","Nein (1)","Nein    (0)","Die Position eines einfachen Mitarbeiters   (1)",3,0.8,2,null,"Mit Dekretes\n des Landeshauptmannes vom 10.07.2017 Nr. 22 ist diese Zuständigkeit auf das Amt für Gesundheitssteuerung übergegangen","Interne Überprüfung des Meidzinproduktes durch eine Arbeitsgruppe ","Das ärztliche Personal und das Pflegepersonal muss ein Gutachten über die Wirksamkeit des Einsatzes des Medizinproduktes abgeben.","Amt für Gesundheitssteuerung","1 Jahr"]
["23.3 - Amt für Gesundheitsökonomie","- B) Öffentliche Verträge",null,"Ausarbeitung des Leistungsverzeichnisses für eine Auftragsvergabe von Dienstleistungen: z. B. technische Beratung. \nWar zwar in den letzen Jahren nicht der Fall, könnte allerdings in nächster Zukunft vorkommen. ","B Phasen 1, 3, 4","Verwaltungspersonal des Landes ♦ \nAmt 23.4 ♦ Abteilung Gesundheit ♦ private Fachleute/Freiberufler","Analyse und Lösungsfindung bei besonders schwierigen bzw. komplexen Problemstellungen im Bereich der Gesundheitsökonomie","Entgelt/Vergütung für den vergebenen Auftrag","Notwendigkeit eine Tätigkeit auszulagern","erhobener Bedarf /\nausgearbeitetes Leistungsverzeichnis, das dem Amt 23.4 weitergeleitet wird, um die Ausschreibung vorzubereiten und das Vergabeverfahren abzuwickeln","LG Nr. 17/1993,  Art. 6;\nDekret LH Nr. 25 vom 31.05.1995;\nLegislativdekret Nr. 50 vom 18.04.2016 (Neues Vergabegesetz);\nLG Nr. 16 vom 17.12.2015\n","- Zuständiger Bediensteter",0,0,"Festlegung von Kriterien/Voraussetzungen innerhalb des Leistungsverzeichnisses, die bestimmte Bewerber bevorteilen","unzureichende Sachkenntnisse, um das notwendige Leistungsverzeichnis auszuarbeiten",null,"Das Verfahren ist teilweise von Gesetzen und/oder Verwaltungsakten geregelt (3) ","Ja, das Ergebnis des Entscheidungsprozesses ist an Subjekte außerhalb der Landesverwaltung gerichtet (5)","Nein, der Entscheidungsprozess betrifft ausschließlich die Landesverwaltung  (1)","Der Entscheidungsprozess bedingt zwar die Gewährung von Vergünstigungen bzw. Vorteilen an externe Subjekte, aber diese Vorteile haben keine besondere wirtschaftliche Relevanz (z.B. Gewährung von Studienbeihilfen an Studenten)  (3)","Nein  (1)","Ja, von einer anderen Person  (1)","Ja (1)","Nein (1)",16,2,"Bis ungefähr 20%    (1)","Nein (1)","Ja, in lokalen und nationalen Zeitungen oder Zeitschriften    (5)","Die Position einer Führungskraft   (5) ",12,3,6,null,"Die Ämter dieser Abteilung erstellen das Leistungsverzeichnis; das Amt 23.4 verfasst dann die Ausschreibung aufgrund der rechtlichen Vorgaben und wickelt anschließende das Vergabeverfahren ab. Wo bereits Abkommen bzw. Rahmenverträge bestehen (wie z. B. bei Übersetzungen komplexer Texte), wird alles vom Amt 23.4 erledigt.","1. alle Beauftragungen werden von einer anderen Verantwortungsstelle bearbeitet (Amt. 23.4), das auch die Korrektheit des Leistungsverzeichnisses kontrolliert und die Ausschreibung durchführt\n2. ständige Weiterbildung des damit betrauten Personals\n\n\n","1. Anzahl der eingereichten Rekursanträge\n2. Anzahl der vom Personal besuchten Weiterbildungsveranstaltungen","Amt für Gesundheitsökonomie","bereits abgelaufen","Ja","Ja","wirksam"]
["23.3 - Amt für Gesundheitsökonomie","- I) Kontrollen, Überprüfungen, Inspektionen und Sanktionen",null,"Erstellung von Gutachten zu den Bilanzen (Haushaltsvoranschlag und Jahresbilanz) des Sanitätsbetriebes","Erstellung des technisch-buchhalterischen Gutachtens","Ämter der Abteilung Gesundheit ♦ Landesrat ♦ Aufsichtsamt ♦ Landesregierung ♦ Sanitätsbetrieb ♦ Ministerium für Wirtschaft und Finanzen ♦ Gesundheitsministerium","korrekte Erstellung der Bilanzen des Sanitätsbetriebes, sodass sie von der Landesregierung genehmigt werden können","Bestätigung der Beauftragung des Generaldirektors","Vom Sanitätsbetrieb genehmigte und dem Landesassessorat übermittelte Bilanz (gesetzlich vorgeschriebenes Gutachten des Assessorates)","Erstellung des Gutachtens und Übermittlung an das Aufsichtsamt der APB, der es seinerseits der Landesregierung vorlegt und schildert. Die LR genehmigt die Bilanz.","LG Nr.   7/2001, Art. 23;\nLG Nr. 14/2001;\nGesetzesvertr. Dekret Nr. 118/2011","- Amtsdirektor",0,3,"Es besteht das Risiko, dass bei der Erstellung des Gutachtens nicht unvoreingenommen vorgegangen werde.\nDas Gutachten wird bei der  Wiederbestätigung des Generaldirektors des Sanitätsbetriebes mitberücksichtigt.","1) unzulängliche technische Ausbildung der mit der Gutachtenerstellung betrauten Mitarbeiter;\n2) unzureichende Anzahl an Mitarbeitern, die sich mit der Analyse und Gutachtenerstellung befassen können",null,"Das Verfahren ist teilweise von Gesetzen und/oder Verwaltungsakten geregelt (3) ","Ja, das Ergebnis des Entscheidungsprozesses ist an Subjekte außerhalb der Landesverwaltung gerichtet (5)","Nein, der Entscheidungsprozess betrifft ausschließlich die Landesverwaltung  (1)","Der Entscheidungsprozess bedingt zwar die Gewährung von Vergünstigungen bzw. Vorteilen an externe Subjekte, aber diese Vorteile haben keine besondere wirtschaftliche Relevanz (z.B. Gewährung von Studienbeihilfen an Studenten)  (3)","Nein  (1)","Ja, von einer anderen Person  (1)","Ja (1)","Nein (1)",16,2,"Von 20% bis ungefähr 60%    (3)","Nein (1)","Nein    (0)","Die Position einer Führungskraft   (5) ",9,2.2999999999999998,4.5999999999999996,null,"Das Amt für Gesundheitsökonomie liefert ein technisch-buchhalterisches Gutachten. Falls es Teile geben sollte, die in den Zuständigkeitsbereich anderer Ämter fallen, wird das Gutachten ergänzt. Das von der Abteilungsdirektorin gegengezeichnete Gutachten wird dem Aufsichtsamt übermittelt.","1) Das bestehende Verfahren muss verschriftlicht werden.\n2) Mehrere Mitarbeiter mit der Abfassung und Überprüfung des Gutachtens betrauen","1. Verschriftlichtes Verfahren \n2. Drei Mitarbeiter miteinbeziehen (bis zu 5 für spezifische Themen, falls notwendig)","Amt für Gesundheitsökonomie","bereits abgelaufen","Ja","Ja","wirksam"]
["23.3 - Amt für Gesundheitsökonomie","- J) Aufträge und Ernennungen",null,"Erneuerung der Ämter der Rechnungsrevisoren (laut Gesetzesvorgabe: alle drei Jahre)","Festlegung des notwendigen Verfahrens zur Einholung und Bewertung der Bewerbungen; begründete Auswahl der Kandidaten mit der höchsten Punktezahl (laut geltenden Rechtsnormen)","Private Freiberufler ♦ Sanitätsbetrieb ♦ Landesregierung ♦ Abteilung Gesundheit","Einhaltung der einschlägigen staatlichen Rechtsnormen ♦ Aufsicht über die buchhalterische, finanzielle und wirtschaftliche Ordnungsmäßigkeit bei der Erfassung der Einnahmen und Durchführung der Ausgaben, sowie der Vertragstätigkeit und der Güterverwaltung seitens des Sanitätsbetriebes","Erhalt des Auftrages und des entsprechenden Entgeltes","Der nahende Ablauftermin der Amtzeit.\nDas Verfahren wird von Amts wegen eingeleitet.","Beschluss zur Erneuerung des Rechnungsprüferkollegiums des Sanitätsbetriebes (nächste Erneuerung: 2020)","LG Nr.   7/2001 Art.13;\nGesetzesvertr. Dekret Nr. 502/92","- Abteilungsdirektor",105768.3,0,"Ernennung von Personen, die nicht aufgrund der gesetzlichen Vorschriften (Kompetenz, Unparteilichkeit und Unabhängigkeit) erfolgt ist.","zuständiger Mitarbeiter oder Amtsdirektor befinden sich in Interessenskonflikt",null,"Das Verfahren ist teilweise von Gesetzen und/oder Verwaltungsakten geregelt (3) ","Ja, das Ergebnis des Entscheidungsprozesses ist an Subjekte außerhalb der Landesverwaltung gerichtet (5)","Nein, der Entscheidungsprozess betrifft ausschließlich die Landesverwaltung  (1)","Der Entscheidungsprozess bedingt zwar die Gewährung von Vergünstigungen bzw. Vorteilen an externe Subjekte, aber diese Vorteile haben keine besondere wirtschaftliche Relevanz (z.B. Gewährung von Studienbeihilfen an Studenten)  (3)","Nein  (1)","Von mehreren Personen, darunter auch jene Person, die für vorhergehende Phasen zuständig war (3)","Ja (1)","Nein (1)",18,2.2999999999999998,"Bis ungefähr 20%    (1)","Nein (1)","Nein    (0)","Die Position einer Führungskraft   (5) ",7,1.8,4.1399999999999997,null,"Nächste Neuernennung im 2020 vorgesehen","1. Verschriftlichung des bestehenden Verfahrens\n2. Durchführung von Stichproben vonseiten eines anderen Amtes über die vom beauftragten Mitarbeiter vollzogenen Kontrollen zu Unvereinbarkeit und Nichterteilbarkeit\n3. Übergabe an ein anderes Amt der Verantwortung der Neubesetzung der Rechnungsrevisoren ab Erneuerung 2020\n4. Mehrere Mitarbeiter im Verfahren miteinbeziehen","1. Verschriftlichtes Verfahren\n2. Anzahl der durchgeführten Kontrollen\n3. Anzahl und Art der (jährlich) Beanstandungen, die aufgrund der Kontrolle hervorkamen.                                                                                                                                                                                                                                                    4. Anzahl externer für die Kontrolle aktivierter Partner ","Amt für Gesundheitsökonomie","bereits abgelaufen","Ja","Ja","wirksam"]
["23.3 - Amt für Gesundheitsökonomie","- Weiteres (angeben ob weitere riskante Tätigkeiten außer der oben genannten bestehen)","Es handelt sich hier um den Bereich \"Festlegung der Tarife für die wichtigsten Gesundheitsleistungen\".\nSollte der Sanitätsbetrieb entscheiden, Dienstleistungen auszulagern (privaten Partnern zu übergeben), werden die Leistungen der privaten Erbringer gemäß dieser Tarife vergütet.","Festlegung der Landestarifverzeichnisse der Gesundheitsleistungen","Festlegung des Tarifbetrages aufgrund der Kostenanalyse","Ämter der Abteilung Gesundheit ♦  Sanitätsbetrieb ♦ im Gesundheitswesen tätige private Einrichtungen ♦ Nutzer des Landesgesundheitsdienstes (LGD)","Analyse der Gesundheitsausgabe für eine jede Leistung ♦ Festlegung der Kostenbeteiligung für die Nutzer","Erbringung der Gesundheitsleistungen und ihre Vergütung ♦ geringstmögliche Kostenbeteiligung","Erbringung neuer Gesundheitsleistungen oder periodische Aktualisierung des Tarifs bestehender Leistungen, die Auswirkungen auf private Partner haben","mit Beschluss der Landesregierung festgelegte Tarife ","LG Nr.   7/2001;\nGesetzesvertr. Dekret Nr. 502/92","- Zuständiger Bediensteter",0,6,"Festlegung eines Tarifs zum Vorteil oder Nachteil eines privaten Partners (wohl wissend, dass der Dienst ausgelagert wird), Schaden für den Landesgesundheitsdienst","1) unzulängliche technische Ausbildung der mit der Gutachtenerstellung betrauten Mitarbeiter;\n2) unzureichende Anzahl an Mitarbeitern, die sich mit der Kostenanalyse und den verschiedenen Auswirkungen befassen können",null,"Das Verfahren ist teilweise von Gesetzen und/oder Verwaltungsakten geregelt (3) ","Ja, das Ergebnis des Entscheidungsprozesses ist an Subjekte außerhalb der Landesverwaltung gerichtet (5)","Nein, der Entscheidungsprozess betrifft ausschließlich die Landesverwaltung  (1)","Der Entscheidungsprozess bedingt zwar die Gewährung von Vergünstigungen bzw. Vorteilen an externe Subjekte, aber diese Vorteile haben keine besondere wirtschaftliche Relevanz (z.B. Gewährung von Studienbeihilfen an Studenten)  (3)","Nein  (1)","Ja, von einer anderen Person  (1)","Ja (1)","Nein (1)",16,2,"Von 20% bis ungefähr 60%    (3)","Nein (1)","Ja, in lokalen und nationalen Zeitungen oder Zeitschriften    (5)","Die Position einer Führungskraft   (5) ",14,3.5,7,null,null,"1. Ausarbeitung eines schriftlich festgehaltenen Standardverfahrens zur Aktualisierung des Tarifverzeichnisses\n2. Bestimmung der Kriterien für die Festlegung von Tarifen","1. Verschriftlichtes Verfahren\n2. Festgelegte Berechnungsmethode\n3. Einarbeitung neuer Kollegen durch erfahrene Mitarbeiter, um die notwendigen Kenntnisse über Kostenanalyse und Festlegung von Tarifen weiterzugeben\n4. Überwachung von Seiten eines weiteren Mitarbeiters","Amt für Gesundheitsökonomie","bereits abgelaufen","Ja","Ja","wirksam"]
["23.3 - Amt für Gesundheitsökonomie","- I) Kontrollen, Überprüfungen, Inspektionen und Sanktionen",null,"Bewertung der vom Generaldirektor erreichten Ziele (mittels BSC festgelegt) und Mitteilung der endgültigen Punktezahl für die Ergebniszulage","Bewertung der Zielerreichung unter Beteiligung aller Ämter der Abteilung Gesundheit; Ermittlung der entsprechenden Punktezahl zur Auszahlung der zustehenden Ergebniszulage","Ämter der Abteilung Gesundheit ♦ Landesrat ♦ Landesregierung ♦ Sanitätsbetrieb ♦ Generaldirektor des Sanitätsbetriebes","gute Verwaltung des Landesgesundheitsdienstes (LGD)","Erreichung einer positiven Bewertung und der entsprechenden Prämie ♦ Wiederbestätigung des Auftrages ","An das Assessorat übermittelter Bericht des Generaldirektor über die Zielerreichung (gesetzlich vorgeschriebenes Gutachten des Assessorates)","Technische Bewertung des Generaldirektors durch Ermittlung einer zusammenfassenden technischen Punktezahl","LG Nr.   7/2001, Art. 23;\nLG Nr. 14/2001;\nLandesgesundheitsplan","- Abteilungsdirektor",16404.240000000002,1,"Es besteht das Risiko, einer allzu großen Ermessensfreiheit bei der Erstellung des Gutachtens und dass bei der Punktevergabe verschiedene Maßstäbe verwendet werden.","Beteiligung mehrerer Ämter und Organisationseinheiten, die bereichsmäßig zuständig sind",null,"Das Verfahren ist teilweise von Gesetzen und/oder Verwaltungsakten geregelt (3) ","Ja, das Ergebnis des Entscheidungsprozesses ist an Subjekte außerhalb der Landesverwaltung gerichtet (5)","Nein, der Entscheidungsprozess betrifft ausschließlich die Landesverwaltung  (1)","Der Entscheidungsprozess bedingt zwar die Gewährung von Vergünstigungen bzw. Vorteilen an externe Subjekte, aber diese Vorteile haben keine besondere wirtschaftliche Relevanz (z.B. Gewährung von Studienbeihilfen an Studenten)  (3)","Nein  (1)","Von mehreren Personen, darunter auch jene Person, die für vorhergehende Phasen zuständig war (3)","Ja (1)","Nein (1)",18,2.2999999999999998,"Von 20% bis ungefähr 60%    (3)","Nein (1)","Nein    (0)","Die Position einer Führungskraft   (5) ",9,2.2999999999999998,5.2899999999999991,null,"Jedes Amt bewertet aus technischer Sicht die Ziele, die in seinen Zuständigkeitsbereich fallen. Das Amt für Gesundheitsökonomie sammelt die vergebenen Punktezahlen und fasst sie auf einer im Vorhinein vorbereiteten Übersicht zusammen. Die sich daraus ergebende Gesamtpunktezahl samt Begleitbericht der Ämter wird der Abteilungsdirektorin weitergeleitet. Dies dient dann der entgültigen Bewertung, die letztendlich von der Landesrätin abgegeben und dem Generaldirektor des Sanitätsbetriebes mitgeteilt wird.","1. Augenblick ausmachen, um gemeinsam die Bewertungsergebnisse auszutauschen und auf eine gewisse Einheitlichkeit  bei der Punktevergabe zu achten.\n2. Verfahren verschriftlichen","1. Verschriftlichtes Verfahren mit Einplanung von zusammenfassenden Treffen\n2. Durchführung dieser zusammenfassenden Treffen (zwischen Mai und Juli  findet jährlich die Bewertung des Generaldirektors statt)","Abteilungsdirektion","bereits abgelaufen","Ja","Ja","wirksam"]
["23.3 - Amt für Gesundheitsökonomie","- I) Kontrollen, Überprüfungen, Inspektionen und Sanktionen",null,"Bewertung der vom Generaldirektor erreichten Ziele (mittels BSC festgelegt) und Mitteilung der endgültigen Punktezahl für die Ergebniszulage","Bewertung der übermittelten Dokumente unter Berücksichtigung der Kriterien, die von der Gesetzgebung auf Staats- und Landesebene vorgeschriebenen sind, und Erstellung eines begründeten Gutachtens","Ämter der Abteilung Gesundheit ♦ Landesrat ♦ Aufsichtsamt ♦ Landesregierung ♦ Sanitätsbetrieb","gute Verwaltung des Sanitätsbetriebes","Es bestehen keine sekundären Interessen.","Vom Generaldirektor des Sanitätsbetriebes genehmigte  Beschlüsse zur Planung (gesetzlich vorgeschriebenes Gutachten des Assessorates)","Erstelltes Gutachten über die Rechtmäßigkeit des Beschluss des Sanitätsbetriebes, der allerdings auch inhaltliche Anmerkungen enthält (Vorkontrolle über die Betriebsführung)","LG Nr.   7/2001, Art. 23;\nLG Nr. 14/2001;\nLandesgesundheitsplan","- Abteilungsdirektor",0,2,"Es besteht das Risiko, dass das Gutachten durch nicht gesetzeskonforme Kriterien und Parameter beeinflusst werde. Das Gutachten trägt zur Wiederbestätigung des Generaldirektors bei.","1. Beteiligung mehrerer Ämter und Organisationseinheiten je nach Zuständigkeitsbereich\n2. Überprüfung des betrieblichen Dokumentes aus verschiedenen Blickwinkeln",null,"Das Verfahren ist teilweise von Gesetzen und/oder Verwaltungsakten geregelt (3) ","Ja, das Ergebnis des Entscheidungsprozesses ist an Subjekte außerhalb der Landesverwaltung gerichtet (5)","Nein, der Entscheidungsprozess betrifft ausschließlich die Landesverwaltung  (1)","Der Entscheidungsprozess bedingt zwar die Gewährung von Vergünstigungen bzw. Vorteilen an externe Subjekte, aber diese Vorteile haben keine besondere wirtschaftliche Relevanz (z.B. Gewährung von Studienbeihilfen an Studenten)  (3)","Nein  (1)","Von mehreren Personen, darunter auch jene Person, die für vorhergehende Phasen zuständig war (3)","Ja (1)","Nein (1)",18,{"$f":"ROUND(+Z39/8,1)","v":2.2999999999999998},"Von 20% bis ungefähr 60%    (3)","Nein (1)","Nein    (0)","Die Position einer Führungskraft   (5) ",11,{"$f":"ROUND(+AF39/4,1)","v":2.8},6.4399999999999995,null,"Jedes Amt bewertet aus technischer Sicht jene Aspekte, die in seinen Zuständigkeitsbereich fallen. Das Amt für Gesundheitsökonomie und die Abteilungsdirektion (teilen sich die zu bewertenden Dokumente auf) sammeln die verschiedenen Bewertungen und erstellen ein Gutachten, das der Abteilungsdirektorin zur Unterschrift vorgelegt wird. Das Gutachten wird dem Landesrat vorgelegt, der Ergänzungen und Änderungen einfordern kann. Dieses Gutachten wird dann dem Aufsichtsamt weitergeleitet, das den Beschluss des Sanitätsbetriebes der Landesregierung zur Genehmigung unterbreitet.","Verschriftlichung des Verfahrens mit Angabe der Verantwortlichen, Fälligkeiten und Bewertungskriterien","Verschriftlichtes Verfahren","Abteilungsdirektion","bereits abgelaufen","Ja","Ja","wirksam"]
["23.4 Amt für Gesundheitsordnung","- D) Gewährung und Auszahlung von Subventionen, Beiträgen, Zuschüssen, Prämien und wirtschaftlichen Vergünstigungen jeglicher Art",null,"Gewährung von Beiträgen für laufende Ausagaben an den Südtiroler Sanitätsbetrieb betreffend die Kinderbetreuung","D Phase 3","Südtiroler Sanitätsbetrieb","Unterstützung des Personals des Südtiroler Sanitätsbetriebes ","Möglichkeit der Bediensteten des Südtiroler Sanitätsbetriebes eine Kinderbetreuungsstätte vor Ort zu haben und Interesse des Sanitätsbetriebes Personal zu rekrutieren (vor allem Sanitätspersonal)","Eingereichtes Ansuchen","Beschluss der Landesregierung","L.G. vom 9. Juni 1998, Nr. 5, Artikel 18 und Beschluss der Landesregierung vom 19. April 2010, Nr. 671","- Amtsdirektor",599999.49,1,"verzerrte Bewertung hinsichtlich der Zulässigkeit eines Beitragsgesuchs","unvollständige Unterlagen für die Berechnung der Zuweisung","keine","Keine, es ist vollständig geregelt (1)","Ja, das Ergebnis des Entscheidungsprozesses ist an Subjekte außerhalb der Landesverwaltung gerichtet (5)","Nein, der Entscheidungsprozess betrifft ausschließlich die Landesverwaltung  (1)","Der Entscheidungsprozess bedingt zwar die Gewährung von Vergünstigungen bzw. Vorteilen an externe Subjekte, aber diese Vorteile haben keine besondere wirtschaftliche Relevanz (z.B. Gewährung von Studienbeihilfen an Studenten)  (3)","Nein  (1)","Nein, die Kontrolle wird von derselben Person ausgeübt (4) ","Ja (1)","Nein (1)",17,2.1,"Bis ungefähr 20%    (1)","Nein (1)","Wir haben diesbezüglich keine Kenntnis    (1)","Die Position einer Führungskraft   (5) ",8,2,4.2,2,"Mit Dekretes\n des Landeshauptmannes vom 10.07.2017 Nr. 22 ist diese Zuständigkeit auf das Amt für Gesundheitsordnung übergegangen.","stichprobenartige Kontrollen betreffend das Verfahren für die Zuweisung und Einhaltung der vorgegebenen Kriterien","Verringerung der Ermessensfreiheit durch genaue Definition von Kriterien mit Beschluss der Landesregierung","Amt für Gesundheitsordnung","bereits abgelaufen","Ja","Ja","wirksam"]
[{"$f":"$A$40","v":"23.4 Amt für Gesundheitsordnung"},"- D) Gewährung und Auszahlung von Subventionen, Beiträgen, Zuschüssen, Prämien und wirtschaftlichen Vergünstigungen jeglicher Art",null,"Finanzierung der vom innerhalb des Sanitätsbetriebes bestehenden Beirats für Chancengleichheit und Aufwertung der Gender-Differenzen durchgeführten Tätigkeiten","Bei der Bewertung der Tätigkeiten","Südtiroler Sanitätsbetrieb","Gewährleistung von Chancengleichheit in Südtiroler Sanitätsbetrieb ","Vorbeugung der Diskriminierung ","Eingereichtes Ansuchen","Beschluss der Landesregierung","L.G. vom 5. März 2001, Nr. 7, Artikel 22-bis und Beschluss der Landesregierung vom 14. Oktober 2013, Nr. 1524","- Amtsdirektor",12546.71,1,"verzerrte Bewertung hinsichtlich der Zulässigkeit der Unterlagen zur Programmierung der Tätigkeit","unvollständige u/od nicht klare Unterlagen für die Berechnung der Zuweisung","keine","Keine, es ist vollständig geregelt (1)","Ja, das Ergebnis des Entscheidungsprozesses ist an Subjekte außerhalb der Landesverwaltung gerichtet (5)","Nein, der Entscheidungsprozess betrifft ausschließlich die Landesverwaltung  (1)","Der Entscheidungsprozess bedingt zwar die Gewährung von Vergünstigungen bzw. Vorteilen an externe Subjekte, aber diese Vorteile haben keine besondere wirtschaftliche Relevanz (z.B. Gewährung von Studienbeihilfen an Studenten)  (3)","Nein  (1)","Nein, die Kontrolle wird von derselben Person ausgeübt (4) ","Ja (1)","Nein (1)",17,2.1,"Bis ungefähr 20%    (1)","Nein (1)","Wir haben diesbezüglich keine Kenntnis    (1)","Die Position einer Führungskraft   (5) ",8,2,4.2,3,"Mit Dekretes\n des Landeshauptmannes vom 10.07.2017 Nr. 22 ist diese Zuständigkeit auf das Amt für Gesundheitsordnung übergegangen.","Einhaltung des zweckgebundenen Betrages bei der Finanzierung der Tätigkeiten ","Genehmigung des Programmes","Amt für Gesundheitsordnung","bereits abgelaufen","Ja","Ja","wirksam"]
[{"$f":"$A$40","v":"23.4 Amt für Gesundheitsordnung"},"- C) Ermächtigungen oder Konzessionen ",null,"Anerkennung der im Ausland geleisteten sanitären Dienste","Berechnung Zeiten der geleisteten Dienste ","Ärztinnen und Ärzte und andere Gesundheitsberufe","Rekrutierung Personal und Ermöglichung des Zugangs zu Wettbewerben (insbesondere Leitung von komplexen Strukturen)","Rekrutierung Personal ","Eingang Ansuchen","Anerkennungsdekret des Landesrates","Gesetz vom 10. Juli 1960, Nr. 735; Artikel 80 des Gesetzes vom 23. Dezember 1978, Nr. 833; Dekret des Präsidenten der Republik vom 20. Dezember 1979, Nr. 761;  Artikel 22 des Dekrets des Präsidenten der Republik vom 27. März 2001, Nr.220; Beschluss der Landesregierung vom 25. September 2000, Nr. 3481; Art. 16 des Landesgesetzes vom 25. Juni 1976, Nr. 25  (Punkte für Wettbewerb); Artikel 26 des Landesgesetzes vom 13. November 1995, Nr. 22; Regionalgesetz Nr. 20 von 1970 (wirtschaftliche Anerkennung)","- Amtsdirektor",0,19,"verzerrte Bewertung hinsichtlich der Zulässigkeit des Ansuchens","die eingereichten Dokumente weisen keine einheitliche Form auf, da sie von verschiedenen Behörden des Auslands ausgestellt werden","keine","Keine, es ist vollständig geregelt (1)","Ja, das Ergebnis des Entscheidungsprozesses ist an Subjekte außerhalb der Landesverwaltung gerichtet (5)","Nein, der Entscheidungsprozess betrifft ausschließlich die Landesverwaltung  (1)","Der Entscheidungsprozess bedingt zwar die Gewährung von Vergünstigungen bzw. Vorteilen an externe Subjekte, aber diese Vorteile haben keine besondere wirtschaftliche Relevanz (z.B. Gewährung von Studienbeihilfen an Studenten)  (3)","Nein  (1)","Nein, die Kontrolle wird von derselben Person ausgeübt (4) ","Ja (1)","Nein (1)",17,2.1,"Bis ungefähr 20%    (1)","Nein (1)","Wir haben diesbezüglich keine Kenntnis    (1)","Die Position einer Führungskraft   (5) ",8,2,4.2,1,"Mit Dekretes\n des Landeshauptmannes vom 10.07.2017 Nr. 22 ist diese Zuständigkeit auf das Amt für Gesundheitsordnung übergegangen.","Leitfaden für das Ausfüllen des Ansuchens und für die Vollständigkeit der beizulegenden Unterlagen","Überprüfung des Ansuchens anhand des Leitfadens und eventuelle Ergänzungen bzw. Verbesserungen in Bezug auf die Vollständlichkeit des Leitfadens.","Amt für Gesundheitsordnung","bereits abgelaufen","ja","ja","wirksam"]
[{"$f":"$A$40","v":"23.4 Amt für Gesundheitsordnung"},"- A) Personalaufnahme und Karriereentwicklung",null,"Ernennung Mitglied und Ersatzmitglied der Prüfungskommission","A3 - Auswahl des Mitglieds bzw. des Ersatzmitglieds","Südtiroler Sanitätsbetrieb","Ermöglichung der Wettbewerbe","Rekrutierung Personal ","Antrag Sanitätsbetrieb/Gesundheitsbezirk","Nominierungsschreiben an Gesundheitsbetrieb/Gesundheitsbezirk","Dekret des Landeshauptmanns (DLH) 34/2013 Art. 6, Absatz 1","- Amtsdirektor",0,38,"Bevorzugung von Personen bei der Ernennung der Prüfungskommissionsmitglieder","Mangel an potentiellen Mitgliedern mit den notwendigen Voraussetzungen","keine","Das Verfahren ist teilweise von Gesetzen und/oder Verwaltungsakten geregelt (3) ","Ja, das Ergebnis des Entscheidungsprozesses ist an Subjekte außerhalb der Landesverwaltung gerichtet (5)","Nein, der Entscheidungsprozess betrifft ausschließlich die Landesverwaltung  (1)","Der Entscheidungsprozess bedingt zwar die Gewährung von Vergünstigungen bzw. Vorteilen an externe Subjekte, aber diese Vorteile haben keine besondere wirtschaftliche Relevanz (z.B. Gewährung von Studienbeihilfen an Studenten)  (3)","Nein  (1)","Nein, die Kontrolle wird von derselben Person ausgeübt (4) ","Ja (1)","Nein (1)",19,2.4,"Bis ungefähr 20%    (1)","Nein (1)","Wir haben diesbezüglich keine Kenntnis    (1)","Die Position einer Führungskraft   (5) ",8,2,4.8,null,"Mit Dekretes\n des Landeshauptmannes vom 10.07.2017 Nr. 22 ist diese Zuständigkeit auf das Amt für Gesundheitsordnung übergegangen.","gesetzliche Vorgaben in Bezug auf Proporz, Ernennungsverfahren, usw","die Ernennungen erfolgen aufgrund der gesetzlichen Bestimmungen","Amt für Gesundheitsordnung","bereits abgelaufen","Ja","Ja","wirksam"]
[{"$f":"$A$42","v":"23.4 Amt für Gesundheitsordnung"},"- I) Kontrollen, Überprüfungen, Inspektionen und Sanktionen",null,"präventive Gesetzesmäßigkeitskontrolle von Verordnungen, Veränderungen des Personalbestandes und des Stellenplanes des Sanitätsbetriebes",null,"Südtiroler Sanitätsbetrieb","Gewährleistung der WBS (wesentliche Betreuungsstandards)",{"$f":"$G$44","v":"Gewährleistung der WBS (wesentliche Betreuungsstandards)"},"Antrag Sanitätsbetrieb","Gutachten des Amtes 23.4 Gesundheitsordnung","Landesgesetz Nr. 3/2017, Art. 5, Absatz 1, Buchstaben a)","- Amtsdirektor",0,61,"verzerrte Sichtweise bei der Formulierung des Gutachtens","Interpretationsspielraum","keine","Das Verfahren ist teilweise von Gesetzen und/oder Verwaltungsakten geregelt (3) ","Ja, das Ergebnis des Entscheidungsprozesses ist an Subjekte außerhalb der Landesverwaltung gerichtet (5)","Nein, der Entscheidungsprozess betrifft ausschließlich die Landesverwaltung  (1)","Der Entscheidungsprozess bedingt zwar die Gewährung von Vergünstigungen bzw. Vorteilen an externe Subjekte, aber diese Vorteile haben keine besondere wirtschaftliche Relevanz (z.B. Gewährung von Studienbeihilfen an Studenten)  (3)","Nein  (1)","Nein, die Kontrolle wird von derselben Person ausgeübt (4) ","Zum Teil (3)","Nein (1)",21,2.6,"Bis ungefähr 20%    (1)","Nein (1)","Wir haben diesbezüglich keine Kenntnis    (1)","Die Position einer Führungskraft   (5) ",8,2,5.2,1,"Mit Dekretes\n des Landeshauptmannes vom 10.07.2017 Nr. 22 ist diese Zuständigkeit auf das Amt für Gesundheitsordnung übergegangen.","Überprüfung der zu begutachtenden Maßnahme im Team","interne Organisation des Amtes, um zu ermöglichen, dass die Kontrolle vom Team durchgeführt werden kann","Amt für Gesundheitsordnung","bereits abgelaufen","Ja","Ja","wirksam"]
["23.4 Amt für Gesundheitsordnung","- D) Gewährung und Auszahlung von Subventionen, Beiträgen, Zuschüssen, Prämien und wirtschaftlichen Vergünstigungen jeglicher Art",null,"Gewährung Studienbeihilfen an Ärzte für die Fachausbildung an vertragsgebundenen Einrichtungen im Ausland ","Phase der Bewertung des Ansuchens","Kliniken im Ausland","Deckung des Facharztbedarfs zur Gewährleistung der WBS",{"$f":"$G$45","v":"Deckung des Facharztbedarfs zur Gewährleistung der WBS"},"Festlegung des Bedarfs an auszubildenenden Fachärzten und Festlegung der Kriterien ","Zuweisung der Ausbildungsstelle und Liquidierung der Studienbeihilfe ","L.G 14/2002;\nDLH 4/2008\n","- Amtsdirektor",486967.33,8,"Teilweise oder verzerrte Bewertung des eingereichten Gesuchs, unangemessene Punktezuweisung seitens der Bewertungskommission ","Unvolleständigkeit der von den Ärzten eingereichten Unterlagen, Kontrolle des Gesuchs und der Unterlagen seitens eines einzigen Bediensteten, Interessenskonflikt der Mitglieder der Bewertungskommission, ","keine","Das Verfahren ist teilweise von Gesetzen und/oder Verwaltungsakten geregelt (3) ","Ja, das Ergebnis des Entscheidungsprozesses ist an Subjekte außerhalb der Landesverwaltung gerichtet (5)","Nein, der Entscheidungsprozess betrifft ausschließlich die Landesverwaltung  (1)","Der Entscheidungsprozess bedingt zwar die Gewährung von Vergünstigungen bzw. Vorteilen an externe Subjekte, aber diese Vorteile haben keine besondere wirtschaftliche Relevanz (z.B. Gewährung von Studienbeihilfen an Studenten)  (3)","Nein  (1)","Von mehreren Personen, darunter auch jene Person, die für vorhergehende Phasen zuständig war (3)","Ja (1)","Ja (5)",22,2.8,"Bis ungefähr 20%    (1)","Nein (1)","Wir haben diesbezüglich keine Kenntnis    (1)","Die Position einer Führungskraft   (5) ",8,2,5.6,9,"Mit Dekretes\n des Landeshauptmannes vom 10.07.2017 Nr. 22 ist diese Zuständigkeit auf das Amt für Gesundheitsordnung übergegangen.\n\nDie Kriterien werden mit Beschluss der Landesregierung festgelegt. Die Unterlagen werden von der Kommission bewertet. Die Kolloquien werden an den Ausbildungseinrichtungen im Ausland durchgeführt. Zum Kolloquium werden jene Ärzte eingeladen, welche an den ersten drei Positionen der einzelnen Rangordnungen nach Fachrichtung gereiht sind.  Die Gewinner werden von der Verantwortlichen der Ausbildungsstrukturen ernannt. Die Ausbildungsstelle wird an die Gewinner zugewiesen. ","Gewährung an die Ärzte einer Frist für die Ergänzung deer fehlenden Unterlagen, interne Anweisungen, welche die Zusammenarbeit von meheren Bediensteten (mindestens zwei) bei der Kontrolle der Unterlagen gewährleisten, unter der Verantwortung der Amtsdirektorin,  Erklärung seitens der Kommissionsmitglieder des Nichtvorhandenseins eines Interessenskonfliktes, Rotierung bei der Ernennung der Kommissionsmitglieder.","Interne Orgainsation des Amtes, um zu gewährleisten, dass mindestens zwei Bedienstete die Kontrollen durchführen, Erstellung von Formulare für die Erklärungen  seitens der Kommissionsmitglieder, Erstellung einer Liste von möglichen Kommissionsmitgliedern ","Amt für Gesundheitsordnung","bereits abgelaufen","Ja","Ja","wirksam"]
["23.4 Amt für Gesundheitsordnung","- D) Gewährung und Auszahlung von Subventionen, Beiträgen, Zuschüssen, Prämien und wirtschaftlichen Vergünstigungen jeglicher Art",null,"Gewährung Studienbeihilfen an Ärzte für die Facharztausbildung im Südtiroler Sanitätsbetrieb ","Phase der Bewertung des Ansuchens","Südtiroler Sanitätsbetrieb und auszubildende Ärzte",{"$f":"G45","v":"Deckung des Facharztbedarfs zur Gewährleistung der WBS"},{"$f":"H45","v":"Deckung des Facharztbedarfs zur Gewährleistung der WBS"},"Antrag um Liquidierung ","Liquidierung","L.G 14/2002;\nDLH 4/2008\n","- Amtsdirektor",406883.49,3,"Das Verfahren betrifft die Liquidierung von Studienstipendien zugunsten von Ärzten, welche bereits in Facharztausbildung sind, aufgrund der Anfrage seitens des Sanitätsbetriebes.  ","Das Verfahren betrifft die Liquidierung von Studienstipendien zugunsten von Ärzten, welche bereits in Facharztausbildung sind, aufgrund der Anfrage seitens des Sanitätsbetriebes.  ","keine","Das Verfahren ist teilweise von Gesetzen und/oder Verwaltungsakten geregelt (3) ","Ja, das Ergebnis des Entscheidungsprozesses ist an Subjekte außerhalb der Landesverwaltung gerichtet (5)","Ja, der Entscheidungsprozess sieht die Beteiligung von mehr als 3 Verwaltungen vor  (3)","Der Entscheidungsprozess bedingt zwar die Gewährung von Vergünstigungen bzw. Vorteilen an externe Subjekte, aber diese Vorteile haben keine besondere wirtschaftliche Relevanz (z.B. Gewährung von Studienbeihilfen an Studenten)  (3)","Nein  (1)","Von mehreren Personen, darunter auch jene Person, die für vorhergehende Phasen zuständig war (3)","Ja (1)","Ja (5)",24,3,"Bis ungefähr 20%    (1)","Nein (1)","Wir haben diesbezüglich keine Kenntnis    (1)","Die Position einer Führungskraft   (5) ",8,2,6,1,"Mit Dekretes\n des Landeshauptmannes vom 10.07.2017 Nr. 22 ist diese Zuständigkeit auf das Amt für Gesundheitsordnung übergegangen.\n\nDas Verfahren betrifft die Liquidierung von Studienstipendien zugunsten von Ärzten, welche bereits in Facharztausbildung sind, aufgrund der Anfrage seitens des Sanitätsbetriebes.  ","keine Maßnahme notwendig, weil das Verfahren  vollständig geregelt ist. ","keine Maßnahme notwendig, weil das Verfahren  vollständig geregelt ist. ","Amt für Gseundheitsordnung","bereits abgelaufen","Ja","Ja","wirksam"]
["23.4 Amt für Gesundheitsordnung","- D) Gewährung und Auszahlung von Subventionen, Beiträgen, Zuschüssen, Prämien und wirtschaftlichen Vergünstigungen jeglicher Art",null,"Gewährung Studienbeihilfen an Ärzte für die Fachausbildung an den Universitäten von Verona und Padua ","Phase der Bewertung des Ansuchens","MIUR und Universitäten in Italien",{"$f":"$G$45","v":"Deckung des Facharztbedarfs zur Gewährleistung der WBS"},"Aktivierung der Spezialisierungsschulen ","Festlegung seitens des Landes des Bedarfs an zusätzlichen Ausbildungsstellen an den Spezialisierungsschulen von Verona und Padua und Reservierung der Stellen ","Liquidierungsdekret für die Finanzierung der zusätzlichen Stellen ","Gvt. 368/1999\nL.G 14/2002\nDLH 4/2008\n","- Amtsdirektor",1701519.41,10,"Aufgrund der Anfrage des Gesundheitsministeriums erhebt die Landesregierung den dreijährigen Bedarf an Fachärzten in Bezug auf die einzelnen Spezailsierungen, nach Anhören des Landeskomitees für die Planung im Gesundheitswesen und der Ärztekammer. Aufgrund des erhobenen Bedarfs, welcher vom Gesundheitsministerium genehmigt wurde, reserviert das Land jedes Jahr Ausbildungsstellen an den Universitäten von Verona und Padua und teilt diese dem MIUR mit, welches sie in die nationale Wettbewerbsausschreibung aufnimmt. Das Wettbewerbsverfahren wird gänzlich vom MIUR abgewickelt, welches dem Land die Gewinner der reservierten Ausbildungsstellen mitteilt. Die Ausbildungsstellen werden vom MIUR zugewiesen und in der Folge vom Land finanziert. ","Aufgrund der Anfrage des Gesundheitsministeriums erhebt die Landesregierung den dreijährigen Bedarf an Fachärzten in Bezug auf die einzelnen Spezailsierungen, nach Anhören des Landeskomitees für die Planung im Gesundheitswesen und der Ärztekammer. Aufgrund des erhobenen Bedarfs, welcher vom Gesundheitsministerium genehmigt wurde, reserviert das Land jedes Jahr Ausbildungsstellen an den Universitäten von Verona und Padua und teilt diese dem MIUR mit, welches sie in die nationale Wettbewerbsausschreibung aufnimmt. Das Wettbewerbsverfahren wird gänzlich vom MIUR abgewickelt, welches dem Land die Gewinner der reservierten Ausbildungsstellen mitteilt. Die Ausbildungsstellen werden vom MIUR zugewiesen und in der Folge vom Land finanziert. ","keine","Keine, es ist vollständig geregelt (1)","Ja, das Ergebnis des Entscheidungsprozesses ist an Subjekte außerhalb der Landesverwaltung gerichtet (5)","Ja, der Entscheidungsprozess sieht die Beteiligung von mehr als 3 Verwaltungen vor  (3)","Der Entscheidungsprozess bedingt zwar die Gewährung von Vergünstigungen bzw. Vorteilen an externe Subjekte, aber diese Vorteile haben keine besondere wirtschaftliche Relevanz (z.B. Gewährung von Studienbeihilfen an Studenten)  (3)","Ja (5)","Von mehreren Personen, darunter auch jene Person, die für vorhergehende Phasen zuständig war (3)","Ja (1)","Ja (5)",26,3.3,"Bis ungefähr 20%    (1)","Nein (1)","Wir haben diesbezüglich keine Kenntnis    (1)","Die Position einer Führungskraft   (5) ",8,2,6.6,null,"Mit Dekretes\n des Landeshauptmannes vom 10.07.2017 Nr. 22 ist diese Zuständigkeit auf das Amt für Gesundheitsordnung übergegangen.\n\nAufgrund der Anfrage des Gesundheitsministeriums erhebt die Landesregierung den dreijährigen Bedarf an Fachärzten in Bezug auf die einzelnen Spezailsierungen, nach Anhören des Landeskomitees für die Planung im Gesundheitswesen und der Ärztekammer. Aufgrund des erhobenen Bedarfs, welcher vom Gesundheitsministerium genehmigt wurde, reserviert das Land jedes Jahr Ausbildungsstellen an den Universitäten von Verona und Padua und teilt diese dem MIUR mit, welches sie in die nationale Wettbewerbsausschreibung aufnimmt. Das Wettbewerbsverfahren wird gänzlich vom MIUR abgewickelt, welches dem Land die Gewinner der reservierten Ausbildungsstellen mitteilt. Die Ausbildungsstellen werden vom MIUR zugewiesen und in der Folge vom Land finanziert. ","keine Maßnahme notwendig, weil das Verfahren  vollständig geregelt ist. ","keine Maßnahme notwendig, weil das Verfahren  vollständig geregelt ist. ","Amt für Gseundheitsordnung","bereits abgelaufen","Ja","Ja","wirksam"]
["23.4 Amt für Gesundheitsordnung","- B) Öffentliche Verträge",null,"Ankäufe von Dienstleistungen und Lieferungen bis zu 40.000,00 Euro \n(im Falle von Exclusivrechten oder Monopolstellung auf internationaler Ebene wird die Direktvergabe auch über dem Schwellenwert von 40.000,00 Euro vorgenommen)","Festlefung der Teilnahmekriterien, der Zuschlagskriterien und der Bewertungskriterien","Wirtscchaftsteilnehmer","Deckung eines Bedarfes","Wirtschaftliche Interessen ","Bedarfserhebung und Programmierung der Ankäufe, Erstellung der Ausschreibungsunterlagen, Auswahl des Verfahrens, Bewertung der Angebote ","Zuweisung des Auftrages und Vertragsabschluss, Überprfüngen im Laufe der Vertragsdurchführung, Liquidierung ","L.G. 17/1993\nGvD 163/2006\n\n","- Amtsdirektor",1361861.77,61,"übertriebener Anwenung von Dringlichkeitsverfahren, Abweichnung von den Bestimmungen im Bereich der Auftragvergabe,  verzerrte Festlegung der wirtschaftlichen und fachlichen Voraussetzungen um Auswahl an Teilnehmern an der Ausschreibung  widerrechtlich zu verringern, fehlende Anwendung des Rotationsprinzips bei der Auswahl des Vertragspartners bei Ankäufen von Standarddienstleistungen und - lieferungen, Veränderung oder Unterlassung bei der Überprüfung der Voraussetzungen, verzerrte oder unterlassene Überprüfung in Bezug auf das effektive Vorschreiten der Leistungen, verzerrte oder unterlassene Kontrolle der Ausgaben ","fehlende Programmierung, non spezificsh ausgebildetes Personal im Bereich der öffentlichen Aufträge, fehelnde Marktrecherchen, Kommissionsmitglieder in Interessenskonflikt, Überprüfung der Vorausssetzungen seitens eine einzigen Bediensteten in Interessenskonflikt, Unvollständigkeit der vom Wirtschaftsteilnehmer übermittelten Unterlagen, Kontrolle seitens eines einzigen Bediensteten im Interessenskonflikt","keine","Keine, es ist vollständig geregelt (1)","Ja, das Ergebnis des Entscheidungsprozesses ist an Subjekte außerhalb der Landesverwaltung gerichtet (5)","Nein, der Entscheidungsprozess betrifft ausschließlich die Landesverwaltung  (1)","Der Entscheidungsprozess bedingt die Gewährung von erheblichen Vergünstigungen bzw. Vorteilen an externe Subjekte (z.B. Erteilung von öffentlichen Aufträgen)  (5)","Nein  (1)","Ja, die Kontrolle stellt ein wirksames Instrument zur Neutralisierung des Risikos dar  (1)","Ja (1)","Ja (5)",20,2.5,"Bis ungefähr 20%    (1)","Nein (1)","Nein    (0)","Die Position einer Führungskraft   (5) ",7,1.8,4.5,2,"Mit Dekretes\n des Landeshauptmannes vom 10.07.2017 Nr. 22 ist diese Zuständigkeit auf das Amt für Gesundheitsordnung übergegangen.","Jahresprogramm der Ankäufe von Leistungen udn Lieferunge für alle Ämter der Abteilung, welches mit Dekret der Abteilungsdirektorin genehmigt wird, Schaffung im Amt 23.5 eines Pools von Bediensteten, welche im Bereich der öffentlichen Aufträge ausgebildet sind, welches sämtliche Auftragsverfahren für alle Ämter der Abteilung durchführt, in der Ausarbeitung der Leistungsverzeichnisse wird das Pool von den Experteen der einzelnen  Ämter unterstützt, Erstellung der Unterlagen der Markrecherchen, Bereisthaltung von Listen von möglichen Kommissionsmitgliedern, welche nach Professionalität unterteilt sind, und Auswahl der Mitglieder durch Zufallsziehung, interne Anweisungen, welche die Zusammenarbeit von mehreren Bediensteten (mindestens zwei) bei Überprüfung der Voraussetzungen gewährleisten, unter der Verantwortung der Amtsdirektorin, interne Anweisungen, welche die Aufteilung der Kompetenzen gewährleisten:Der Bedienstete, welcher das Auftragsverfahren durchführt, wickelt nicht die Kontrolle der Ausgabendokumentation ab, welche stattdessen von einem anderen Bediensteten druchgeführt wird, Gewährung an den Wirtschaftsteilnehmer einer Frist für die Ergänzung der fehlenden Ausgabendokumentation. \n ","Erstellung am Anfang jeden Jahres des Jahresprogramms, im Rahmen der Gesundheistreform ist vorgesehgen, dass der Pool gegründet wird (Entscheidung der Landesregierung), Interne Organisation des Amtes, um zu gewährleisten, dass mindestens zwei Bedienstete die Überprüfungen durchführen, Rotierung der Kommissionsmitglieder der Ausschreibungen, interne Organisation des Amtes, um die Aufteilung der Kompetenzen zu gewährleisten, ","Abteilungdirektorin, alle Ämter der Abteilung, Amt  für Gesundheitsordnung","bereits abgelaufen","Ja","Ja","wirksam"]
["23.4 Amt für Gesundheitsordnung","- B) Öffentliche Verträge",null,"Ankäufe von Dienstleistungen und Lieferungen von 40.000,00 Euro bis zum EU-Schwellenwert \n","Phase der Erarbeitung der Ausschreibung, Bewertungsphase der Angebote, Zuschlagsphase","Ämter und Abteilung Gesundheit ",{"$f":"G48","v":"Deckung eines Bedarfes"},{"$f":"H48","v":"Wirtschaftliche Interessen "},"Bedarfserhebung und Programmierung der Ankäufe, Erstellung der Ausschreibungsunterlagen, Auswahl des Verfahrens, Bewertung der Angebote ","Zuweisung des Auftrages und Vertragsabschluss, Überprfüngen im Laufe der Vertragsdurchführung, Liquidierung ","L.G. 17/1993\nGvD 163/2006\n\n","- Bereichskoordinator",0,0,"übertriebener Anwendung von Dringlichkeitsverfahren, Abweichnung von den Bestimmungen im Bereich der Auftragvergabe,  verzerrte Festlegung der wirtschaftlichen und fachlichen Voraussetzungen um Auswahl an Teilnehmern an der Ausschreibung  widerrechtlich zu verringern, fehlende Anwendung des Rotationsprinzips bei der Auswahl des Vertragspartners bei Ankäufen von Standarddienstleistungen und - lieferungen, Veränderung oder Unterlassung bei der Überprüfung der Voraussetzungen, verzerrte oder unterlassene Überprüfung in Bezug auf das effektive Vorschreiten der Leistungen,","fehlende Programmierung, non spezificsh ausgebildetes Personal im Bereich der öffentlichen Aufträge, fehelnde Marktrecherchen, Kommissionsmitglieder in Interessenskonflikt, Überprüfung der Vorausssetzungen seitens eine einzigen Bediensteten in Interessenskonflikt, Unvollständigkeit der vom Wirtschaftsteilnehmer übermittelten Unterlagen, Kontrolle seitens eines einzigen Bediensteten im Interessenskonflikt","keine","Keine, es ist vollständig geregelt (1)","Ja, das Ergebnis des Entscheidungsprozesses ist an Subjekte außerhalb der Landesverwaltung gerichtet (5)","Nein, der Entscheidungsprozess betrifft ausschließlich die Landesverwaltung  (1)","Der Entscheidungsprozess bedingt die Gewährung von erheblichen Vergünstigungen bzw. Vorteilen an externe Subjekte (z.B. Erteilung von öffentlichen Aufträgen)  (5)","Nein  (1)","Von mehreren Personen, darunter auch jene Person, die für vorhergehende Phasen zuständig war (3)","Ja (1)","Ja (5)",22,2.8,"Bis ungefähr 20%    (1)","Nein (1)","Wir haben diesbezüglich keine Kenntnis    (1)","Die Position einer Führungskraft   (5) ",8,2,5.6,1,"Mit Dekretes\n des Landeshauptmannes vom 10.07.2017 Nr. 22 ist diese Zuständigkeit auf das Amt für Gesundheitsordnung übergegangen.","Jahresprogramm der Ankäufe von Leistungen udn Lieferunge für alle Ämter der Abteilung, welches mit Dekret der Abteilungsdirektorin genehmigt wird, Schaffung im Amt 23.5 eines Pools von Bediensteten, welche im Bereich der öffentlichen Aufträge ausgebildet sind, welches sämtliche Aftragsverfahren für alle Ämter der Abteilung durchführt, in der Ausarbeitung der Leistungsverzeichnisse wird das Pool von den Experten der einzelnen  Ämter unterstützt, Erstellung der Unterlagen der Markrecherchen, Bereithaltung von Listen von möglichen Kommissionsmitgliedern, welche nach Professionalität unterteilt sind, und Auswahl der Mitglieder durch Zufallsziehung, interne Anweisungen, welche die Zusammenarbeit von mehreren Bediensteten (mindestens zwei) bei Überprüfung der Voraussetzungen gewährleisten, unter der Verantwortung der Amtsdirektorin, interne Anweisungen, welche die Aufteilung der Kompetenzen gewährleisten:Der Bedienstete, welcher das Auftragsverfahren durchführt, wickelt nicht die Kontrolle der Ausgabendokumentation ab, welche stattdessen von einem anderen Bediensteten druchgeführt wird, Gewährung an den Wirtschaftsteilnehmer einer Frist für die Ergänzung der fehlenden Ausgabendokumentation. \n ","Erstellung am Anfang jeden Jahres des Jahresprogramms, im Rahmen der Gesundheitsreform ist vorgesehgen, dass der Pool gegründet wird (Entscheidung der Landesregierung), Interne Organisation des Amtes, um zu gewährleisten, dass mindestens zwei Bedienstete die Überprüfungen durchführen, Rotierung der Kommissionsmitglieder der Ausschreibungen, interne Organisation des Amtes, um die Aufteilung der Kompetenzen zu gewährleisten, ","Abteilusngdirektorin, alle Ämter der Abteilung, Amt  für Gesundheitsordnung","bereits abgelaufen","Ja","Ja","wirksam"]
["23.4 Amt für Gesundheitsordnung","- D) Gewährung und Auszahlung von Subventionen, Beiträgen, Zuschüssen, Prämien und wirtschaftlichen Vergünstigungen jeglicher Art",null,"Gewährung Beihilfen an CME Provider  für die ständige Weiterbildung und Veröffentlichungen die den Gesundheitsbereich betreffen","Phase der Bewertung der Gewährung des Beitrages","CME Provider ","Deckung des Weiterbildungsbedarfs für Gesundheitsberufe ",{"$f":"$G$50","v":"Deckung des Weiterbildungsbedarfs für Gesundheitsberufe "},"Bedarfserhebung der ständigen Weiterbildung, Festlegung der Kriterien, Kontrolle über die Vollständigkeit der Anfrage, Zulassung ","Gewährung der Beihilfen und Festlegung der zugelassnenen Kosten, Liquidierung","L.G. 14/2002","- Amtsdirektor",217934.96599999999,17," verzerrte oder unterlassene Kontrolle der Antrages,  verzerrte oder unterlassene Kontrolle der Ausgabendokumenation ","Kontrolle des Antrages seitens eines einzigen Bediensteten im Interessenskonflikt, Kontrolle der Ausgabendokumentation seitens eines einzigen Bediensteten im Interessenskonflikt","keine","Keine, es ist vollständig geregelt (1)","Ja, das Ergebnis des Entscheidungsprozesses ist an Subjekte außerhalb der Landesverwaltung gerichtet (5)","Nein, der Entscheidungsprozess betrifft ausschließlich die Landesverwaltung  (1)","Der Entscheidungsprozess bedingt die Gewährung von erheblichen Vergünstigungen bzw. Vorteilen an externe Subjekte (z.B. Erteilung von öffentlichen Aufträgen)  (5)","Nein  (1)","Ja, die Kontrolle stellt ein wirksames Instrument zur Neutralisierung des Risikos dar  (1)","Ja (1)","Nein (1)",16,2,"Bis ungefähr 20%    (1)","Nein (1)","Wir haben diesbezüglich keine Kenntnis    (1)","Die Position einer Führungskraft   (5) ",8,2,4,null,"Mit Dekretes\n des Landeshauptmannes vom 10.07.2017 Nr. 22 ist diese Zuständigkeit auf das Amt für Gesundheitsordnung übergegangen.\n\nDie Kriterien werden mit Beschluss der Landesregierung festgelegt. Die akkreditierten Veranstltungen sind vorab auf der CME- Plattform hocgeladen. Die Beihilfe wird aufgrund der von der Landesrehgeirung festgelegten Kriterien zugelassen. ","interne Anweisungen, welche die Zusammenarbeit von mehreren Bediensteten (mindestens zwei) bei Kontrolle des Gesuchs und der Ausgabendokumentation gewährleisten, unter der Verantwortung der Amtsdirektorin"," Interne Organisation des Amtes, um zu gewährleisten, dass mindestens zwei Bedienstete die Kontrollen  durchführen","Amt für Gesundheitsordnung","bereits abgelaufen","Ja","Ja","wirksam"]
["23.4 Amt für Gesundheitsordnung","- D) Gewährung und Auszahlung von Subventionen, Beiträgen, Zuschüssen, Prämien und wirtschaftlichen Vergünstigungen jeglicher Art",null,"Finanzierung der vom Ministerium genehmigten Forschungsprojekte",null,"Gesundheitsministerium und Südtiroler Sanitätsbeteib, Landesfachhochschule für Gesundheitsberufe Claudiana und Forschungseinrichtungen in Südtirol ","Förderung der Forschungstätigkeit und Steigerung der Qualität der Gesundheitsleistungen ","Steigerung der Qualität der Gesundheitsleistungen und Attraktivität des Sanitätsbetriebes als Arbeitsplatz für Forscher/innen","Festlegung der Themen seitens des Gesundheitsministeriums, Ausschreibung zielorientierteForschung, Ausarbeitung der Vereinbarung seitens des Ministeriums, Ausarbeitung der Vereinbarung sietens des Amtes ","Einschreibung im Landeshaushalt der staatlichen Finanzierung, Eingang der Finanzierung im Landeshaushalt, Beschluss der Landesregierung für die Zweckbindung der Finanzierungsraten,   Beschluss der Landesregierung für die Rückerstattung","L.G. 14/2006\nGvt. D. 502/1992\nnationale Wettbewerbsausschreibungen","- Amtsdirektor",0,3,"während der allgemeinen Kontrolle Begünstigung eines Projektes, welches die Voraussetzungen nicht erfüllt, potentielle Begünstigung durch die Annnahme irreguläre oder nicht zugelassene Ausgabendokumentation im Rahmen der Kontrolle","Kontrolle seitens eines einzigen Bediensteten im Interessenskonflikt","keine","Keine, es ist vollständig geregelt (1)","Ja, das Ergebnis des Entscheidungsprozesses ist an Subjekte außerhalb der Landesverwaltung gerichtet (5)","Ja, der Entscheidungsprozess sieht die Beteiligung von mehr als 3 Verwaltungen vor  (3)","Der Entscheidungsprozess bedingt die Gewährung von erheblichen Vergünstigungen bzw. Vorteilen an externe Subjekte (z.B. Erteilung von öffentlichen Aufträgen)  (5)","Nein  (1)","Ja, die Kontrolle stellt ein wirksames Instrument zur Neutralisierung des Risikos dar  (1)","Ja (1)","Ja (5)",22,2.8,"Bis ungefähr 20%    (1)","Nein (1)","Wir haben diesbezüglich keine Kenntnis    (1)","Die Position einer Führungskraft   (5) ",8,2,5.6,2,"Mit Dekretes\n des Landeshauptmannes vom 10.07.2017 Nr. 22 ist diese Zuständigkeit auf das Amt für Gesundheitsordnung übergegangen.\n\nDas Gesundheitsministerium legt die Themenbereiche von Interesse  und die Kriterien der Ausschreibung für die zielorientierte Forschung fest. Die Einschreibung im Landeshaushalt wird aufgrund der Anfrage der Landesrätin an das Amt für Einnahmen aufgrund der Anweisungen des Ministeriums vorgenommen. Die Vereinbarung wird vom Gesundheitsministerium ausgearbeitet. Die zweite Vereinbarung wird vom Amt 23.5 aufgrund der ersten Vereinbarung zwischen Ministerium und dem Land ausgearbeitet. Der zurückzuzahlende Betrag wird mit Beschluss der Landesregierung festgelegt. ","interne Anweisungen, welche die Zusammenarbeit von mehreren Bediensteten (mindestens zwei) bei allgemeinen Kontrolle, der Kontrolle  der  Ausgabendokumentation im Rahmen der Abrechnung bei der Mitte des Projektes und  der Kontrolle  der  Ausgabendokumentation im Rahmen der Abrechnung bei Projektende begewährleisten, unter der Verantwortung der Amtsdirektorin","interne Organisation des Amtes, um zu gewährleisten, dass mindestens zwei Mitarbeiter die allgemeine Kontrolle, die Kontrolle  der  Ausgabendokumentation im Rahmen der Abrechnung bei der Mitte des Projektes und  die Kontrolle  der  Ausgabendokumentation im Rahmen der Abrechnung bei Projektende durchführen","Amt für Gesundheitsordnung","bereits abgelaufen","Ja","Ja","wirksam"]
["23.4 Amt für Gesundheitsordnung","- I) Kontrollen, Überprüfungen, Inspektionen und Sanktionen",null,"Kontrolle  Einhaltung der Dienstverpflichtung seitens der Fachärztinnen/Fachärzte ab 2008",null,"Ärzte und Südtiroler Sanitätsbetrieb ","Deckung des Facharztbedarfs in Südtirol ","Deckung des Facharztbedarfs im Südtiroler Sanitätsbetrieb ","Erstellung der Liste der Ärzte, Einholen beim Südtiroler  Sanitätsbetrieb der Bescheinigungen übder die von den einzelnen Ärzten geleisteten Dienste oder Anfrage der Dokumentation direkt bei den Ärzten ","Archivierung oder Ausarbeitung des Dekretes, mit welchem die Nichteinhaltung der Verpflichtung festgestellt wird, und  Aufforderung zur Rückzahlung, Rückzahlung der bezogenen Stipendien","L.G. 14/2002\nDLH 4/2008","- Amtsdirektor",0,1,"potentielle Unterlassung der Kontrolle von einzelnene Ärzten, verzerrte Bewertung der von den Ärzten eingereichten Bescheinigungen ","Kontrolle seitens eines einzigen Bediensteten im Interessenskonflikt","keine","Keine, es ist vollständig geregelt (1)","Ja, das Ergebnis des Entscheidungsprozesses ist an Subjekte außerhalb der Landesverwaltung gerichtet (5)","Nein, der Entscheidungsprozess betrifft ausschließlich die Landesverwaltung  (1)","Der Entscheidungsprozess bedingt zwar die Gewährung von Vergünstigungen bzw. Vorteilen an externe Subjekte, aber diese Vorteile haben keine besondere wirtschaftliche Relevanz (z.B. Gewährung von Studienbeihilfen an Studenten)  (3)","Nein  (1)","Von mehreren Personen, darunter auch jene Person, die für vorhergehende Phasen zuständig war (3)","Ja (1)","Nein (1)",16,2,"Bis ungefähr 20%    (1)","Nein (1)","Wir haben diesbezüglich keine Kenntnis    (1)","Die Position einer Führungskraft   (5) ",8,2,4,3,"Mit Dekretes\n des Landeshauptmannes vom 10.07.2017 Nr. 22 ist diese Zuständigkeit auf das Amt für Gesundheitsordnung übergegangen.\n\nDer Südtiroler Sanitätsbetrieb stellt die Bescheinigungen aus, mit welchen die von den Ärzten in den Einrichtungen desselben Betriebes geleisteten Dienste becsheinigt werden. Den vertragsbrüchigen Ärzten wird eine Frist von 30 Tagen für die Rückzahlung des Studienstipendiums gewährt. ","interne Anweisungen, welche die Zusammenarbeit von mehreren Bediensteten (mindestens zwei) bei der Erstellung der Liste der zu kontrollierenden Ärzte und bei der Kontrolle der von den Ärzten eingereichten Bescheingungen gewährleisten, unter der Verantwortung der Amtsdirektorin"," Interne Organisation des Amtes, um zu gewährleisten, dass mindestens zwei Bedienstete die Kontrollen  durchführen","Amt für Gesundheitsordnung ","bereits abgelaufen","Ja","Ja","wirksam"]
["23.4 Amt für Gesundheitsordnung","- I) Kontrollen, Überprüfungen, Inspektionen und Sanktionen",null,"Kontrolle Einhaltung  der Dienstverpflichtung seitens der Fachärztinnen/Fachärzte vor 2008",null,{"$f":"F52","v":"Ärzte und Südtiroler Sanitätsbetrieb "},{"$f":"G52","v":"Deckung des Facharztbedarfs in Südtirol "},{"$f":"H52","v":"Deckung des Facharztbedarfs im Südtiroler Sanitätsbetrieb "},"Erstellung der Liste der Ärzte, Einholen beim Südtiroler  Sanitätsbetrieb der Bescheinigungen übder die von den einzelnen Ärzten geleisteten Dienste oder Anfrage der Dokumentation direkt bei den Ärzten ","Archivierung oder Ausarbeitung des Dekretes, mit welchem die Nichteinhaltung der Verpflichtung festgestellt wird, und  Aufforderung zur Rückzahlung, Rückzahlung der bezogenen Stipendien","L.G. 1/1986\nDLH 6/1988","- Amtsdirektor",0,9,"potentielle Unterlassung der Kontrolle von einzelnene Ärzten, verzerrte Bewertung der von den Ärzten eingereichten Bescheinigungen ","Kontrolle seitens eines einzigen Bediensteten im Interessenskonflikt","keine","Keine, es ist vollständig geregelt (1)","Ja, das Ergebnis des Entscheidungsprozesses ist an Subjekte außerhalb der Landesverwaltung gerichtet (5)","Nein, der Entscheidungsprozess betrifft ausschließlich die Landesverwaltung  (1)","Der Entscheidungsprozess bedingt zwar die Gewährung von Vergünstigungen bzw. Vorteilen an externe Subjekte, aber diese Vorteile haben keine besondere wirtschaftliche Relevanz (z.B. Gewährung von Studienbeihilfen an Studenten)  (3)","Nein  (1)","Ja, die Kontrolle stellt ein wirksames Instrument zur Neutralisierung des Risikos dar  (1)","Ja (1)","Ja (5)",18,2.2999999999999998,"Bis ungefähr 20%    (1)","Nein (1)","Wir haben diesbezüglich keine Kenntnis    (1)","Die Position einer Führungskraft   (5) ",8,2,4.5999999999999996,2,"Mit Dekretes\n des Landeshauptmannes vom 10.07.2017 Nr. 22 ist diese Zuständigkeit auf das Amt für Gesundheitsordnung übergegangen.\n\nDer Südtiroler Sanitätsbetrieb stellt die Bescheinigungen aus, mit welchen die von den Ärzten in den Einrichtungen desselben Betriebes geleisteten Dienste bescheinigt werden. Den vertragsbrüchigen Ärzten wird eine Frist von 30 Tagen für die Rückzahlung des Studienstipendiums gewährt. ","interne Anweisungen, welche die Zusammenarbeit von mehreren Bediensteten (mindestens zwei) bei der Erstellung der Liste der zu kontrollierenden Ärzte und bei der Kontrolle der von den Ärzten eingereichten Bescheingungen gewährleisten, unter der Verantwortung der Amtsdirektorin"," Interne Organisation des Amtes, um zu gewährleisten, dass mindestens zwei Bedienstete die Kontrollen  durchführen","Amt für Gesundheitsordnung ","bereits abgelaufen","Ja","Ja","wirksam"]
["23.4 Amt für Gesundheitsordnung","- I) Kontrollen, Überprüfungen, Inspektionen und Sanktionen",null,"Gleichwertigkeitserklärung Studientitel erworben in einem Land des Deutschen Kulturraums seitens EU-Bürgern","Bewertung von Seiten der technischen Kommission","Antragsteller, die im deutschsprachigen Ausland eine Ausbildung in einem Gesundheitsberuf erworben haben, und Gesundheitsministerium","Rekrutierung Gesundheitspersonal ","Möglichkeit der beruflichen Tätigkeit in Südtirol","Kontrolle der Unterlagen, Ernennung der Kommission, Bewertung der Inhalte und Dauer der Ausbildung, Anfrage des obligatorischen und nicht bindenden Gutachtens an das Gesundheitsministerium","Ausstellung der Attestas der Gleichwertigkeitserklärung mit Dekret der Landesrätin ","D.P.R. 197/1980\nL.G. 7/2001","- Amtsdirektor",0,26," verzerrte oder unterlassene Kontrolle der Antrages,  verzerrte Bewertung der Inhalte und der Ausbildungsdauer","Kontrolle seitens eines einzigen Bediensteten im Interessenskonflikt, eventuelle andere Benennungen der Unterrichtsfächer inn den verschiedenene EU-Staaten dees deutschen Sprachraumes, Kommissionsmitglieder in Interessenskonflikt, ","keine","Das Verfahren ist teilweise von Gesetzen und/oder Verwaltungsakten geregelt (3) ","Ja, das Ergebnis des Entscheidungsprozesses ist an Subjekte außerhalb der Landesverwaltung gerichtet (5)","Nein, der Entscheidungsprozess betrifft ausschließlich die Landesverwaltung  (1)","Der Entscheidungsprozess bedingt zwar die Gewährung von Vergünstigungen bzw. Vorteilen an externe Subjekte, aber diese Vorteile haben keine besondere wirtschaftliche Relevanz (z.B. Gewährung von Studienbeihilfen an Studenten)  (3)","Nein  (1)","Von mehreren Personen, darunter auch jene Person, die für vorhergehende Phasen zuständig war (3)","Ja (1)","Ja (5)",22,2.8,"Bis ungefähr 20%    (1)","Nein (1)","Wir haben diesbezüglich keine Kenntnis    (1)","Die Position einer Führungskraft   (5) ",8,2,5.6,3,"Mit Dekretes\n des Landeshauptmannes vom 10.07.2017 Nr. 22 ist diese Zuständigkeit auf das Amt für Gesundheitsordnung übergegangen.\n\nDas Gesundheitsministerium stellt ein Gutachten über den Inhalt und die Duaer der Ausbildung aus. Mit Dekret der Landesrätin die Gleichwertigkeitserklärung ausgestellt.  ","Aktivierung seitens des Amtes für die Anfrage von Inforamtionen an die  Herkunftsausbildungseinrichtungen, Ausbildung von Bediensteten,  interne Anweisungen, welche die Zusammenarbeit von mehreren Bediensteten (mindestens zwei) bei der Erstellung der Liste der zu kontrollierenden Ärzte und bei der Kontrolle der  eingereichten Unterlagen gewährleisten, unter der Verantwortung der Amtsdirektorin, Erklärungen seitens der Kommissionsmitglieder über das Fehlen von einem Interessenskonfliktes, Bereithaltung von Listen von möglichen Kommissionsmitgliedern, welche nach Professionalität aufgeteilt sind ","Organisation des Amtes, um die fachliche Kompetenz der zuständigen Bediensteten zu gewährleisten, Interne Organisation des Amtes, um zu gewährleisten, dass mindestens zwei Bedienstete die Kontrollen  durchführen, Erstellung einer Liste von möglichen Kommissionsmitgliedern","Amt für Gesundheitsordnung","bereits abgelaufen","Ja","Ja","wirksam"]
["23.4 Amt für Gesundheitsordnung","- D) Gewährung und Auszahlung von Subventionen, Beiträgen, Zuschüssen, Prämien und wirtschaftlichen Vergünstigungen jeglicher Art",null,"Gewährung Studienbeihilfen an Ärzte und Ärztinnen der Sonderausbildung in Allgemeinmedizin","Überprufung des Ansuchens","Ärzte ","Deckung der wohnortnahen ärztlichen Versorgung ","Möglichkeit eines Vertragsverhältnisses mit dem Sanitätsbetrieb ","Festlegung des Bedarfs an auszubildenenden Ärzte in Allgemeinmedizin,  Festlegung der Kriterien, Duchführung der Zulassungsprüfung und Erstellung der Rangordnung  ","Zulassung zur Sonderausbildung in Allgemeinmedizin und Liquidierung der Studienstipendien ","L.G 14/2002\nD.L.H. 46/2003","- Amtsdirektor",909235.42,62," verzerrte oder unterlassene Kontrolle der Gesuchs,  verzerrte Bewertung seitens der Prüfungskommission ","Kontrolle seitens eines einzigen Bediensteten im Interessenskonflikt, Kommissionsmitglieder in Interessenskonflikt, ","keine","Das Verfahren ist teilweise von Gesetzen und/oder Verwaltungsakten geregelt (3) ","Ja, das Ergebnis des Entscheidungsprozesses ist an Subjekte außerhalb der Landesverwaltung gerichtet (5)","Nein, der Entscheidungsprozess betrifft ausschließlich die Landesverwaltung  (1)","Der Entscheidungsprozess bedingt zwar die Gewährung von Vergünstigungen bzw. Vorteilen an externe Subjekte, aber diese Vorteile haben keine besondere wirtschaftliche Relevanz (z.B. Gewährung von Studienbeihilfen an Studenten)  (3)","Nein  (1)","Von mehreren Personen, darunter auch jene Person, die für vorhergehende Phasen zuständig war (3)","Ja (1)","Nein (1)",18,2.2999999999999998,"Bis ungefähr 20%    (1)","Nein (1)","Wir haben diesbezüglich keine Kenntnis    (1)","Die Position einer Führungskraft   (5) ",8,2,1.6,2,"Mit Dekretes\n des Landeshauptmannes vom 10.07.2017 Nr. 22 ist diese Zuständigkeit auf das Amt für Gesundheitsordnung übergegangen.\n\nDer Bedarf an auszubildenden Ärzten wird vom Land, nach Anhören der Ärztekammer und nach der Genehmigung seitens der Landeskomitees für die Planung im Gesundheitswesen, erhoben. Die Kriterien für die Gewährung der Studienstipendien werden mit Beschluss der Landesregierung festgelegt. Die Ranordnung, welche mit Dekret der Landesrätin genehmigt wird, wird im Amtsblatt der Region veröffentlicht. "," interne Anweisungen, welche die Zusammenarbeit von mehreren Bediensteten (mindestens zwei) bei der Kontrolle des  von  Ärzten eingereichten Gesuchs   gewährleisten, unter der Verantwortung der Amtsdirektorin, Erklärungen seitens der Kommissionsmitglieder über das Fehlen von einem Interessenskonfliktes, Bereithaltung von Listen von möglichen Kommissionsmitgliedern, "," Interne Organisation des Amtes, um zu gewährleisten, dass mindestens zwei Bedienstete die Kontrolle durchführen, Erstellung einer Liste von möglichen Kommissionsmitgliedern, Erstellung von Formularen für die Erklärungen  seitens der Kommissionsmitglieder,","Amt für Gesundheitsordnung ","bereits abgelaufen","Ja","Ja","wirksam"]
["23.4 Amt für Gesundheitsordnung","- Weiteres (angeben ob weitere riskante Tätigkeiten außer der oben genannten bestehen)","Studientitelanerkennung","Anerkennung von ausländischen Studientitel von Gesundheitsberufe, welche innerhalb der EU-Staaten erlangt wurden ",null,"Antragsteller, die innerhalb der EU eine Ausbildung in einem Gesundheitsberuf erworben haben, und Gesundheitsministerium","Rekrutierung Gesundheitspersonal ","Möglichkeit der beruflichen Tätigkeit in Südtirol und Italien ","Kontrolle un Bezug auf die Vollständigkeit des Gesuchs und der Unterlagen ","Übermittlung der Unterlagen und des Gesuchs an das Ministerium, Bewertung seitens des Ministeriums, Dekret des Generaldirektors des Departments  Gesundheitsberufe des Gesundheitsministeriums ","EU-Richtlinie 2005/36/EG \nD.P.R n. 394/1999","- Amtsdirektor",0,52,"Das Amt 23.4 Gesundheitsordnung fungiert ausschließlich als Vermittler für die Übermittlung der eingereichten Unterlagen an das Ministerium. Die Bewertung über die Anerkennung wird vom Ministerium vorgenommen. ","Das Amt 23.4 Gesundheitsornung fungiert ausschließlich als Vermittler für die Übermittlung der eingereichten Unterlagen an das Ministerium. Die Bewertung über die Anerkennung wird vom Ministerium vorgenommen. ","keine","Keine, es ist vollständig geregelt (1)","Ja, das Ergebnis des Entscheidungsprozesses ist an Subjekte außerhalb der Landesverwaltung gerichtet (5)","Ja, der Entscheidungsprozess sieht die Beteiligung von mehr als 3 Verwaltungen vor  (3)","Der Entscheidungsprozess bedingt zwar die Gewährung von Vergünstigungen bzw. Vorteilen an externe Subjekte, aber diese Vorteile haben keine besondere wirtschaftliche Relevanz (z.B. Gewährung von Studienbeihilfen an Studenten)  (3)","Nein  (1)","Nein, die Kontrolle wird von derselben Person ausgeübt (4) ","Ja (1)","Ja (5)",23,2.9,"Bis ungefähr 20%    (1)","Nein (1)","Wir haben diesbezüglich keine Kenntnis    (1)","Die Position eines einfachen Mitarbeiters   (1)",4,1,1.8,1,"Mit Dekretes\n des Landeshauptmannes vom 10.07.2017 Nr. 22 ist diese Zuständigkeit auf das Amt für Gesundheitsordnung übergegangen.\n\nDas Amt 23.5 fungiert ausschließlich als Vermittler für die Übermittlung der eingereichten Unterlagen an das Ministerium. Die Bewertung über die Anerkennung wird vom Ministerium vorgenommen. ","keine Maßnahme notwendig, weil das Verfahren  vollständig geregelt ist. ","keine Maßnahme notwendig, weil das Verfahren  vollständig geregelt ist. ","Amt für Gesundheitsordnung ","bereits abgelaufen","Ja","Ja","wirksam"]
["23.4 Amt für Gesundheitsordnung","- Weiteres (angeben ob weitere riskante Tätigkeiten außer der oben genannten bestehen)","Studientitelanerkennung","Anerkennung von ausländischen Studientitel von Gesundheitsberufe, welche außerhalb der EU-Staaten erlangt wurden ",null,"Antragsteller, die außerhalb der EU eine Ausbildung in einem Gesundheitsberuf erworben haben, und Gesundheitsministerium","Rekrutierung Gesundheitspersonal ","Möglichkeit der beruflichen Tätigkeit in Südtirol und Italien ","Kontrolle un Bezug auf die Vollständigkeit des Gesuchs und der Unterlagen ","Übermittlung der Unterlagen und des Gesuchs an das Ministerium, Bewertung seitens des Ministeriums, Dekret des Generaldirektors des Departments  Gesundheitsberufe des Gesundheitsministeriums ","EU-Richtlinie 2005/36/EG \nD.P.R n. 394/1999","- Amtsdirektor",0,10,"Das Amt 23.4 fungiert ausschließlich als Vermittler für die Übermittlung der eingereichten Unterlagen an das Ministerium. Die Bewertung über die Anerkennung wird vom Ministerium vorgenommen. ","Das Amt 23.4 fungiert ausschließlich als Vermittler für die Übermittlung der eingereichten Unterlagen an das Ministerium. Die Bewertung über die Anerkennung wird vom Ministerium vorgenommen. ","keine","Keine, es ist vollständig geregelt (1)","Ja, das Ergebnis des Entscheidungsprozesses ist an Subjekte außerhalb der Landesverwaltung gerichtet (5)","Ja, der Entscheidungsprozess sieht die Beteiligung von mehr als 3 Verwaltungen vor  (3)","Der Entscheidungsprozess bedingt zwar die Gewährung von Vergünstigungen bzw. Vorteilen an externe Subjekte, aber diese Vorteile haben keine besondere wirtschaftliche Relevanz (z.B. Gewährung von Studienbeihilfen an Studenten)  (3)","Nein  (1)","Von mehreren Personen, darunter auch jene Person, die für vorhergehende Phasen zuständig war (3)","Ja (1)","Ja (5)",22,2.8,"Bis ungefähr 20%    (1)","Nein (1)","Wir haben diesbezüglich keine Kenntnis    (1)","Die Position einer Führungskraft   (5) ",8,2,{"$f":"+AA57*AG57","v":5.6},4,"Mit Dekretes\n des Landeshauptmannes vom 10.07.2017 Nr. 22 ist diese Zuständigkeit auf das Amt für Gesundheitsordnung übergegangen.\n\nDas Amt 23.5 fungiert ausschließlich als Vermittler für die Übermittlung der eingereichten Unterlagen an das Ministerium. Die Bewertung über die Anerkennung wird vom Ministerium vorgenommen. ","keine Maßnahme notwendig, weil das Verfahren  vollständig geregelt ist. ","keine Maßnahme notwendig, weil das Verfahren  vollständig geregelt ist. ","Amt für Gesundheitsordnung","bereits abgelaufen","Ja","Ja","wirksam"]
["23.4 Amt für Gesundheitsordnung","- Weiteres (angeben ob weitere riskante Tätigkeiten außer der oben genannten bestehen)","Gleichwertigkeitserklärungen der Befähigungsnachweise","Gleichwertigkeitserklärung der Befähigungsnachweise für Tätowierer und Piercers von andere Regionen Italiens",null,"Besitzer eines Befähigungsnachweises","Einhaltung der Hygienebestimmungen und Sicherheit für die Kunden ","Möglichkiet der beruflichen Tätigkeit in Südtirol und Italien ","Kontrolle des Antrages,Bewertung seitens der Landeskommission, ","Ausstellung der Gleichwertigkeitserklärung für die  Befähigung zum  Tätowierer und Piercer","D.L.H. Nr. 37/2007","- Amtsdirektor",0,3," verzerrte oder unterlassene Kontrolle der Gesuchs,  verzerrte Bewertung seitens der Kommission ","Kontrolle seitens eines einzigen Bediensteten im Interessenskonflikt, Kommissionsmitglieder in Interessenskonflikt, mögliche unterschiedliche Ausbildungsinhalte und unterschiedliche Stundenanzahl bei einzelnen Bereiche ","keine","Keine, es ist vollständig geregelt (1)","Ja, das Ergebnis des Entscheidungsprozesses ist an Subjekte außerhalb der Landesverwaltung gerichtet (5)","Ja, der Entscheidungsprozess sieht die Beteiligung von mehr als 3 Verwaltungen vor  (3)","Der Entscheidungsprozess bedingt zwar die Gewährung von Vergünstigungen bzw. Vorteilen an externe Subjekte, aber diese Vorteile haben keine besondere wirtschaftliche Relevanz (z.B. Gewährung von Studienbeihilfen an Studenten)  (3)","Nein  (1)","Ja, die Kontrolle stellt ein wirksames Instrument zur Neutralisierung des Risikos dar  (1)","Ja (1)","Ja (5)",20,2.5,"Bis ungefähr 20%    (1)","Nein (1)","Wir haben diesbezüglich keine Kenntnis    (1)","Die Position einer Führungskraft   (5) ",8,2,5,2,"Mit Dekretes\n des Landeshauptmannes vom 10.07.2017 Nr. 22 ist diese Zuständigkeit auf das Amt für Gesundheitsordnung übergegangen.\n\nDie Erklärung wird mit Schreiben des Amtsdirektorin mitgeteilt. "," interne Anweisungen, welche die Zusammenarbeit von mehreren Bediensteten (mindestens zwei) bei der Kontrolle des  Antrages   gewährleisten, unter der Verantwortung der Amtsdirektorin, Erklärungen seitens der Kommissionsmitglieder über das Fehlen von einem Interessenskonfliktes, Bereithaltung von Listen von möglichen Kommissionsmitgliedern, "," Interne Organisation des Amtes, um zu gewährleisten, dass mindestens zwei Bedienstete die Kontrolle durchführen, Erstellung einer Liste von möglichen Kommissionsmitgliedern, Erstellung von Formularen für die Erklärungen  seitens der Kommissionsmitglieder,","Amt für Gesundheitsordnung","bereits abgelaufen","Ja","Ja","wirksam"]
["23.4 Amt für Gesundheitsordnung","- Weiteres (angeben ob weitere riskante Tätigkeiten außer der oben genannten bestehen)","Gleichwertigkeitserklärung der Befähigungsnachweise","Gleichwertigkeitserklärung der Befähigungsnachweise für Tätowierer und Piercers im Ausland ","Bewertung der ausländischen Diplome","Besitzer eines Befähigungsnachweises","Einhaltung der Hygienebestimmungen und Sicherheit für die Kunden ","Möglichkeit der beruflichen Tätigkeit in Südtirol und Italien ","Kontrolle des Antrages,Bewertung seitens der Landeskommission der Inhalte und Dauer der Ausbildung, mündliche Prüfung , ","Gleichwertigkeitserklärung für die  Befähigung zum  Tätowierer und Piercer","D.L.H. Nr. 37/2007","- Amtsdirektor",0,0," verzerrte oder unterlassene Kontrolle der Gesuchs,  verzerrte Bewertung seitens der Kommission ","Kontrolle seitens eines einzigen Bediensteten im Interessenskonflikt, Kommissionsmitglieder in Interessenskonflikt, mögliche unterschiedliche Ausbildungsinhalte und unterschiedliche Stundenanzahl bei einzelnen Bereiche ","keine","Das Verfahren ist teilweise von Gesetzen und/oder Verwaltungsakten geregelt (3) ","Ja, das Ergebnis des Entscheidungsprozesses ist an Subjekte außerhalb der Landesverwaltung gerichtet (5)","Nein, der Entscheidungsprozess betrifft ausschließlich die Landesverwaltung  (1)","Der Entscheidungsprozess bedingt zwar die Gewährung von Vergünstigungen bzw. Vorteilen an externe Subjekte, aber diese Vorteile haben keine besondere wirtschaftliche Relevanz (z.B. Gewährung von Studienbeihilfen an Studenten)  (3)","Nein  (1)","Von mehreren Personen, darunter auch jene Person, die für vorhergehende Phasen zuständig war (3)","Ja (1)","Ja (5)",22,2.8,"Bis ungefähr 20%    (1)","Nein (1)","Wir haben diesbezüglich keine Kenntnis    (1)","Die Position einer Führungskraft   (5) ",8,2,5.6,5,"Mit Dekretes\n des Landeshauptmannes vom 10.07.2017 Nr. 22 ist diese Zuständigkeit auf das Amt für Gesundheitsordnung übergegangen.\n\nDie Erklärung wird mit Schreiben des Amtsdirektorin mitgeteilt. "," interne Anweisungen, welche die Zusammenarbeit von mehreren Bediensteten (mindestens zwei) bei der Kontrolle des  Antrages   gewährleisten, unter der Verantwortung der Amtsdirektorin, Erklärungen seitens der Kommissionsmitglieder über das Fehlen von einem Interessenskonfliktes, Bereithaltung von Listen von möglichen Kommissionsmitgliedern, "," Interne Organisation des Amtes, um zu gewährleisten, dass mindestens zwei Bedienstete die Kontrolle durchführen, Erstellung einer Liste von möglichen Kommissionsmitgliedern, Erstellung von Formularen für die Erklärungen  seitens der Kommissionsmitglieder,","Amt für Gesundheitsordnung","bereits abgelaufen","Ja","Ja","wirksam"]
["23.4 Amt für Gesundheitsordnung","- Weiteres (angeben ob weitere riskante Tätigkeiten außer der oben genannten bestehen)","Anerkennung von Ausbildungsguthaben","Anerkennung von Ausbildungsguthaben für die Zulassung zur Berufsbefähigungsprüfung für Orthopädieschuhmacher ",null,"Angehende Orthopädieschumacher","Sicherung der Qualität der Leistungen","Sicherheit der Qualität der Leistungen für den Verbraucher","Kontrolle des Antrages,Bewertung seitens der Kommission ","Ausstellung des Befähigungsnachweises für Orthopädieschumacher ","Beschluss Nr. 1247/2008","- Amtsdirektor",0,0," verzerrte oder unterlassene Kontrolle der Gesuchs,  verzerrte Bewertung seitens der Kommission ","Kontrolle seitens eines einzigen Bediensteten im Interessenskonflikt, Kommissionsmitglieder in Interessenskonflikt, mögliche unterschiedliche Ausbildungsinhalte und unterschiedliche Stundenanzahl bei einzelnen Bereiche und von bestandenen Befähigungsprüfungen ","keine","Das Verfahren ist teilweise von Gesetzen und/oder Verwaltungsakten geregelt (3) ","Ja, das Ergebnis des Entscheidungsprozesses ist an Subjekte außerhalb der Landesverwaltung gerichtet (5)","Nein, der Entscheidungsprozess betrifft ausschließlich die Landesverwaltung  (1)","Der Entscheidungsprozess bedingt zwar die Gewährung von Vergünstigungen bzw. Vorteilen an externe Subjekte, aber diese Vorteile haben keine besondere wirtschaftliche Relevanz (z.B. Gewährung von Studienbeihilfen an Studenten)  (3)","Nein  (1)","Von mehreren Personen, darunter auch jene Person, die für vorhergehende Phasen zuständig war (3)","Ja (1)","Nein (1)",18,2.2999999999999998,"Bis ungefähr 20%    (1)","Nein (1)","Wir haben diesbezüglich keine Kenntnis    (1)","Die Position einer Führungskraft   (5) ",8,2,4.5999999999999996,5,"Mit Dekretes\n des Landeshauptmannes vom 10.07.2017 Nr. 22 ist diese Zuständigkeit auf das Amt für Gesundheitsordnung übergegangen.\n\nDie Erklärung wird mit Schreiben der Landesrätin mitgeteilt. "," interne Anweisungen, welche die Zusammenarbeit von mehreren Bediensteten (mindestens zwei) bei der Kontrolle des  Antrages   gewährleisten, unter der Verantwortung der Amtsdirektorin, Erklärungen seitens der Kommissionsmitglieder über das Fehlen von einem Interessenskonfliktes, Bereithaltung von Listen von möglichen Kommissionsmitgliedern, "," Interne Organisation des Amtes, um zu gewährleisten, dass mindestens zwei Bedienstete die Kontrolle durchführen, Erstellung einer Liste von möglichen Kommissionsmitgliedern, Erstellung von Formularen für die Erklärungen  seitens der Kommissionsmitglieder,","Amt für Gesundheitsordnung","bereits abgelaufen","Ja","Ja","wirksam"]
["23.4 Amt für Gesundheitsordnung","- D) Gewährung und Auszahlung von Subventionen, Beiträgen, Zuschüssen, Prämien und wirtschaftlichen Vergünstigungen jeglicher Art",null,"Gewährung Studienbeihilfen für Praktika für  Psychologen und Tierärzte",null,"Praktikanten im Bereich Psychologie und Tierärzte","Deckung des Bedarfs an Sanitätspersonal im Bereich","Möglichkeit zur Ablegung des Staatsexamens und finanzielle Deckung des Praktikums","Kontrolle des Antrages,Kontrolle der Päsenzen in der Einrichtungen, in welcher das Praktikum abolviert wird ","Gewährung der Studienbeihilfen, Liquidireung der Studienbeihilfen","L.G. 12/93","- Amtsdirektor",110762.26,19," verzerrte oder unterlassene Kontrolle der Gesuchs,  verzerrte oder unterlassene Kontrolle der Präsenzen","Kontrolle seitens eines einzigen Bediensteten im Interessenskonflikt, ","keine","Das Verfahren ist teilweise von Gesetzen und/oder Verwaltungsakten geregelt (3) ","Ja, das Ergebnis des Entscheidungsprozesses ist an Subjekte außerhalb der Landesverwaltung gerichtet (5)","Nein, der Entscheidungsprozess betrifft ausschließlich die Landesverwaltung  (1)","Der Entscheidungsprozess bedingt zwar die Gewährung von Vergünstigungen bzw. Vorteilen an externe Subjekte, aber diese Vorteile haben keine besondere wirtschaftliche Relevanz (z.B. Gewährung von Studienbeihilfen an Studenten)  (3)","Nein  (1)","Ja, die Kontrolle stellt ein wirksames Instrument zur Neutralisierung des Risikos dar  (1)","Ja (1)","Nein (1)",16,2,"Bis ungefähr 20%    (1)","Nein (1)","Wir haben diesbezüglich keine Kenntnis    (1)","Die Position einer Führungskraft   (5) ",8,2,4,6,"Mit Dekretes\n des Landeshauptmannes vom 10.07.2017 Nr. 22 ist diese Zuständigkeit auf das Amt für Gesundheitsordnung übergegangen.\n\nDie Gewährung der Studienbeihilfen wird aufgrund der zugelassenen Anträge verfügt. Die Liquidierung erfolgt aufgrund der positiven Feststellung der Präsenzen. "," interne Anweisungen, welche die Zusammenarbeit von mehreren Bediensteten (mindestens zwei) bei der Kontrolle des  Antrages   und der Präsenzen gewährleisten, unter der Verantwortung der Amtsdirektorin, ","Interne Organisation des Amtes, um zu gewährleisten, dass mindestens zwei Bedienstete die Kontrolle durchführen, ","Amt für Gesundheitsordnung","bereits abgelaufen","Ja","Ja","wirksam"]
["23.4 Amt für Gesundheitsordnung","- D) Gewährung und Auszahlung von Subventionen, Beiträgen, Zuschüssen, Prämien und wirtschaftlichen Vergünstigungen jeglicher Art",null,"Gewährung von Beihilfen für die Fachausbildung im Sanitätsbereich ",null,"Angehende Fachmitarbeiter im Sanitätsbereich","Deckung des Bedarfs an Gesundheitsberufen  ","Möglichkeit der Spezialisierung der Gesundheitsberufe","Kontrolle des Antrages und der Voraussetzungen und der Bezahlung der Einschreibegebühren und der Rechnungen ","Gewährung der Studienbeihilfen für die gesamte Ausbildung und  Liquidireung ","L.G. 14/2002 ","- Amtsdirektor",343426.29,158," verzerrte oder unterlassene Kontrolle der Gesuchs,  verzerrte oder unterlassene Kontrolle der Präsenzen, der Bezahlung der Einschreibegebühren und der Rechnungen","Kontrolle seitens eines einzigen Bediensteten im Interessenskonflikt, ","keine","Das Verfahren ist teilweise von Gesetzen und/oder Verwaltungsakten geregelt (3) ","Ja, das Ergebnis des Entscheidungsprozesses ist an Subjekte außerhalb der Landesverwaltung gerichtet (5)","Nein, der Entscheidungsprozess betrifft ausschließlich die Landesverwaltung  (1)","Der Entscheidungsprozess bedingt zwar die Gewährung von Vergünstigungen bzw. Vorteilen an externe Subjekte, aber diese Vorteile haben keine besondere wirtschaftliche Relevanz (z.B. Gewährung von Studienbeihilfen an Studenten)  (3)","Nein  (1)","Nein, die Kontrolle wird von derselben Person ausgeübt (4) ","Ja (1)","Nein (1)",19,2.4,"Bis ungefähr 20%    (1)","Nein (1)","Wir haben diesbezüglich keine Kenntnis    (1)","Die Position einer Führungskraft   (5) ",8,2,4.8,7,"Mit Dekretes\n des Landeshauptmannes vom 10.07.2017 Nr. 22 ist diese Zuständigkeit auf das Amt für Gesundheitsordnung übergegangen.\n\nWer in Besitz der Voraussetzungen ist, dem wird die Studienbeihilfe gewährt, welche mit Dekret .... zweckgebunden wird. "," interne Anweisungen, welche die Zusammenarbeit von mehreren Bediensteten (mindestens zwei) bei der Kontrolle des  Antrages   und der Präsenzen gewährleisten, unter der Verantwortung der Amtsdirektorin, ","Interne Organisation des Amtes, um zu gewährleisten, dass mindestens zwei Bedienstete die Kontrolle durchführen, ","Amt für Gesundheitsordnung","bereits abgelaufen","Ja","Ja","wirksam"]
["23.4 Amt für Gesundheitsordnung","- Weiteres (angeben ob weitere riskante Tätigkeiten außer der oben genannten bestehen)","Akkredtierung ","Akkredtierung Provider CME","Bewertung der Voraussetzungen für die Akkreditierung ","Provider CME in Südtirol ","Qualitätskontrolle der Bildungsanbieter im Gesundheitswesen","Möglichkeit des Bildungsangebots an die CME Pflichtigen Gesundheitsberufe ","Kontrolle der Unterlagen, Bewertung seitens der CME Landeskommission, Registrierung auf der Plattform der provisorischen Akkreditierung, Bewertung seitens der CME Landesbeobachtungsstelle der Voraussetzungen, welche inm Antrag um Akkreditierung erklärt wurden (Audit)","provisorische Akkreditierung, Authorisierung für die Ausübung von akkreditierten Ausbildungstätigkeiten, Ausstellung des provisorischen Zertifikats, jährliche Standardakkreditierung, Registrierung in der Plattform der Standardakkreditierung, Ausstellung des Zertifikats der jährlichen Standardakkreditierung ","L.G. 7/2001 Beschluss 425/2011","- Amtsdirektor",0,51," verzerrte oder unterlassene Kontrolle der Gesuchs,  verzerrte Bewertung seitens der Kommission ","Kontrolle seitens eines einzigen Bediensteten im Interessenskonflikt, Kommissionsmitglieder in Interessenskonflikt, ","keine","Das Verfahren ist teilweise von Gesetzen und/oder Verwaltungsakten geregelt (3) ","Ja, das Ergebnis des Entscheidungsprozesses ist an Subjekte außerhalb der Landesverwaltung gerichtet (5)","Nein, der Entscheidungsprozess betrifft ausschließlich die Landesverwaltung  (1)","Der Entscheidungsprozess bedingt zwar die Gewährung von Vergünstigungen bzw. Vorteilen an externe Subjekte, aber diese Vorteile haben keine besondere wirtschaftliche Relevanz (z.B. Gewährung von Studienbeihilfen an Studenten)  (3)","Nein  (1)","Von mehreren Personen, darunter auch jene Person, die für vorhergehende Phasen zuständig war (3)","Ja (1)","Ja (5)",22,2.8,"Von 20% bis ungefähr 60%    (3)","Nein (1)","Wir haben diesbezüglich keine Kenntnis    (1)","Die Position einer Führungskraft   (5) ",10,2.5,7,null,"Mit Dekretes\n des Landeshauptmannes vom 10.07.2017 Nr. 22 ist diese Zuständigkeit auf das Amt für Gesundheitsordnung übergegangen.\n\nDie Registrierung in der Plattform der provisorischen Akkrediteirung wird aufgrund des positiven Gutachtens der CME Kommission vorgenommen. Die provisorische Zertifizierung wird mit Schreiben der Amtsdirektorin, in ihrer Funktion als Präsidentin der CME Kommission, mitgeteilt. Die Audits werden immer von mindestens zwei Mitgliedern der Beobachtungsstelle aufgrund des positiven  Gutachtens der Kommission durchgeführt. Die Standard-Zerifizierung wird mit Schreiben der Amtsdirektorin, in ihrer Funktion als Präsidentin der CME Kommission, mitgeteilt. "," interne Anweisungen, welche die Zusammenarbeit von mehreren Bediensteten (mindestens zwei) bei der Kontrolle des  Antrages   gewährleisten, unter der Verantwortung der Amtsdirektorin, Bereithaltung von Listen von möglichen fachliche kompetenten Kommissionsmitgliedern,Erklärungen seitens der Kommissionsmitglieder über das Fehlen von einem Interessenskonfliktes, ","Interne Organisation des Amtes, um zu gewährleisten, dass mindestens zwei Bedienstete die Kontrolle durchführen, Erstellung einer Liste von möglichen Kommissionsmitgliedern, Erstellung von Formularen für die Erklärungen  seitens der Kommissionsmitglieder,","Amt für Gesundheitsordnung","bereits abgelaufen","Ja","Ja","wirksam"]
["23.4 Amt für Gesundheitsordnung","- A) Wettbewerbe und Auswahlverfahren im Personalbereich",null,"Organisation und Durchführung der Managementausbildung ","Bewertung Referenten","Ärztinnen und Ärzte und andere Gesundheitsberufe","Schaffung eines Führungskräftepools für den Südtiroler Sanitätsbetrieb ","Zugang zur Führungsebene im Südtiiroler Sanitätsbetrieb","Bedarfserhebung und Festlegung des Grobkonzeptes, Auswahl des Verfahrens, Bewertung der Angebote","Zucshlag des Auftrages und Zweckbindung ","L.G. Nr. 7/2001\nDPR Nr. 484/1997\nL.G. 17/1993\nGvt. 163/2008","- Amtsdirektor",0,1,"Maßnahmen und Verhaltensmodalitäten mit der Absicht die Auswahl an Teilnehmern an der Ausschreibung  widerrechtlich zu beeinflussen, verzerrte Auswahl der Zuschlagskriterien der Ausschreibung, um das Ergebnis zu manipolieren, Verzerrung oder Unterlassung der Kontrollen ","Fehlen von Marktecherchen, Kontrolle seitens eines einzigen Bediensteten im Interessenskonflikt, Bewertung der Angebote im Interessenskonflikt ","keine","Keine, es ist vollständig geregelt (1)","Ja, das Ergebnis des Entscheidungsprozesses ist an Subjekte außerhalb der Landesverwaltung gerichtet (5)","Nein, der Entscheidungsprozess betrifft ausschließlich die Landesverwaltung  (1)","Der Entscheidungsprozess bedingt zwar die Gewährung von Vergünstigungen bzw. Vorteilen an externe Subjekte, aber diese Vorteile haben keine besondere wirtschaftliche Relevanz (z.B. Gewährung von Studienbeihilfen an Studenten)  (3)","Nein  (1)","Von mehreren Personen, darunter auch jene Person, die für vorhergehende Phasen zuständig war (3)","Ja (1)","Ja (5)",20,2.5,"Bis ungefähr 20%    (1)","Nein (1)","Wir haben diesbezüglich keine Kenntnis    (1)","Die Position einer Führungskraft   (5) ",8,2,5,3,"Mit Dekretes\n des Landeshauptmannes vom 10.07.2017 Nr. 22 ist diese Zuständigkeit auf das Amt für Gesundheitsordnung übergegangen.\n\nDer Ausbildungsbedarf wird vom Sanitätsbetrieb mitgeteilt. Die Voraussetzungen des Konzepts werden in Zusammenarbeit mit dem Sanitätsbetrieb festgelegt.  ","Erstellung der Unterlagen der Markrecherchen, Bereisthaltung von Listen von möglichen Kommissionsmitgliedern, welche nach Professionalität unterteilt sind, und Auswahl der Mitglieder durch Zufallsziehung, interne Anweisungen, welche die Zusammenarbeit von mehreren Bediensteten (mindestens zwei) bei Überprüfung der Voraussetzungen gewährleisten, unter der Verantwortung der Amtsdirektorin\n ","Interne Organisation des Amtes, um zu gewährleisten, dass mindestens zwei Bedienstete die Kontrolle durchführen, Erstellung einer Liste von möglichen Kommissionsmitgliedern, Erstellung von Formularen für die Erklärungen  seitens der Kommissionsmitglieder,","Amt für Gesundheitsordnung","bereits abgelaufen","Ja","Ja","wirksam"]
["23.4 Amt für Gesundheitsordnung","- D) Gewährung und Auszahlung von Subventionen, Beiträgen, Zuschüssen, Prämien und wirtschaftlichen Vergünstigungen jeglicher Art",null,"Gewährung von Studienbeihilen für die Grundausbildung im Gesundheitsbereich ","Bewertung Zulassung ","Antragsteller, die eine Ausbildung in einem Gesundheitsberuf absolvieren möchten ","Deckung des Bedarfs an Gesundheitsberufen  ","Schaffung der Möglichkeit eine Ausbildung zu einem Gesundheitsberuf  zu absolvieren und eine finanzielle Unterstützung zu erhalten","Bedarfserhebung und Festlegung der Kriterien, Kontrolle des Gesuchs und der Unterlagen, Kontrolle des Einkommens und des Veremögens, Kontrolle der Teilnahmebescheinigungen ","Gewährungsmaßnahme und Liquidierung ","L.G. Nr. 16/2015","- Amtsdirektor",135776.91,47," verzerrte oder unterlassene Kontrolle der Gesuchs,  verzerrte oder unterlassene Kontrolle der des Einkommens und des Vermögens, verzerrte oder unterlassene Kontrolle der Teilnahmebescheinigungen ","Kontrolle seitens eines einzigen Bediensteten im Interessenskonflikt, ","keine","Keine, es ist vollständig geregelt (1)","Ja, das Ergebnis des Entscheidungsprozesses ist an Subjekte außerhalb der Landesverwaltung gerichtet (5)","Nein, der Entscheidungsprozess betrifft ausschließlich die Landesverwaltung  (1)","Der Entscheidungsprozess bedingt zwar die Gewährung von Vergünstigungen bzw. Vorteilen an externe Subjekte, aber diese Vorteile haben keine besondere wirtschaftliche Relevanz (z.B. Gewährung von Studienbeihilfen an Studenten)  (3)","Nein  (1)","Ja, die Kontrolle stellt ein wirksames Instrument zur Neutralisierung des Risikos dar  (1)","Ja (1)","Nein (1)",14,1.8,"Bis ungefähr 20%    (1)","Nein (1)","Wir haben diesbezüglich keine Kenntnis    (1)","Die Position einer Führungskraft   (5) ",8,2,3.6,8,"Mit Dekretes\n des Landeshauptmannes vom 10.07.2017 Nr. 22 ist diese Zuständigkeit auf das Amt für Gesundheitsordnung übergegangen.\n\nDie Kriterien werden mit Beschluss der Landesregierung festgelegt. ","interne Anweisungen, welche die Zusammenarbeit von mehreren Bediensteten (mindestens zwei) bei der Kontrolle des Gesuchs, des Einkommens und des Vermögens, der Teilnahmebescheingungen gewährleisten, unter der Verantwortung der Amtsdirektorin","Interne Organisation des Amtes, um zu gewährleisten, dass mindestens zwei Bedienstete die Kontrollen durchführen, ","Amt für Gesundheitsordnung","bereits abgelaufen","Ja","Ja","wirksam"]
["23.4 Amt für Gesundheitsordnung","- Weiteres (angeben ob weitere riskante Tätigkeiten außer der oben genannten bestehen)","Finanzielle Zuweisung","Finanzielle Zuweisung an die Landesfachhochschule für Gesundheitsberufe \"Claudiana\". Ausgaben für das \"Taschengeld\" für Studenten",null,"Studenten der Landesfachhochschule für Gesundheitsberufe Claudiana ","Deckung des Bedarfs an Gesundheitsberufen  ","Schaffung der Möglichkeit eine Ausbildung zu einem Gesundheitsberuf  zu absolvieren/ Unterstützung der Auszubildenden im Praktikum","Kontrolle des Kostenvoranschlages,welche von der Claudiana übermittelt wurde, Kontrolle der Ausgabendokumentation ","Zuweisungsdektret und Liquidierung des Vorschusses der ersten Rate, der zweiten Rate aufgrund der Abrechnung der ersten Rate, der dritten Rate aufgrund der Abschlussrechnung ","LG 14/2002","- Amtsdirektor",747254.22,1," verzerrte oder unterlassene Kontrolle  des Kostenvoranschlages, der Gesuchs,  verzerrte oder unterlassene Kontrolle der der Ausgabendokumentation ","Kontrolle seitens eines einzigen Bediensteten im Interessenskonflikt, ","keine","Keine, es ist vollständig geregelt (1)","Ja, das Ergebnis des Entscheidungsprozesses ist an Subjekte außerhalb der Landesverwaltung gerichtet (5)","Nein, der Entscheidungsprozess betrifft ausschließlich die Landesverwaltung  (1)","Der Entscheidungsprozess bedingt zwar die Gewährung von Vergünstigungen bzw. Vorteilen an externe Subjekte, aber diese Vorteile haben keine besondere wirtschaftliche Relevanz (z.B. Gewährung von Studienbeihilfen an Studenten)  (3)","Nein  (1)","Von mehreren Personen, darunter auch jene Person, die für vorhergehende Phasen zuständig war (3)","Ja (1)","Nein (1)",16,2,"Bis ungefähr 20%    (1)","Nein (1)","Wir haben diesbezüglich keine Kenntnis    (1)","Die Position einer Führungskraft   (5) ",8,2,4,4,"Mit Dekretes\n des Landeshauptmannes vom 10.07.2017 Nr. 22 ist diese Zuständigkeit auf das Amt für Gesundheitsordnung übergegangen.\n\nDer Vorschuss wird aufgrund des Zuweisungsdekrets liquidiert. ","interne Anweisungen, welche die Zusammenarbeit von mehreren Bediensteten (mindestens zwei) bei der Kontrolle des Kostenvoranschlages und der Ausgabendokumentaion gewährleisten, unter der Verantwortung der Amtsdirektorin","Interne Organisation des Amtes, um zu gewährleisten, dass mindestens zwei Bedienstete die Kontrollen durchführen, ","Amt für Gesundheitsordnung","bereits abgelaufen","Ja","Ja","wirksam"]
["23.4 Amt für Gesundheitsordnung","- Weiteres (angeben ob weitere riskante Tätigkeiten außer der oben genannten bestehen)","Anerkennung von Ausbildungserfahrung","Anerkennung von Ausbildungserfahrung im Bereich der Palliativversorgung ","Bewertung der beruflichen Erfahrung","Fachpersonal im Bereich der Palliativversorgung","Deckung des Bedarfs an Palliativmediziner-innen ","Schaffung der Möglichkeit in den Palliativzentren und Palliativabteilungen beruflich tätig zu sein","Kontrolle des Antrages und Bewertung der Ausbildungserfahrung","Dekret des Landesrätin betreffend die Anerkennung ","Ministerialdekret März 2013 ","- Zuständiger Bediensteter",0,0," verzerrte oder unterlassene Kontrolle der Gesuchs,  verzerrte oder unterlassene  Bewertung ","Kontrolle seitens eines einzigen Bediensteten im Interessenskonflikt, ","keine","Keine, es ist vollständig geregelt (1)","Ja, das Ergebnis des Entscheidungsprozesses ist an Subjekte außerhalb der Landesverwaltung gerichtet (5)","Nein, der Entscheidungsprozess betrifft ausschließlich die Landesverwaltung  (1)","Der Entscheidungsprozess bedingt zwar die Gewährung von Vergünstigungen bzw. Vorteilen an externe Subjekte, aber diese Vorteile haben keine besondere wirtschaftliche Relevanz (z.B. Gewährung von Studienbeihilfen an Studenten)  (3)","Nein  (1)","Nein, die Kontrolle wird von derselben Person ausgeübt (4) ","Ja (1)","Nein (1)",17,2.1,"Bis ungefähr 20%    (1)","Nein (1)","Wir haben diesbezüglich keine Kenntnis    (1)","Die Position einer Führungskraft   (5) ",8,2,4.2,5,"Mit Dekretes\n des Landeshauptmannes vom 10.07.2017 Nr. 22 ist diese Zuständigkeit auf das Amt für Gesundheitsordnung übergegangen.\n\nDie Anerkennung der Ausbildungserfahrung wird mit Dekret der Landesrätin verfügt. ","interne Anweisungen, welche die Zusammenarbeit von mehreren Bediensteten (mindestens zwei) bei der Kontrolle des Gesuchs und der Ausbildungserfahrung gewährleisten, unter der Verantwortung der Amtsdirektorin","Interne Organisation des Amtes, um zu gewährleisten, dass mindestens zwei Bedienstete die Kontrolle durchführen, ","Amt für Gesundheitsordnung","bereits abgelaufen","Ja","Ja","wirksam"]
["23.4 Amt für Gesundheitsordnung","- H) Verwaltung der Einnahmen, der Ausgaben und des Vermögens",null,"Finanzielle Zuweisung an die Landesfachhochschule für Gesundheitsberufe \"Claudiana\" ",null,"Landesfachhochschule für Gesundheitsberufe Claudiana ","Deckung des Bedarfs an Gesundheitsberufen  ","Schaffung der Möglichkeit eine Ausbildung zu einem Gesundheitsberuf  zu absolvieren ","Festlegung des Betrags aufgrund des Dekrtes des Landesrates für Finanzen betreffend die Genehmigung des Haushaltes der Claudiana ","Zuweisungsdektret und Liquidierung desr Finanzierung an die Claudiana ","L.G. 18/1993","- Amtsdirektor",7910000,1,"Der Zuweisungsbetrag an die Claudiana wird vom Landesrat für Finanzen festgelegt und mit Dekret der Landesrätin für Gesundheit zugewiesen. Das Amt 23.4 Gesundhietsordnung gibt den Auftrag für die Liquidierung des Betrages. ","Der Zuweisungsbetrag an die Claudiana wird vom Landesrat für Finanzen festgelegt und mit Dekret der Landesrätin für Gesundheit zugewiesen. Das Amt 23.4 Gesundheitsordnung gibt den Auftrag für die Liquidierung des Betrages. ","keine","Keine, es ist vollständig geregelt (1)","Ja, das Ergebnis des Entscheidungsprozesses ist an Subjekte außerhalb der Landesverwaltung gerichtet (5)","Nein, der Entscheidungsprozess betrifft ausschließlich die Landesverwaltung  (1)","Der Entscheidungsprozess bedingt die Gewährung von erheblichen Vergünstigungen bzw. Vorteilen an externe Subjekte (z.B. Erteilung von öffentlichen Aufträgen)  (5)","Nein  (1)","Von mehreren Personen, darunter auch jene Person, die für vorhergehende Phasen zuständig war (3)","Ja (1)","Ja (5)",22,2.8,"Bis ungefähr 20%    (1)","Nein (1)","Wir haben diesbezüglich keine Kenntnis    (1)","Die Position einer Führungskraft   (5) ",8,2,5.6,6,"Mit Dekretes\n des Landeshauptmannes vom 10.07.2017 Nr. 22 ist diese Zuständigkeit auf das Amt für Gesundheitsordnung übergegangen.\n\nDer Zuweisungsbetrag an die Claudiana wird vom Lnadesrat für Finanzen festgelegt und mit Dekret der Landesrätin für Gesundheit zugewiesen. Das Amt 23.5 gibt den Auftrag für die Liquidierung des Betrages. ","keine Maßnahme notwendig, weil das Verfahren  vollständig geregelt ist. ","keine Maßnahme notwendig, weil das Verfahren  vollständig geregelt ist. ","Amt für Gesundheitsordnung","bereits abgelaufen","Ja","Ja","wirksam"]
["23.4 Amt für Gesundheitsordnung","- H) Verwaltung der Einnahmen, der Ausgaben und des Vermögens",null,"Finanzielle Zuweisung an den Sanitätsbetrieb für die Organisation des Ausbildungskurses für das Personal der Abteilung Infektionskrankheiten im Krankenhaus Bozen",null,"Personal der Infektionsabteilung","Steigerung der Attraktivität des Arbeitsplatzes","Vergütung für den Besuch einer Weiterbildung","Kontrolle des Kostenvoranschlages und der Ausgabendokumentation","Dekret der Abteilubgsdirektorin der Abt. Gesundheit","Gestz vom 5. Juni 1990, Nr. 135\nMinisterialdekret vom 30. Oktober 1990 ","- Zuständiger Bediensteter",56304.94,1,"verzerrte oder unterlassene Kontrolle der der Ausgabendokumentation ","Kontrolle seitens eines einzigen Bediensteten im Interessenskonflikt, ","keine","Keine, es ist vollständig geregelt (1)","Ja, das Ergebnis des Entscheidungsprozesses ist an Subjekte außerhalb der Landesverwaltung gerichtet (5)","Nein, der Entscheidungsprozess betrifft ausschließlich die Landesverwaltung  (1)","Der Entscheidungsprozess bedingt die Gewährung von erheblichen Vergünstigungen bzw. Vorteilen an externe Subjekte (z.B. Erteilung von öffentlichen Aufträgen)  (5)","Nein  (1)","Nein, die Kontrolle wird von derselben Person ausgeübt (4) ","Ja (1)","Nein (1)",19,2.4,"Bis ungefähr 20%    (1)","Nein (1)","Wir haben diesbezüglich keine Kenntnis    (1)","Die Position einer Führungskraft   (5) ",8,2,4.8,3,"Mit Dekretes\n des Landeshauptmannes vom 10.07.2017 Nr. 22 ist diese Zuständigkeit auf das Amt für Gesundheitsordnung übergegangen.\n\nDer Ausbildungsbedarf wird vom Sanitätsbetrieb mitgeteilt und die Zuweisung der Finanzierung der Kurse wird mit Beschluss der Landesregierung festgelegt. Die Liquidierung wird aufgrund der Zulassung der Ausgaben verfügt.  ","interne Anweisungen, welche die Zusammenarbeit von mehreren Bediensteten (mindestens zwei) bei der Kontrolle der Ausgabendokumentaion gewährleisten, unter der Verantwortung der Amtsdirektorin","Interne Organisation des Amtes, um zu gewährleisten, dass mindestens zwei Bedienstete die Kontrolle durchführen, ","Amt für Gesundheitsordnung","bereits abgelaufen","Ja","Ja","wirksam"]
["23.4 Amt für Gesundheitsordnung","- Weiteres (angeben ob weitere riskante Tätigkeiten außer der oben genannten bestehen)","Anerkennung von Ausbildungserfahrungen","Anerkennung von Ausbildungserfahrung des Pflegehelfer der Notfallmedizin",null,"Pflegepersonal mit Schwerpunkt Notfalledizin","Deckung des Bedarfs an Notfallpfleger-innen ","Möglichkeit der beruflichen Tätigkeit im Bereich der Notfallmedizin","Festlegung des Betrags an Anerkennung der zu ergänzenden Ausbildung für einzelen Pflegehelfer, Festlegung der Kriterien, Bewertung der Antfrage seitens der Kommission ","Attestat über die Zusatzausbildung ","Abkommen zwischen dem Gesundheitsministerium und den Regionen und Autonomen Provinzen vom 22.5.2003 \nBeschluss der Landesregierung Nr. 923/2014","- Amtsdirektor",0,3,"verzerrte Bewertung seitens der Kommission ","Kommissionsmitglieder im Interessenskonflikt ","keine","Das Verfahren ist teilweise von Gesetzen und/oder Verwaltungsakten geregelt (3) ","Ja, das Ergebnis des Entscheidungsprozesses ist an Subjekte außerhalb der Landesverwaltung gerichtet (5)","Nein, der Entscheidungsprozess betrifft ausschließlich die Landesverwaltung  (1)","Der Entscheidungsprozess bedingt die Gewährung von erheblichen Vergünstigungen bzw. Vorteilen an externe Subjekte (z.B. Erteilung von öffentlichen Aufträgen)  (5)","Nein  (1)","Von mehreren Personen, darunter auch jene Person, die für vorhergehende Phasen zuständig war (3)","Ja (1)","Ja (5)",24,3,"Bis ungefähr 20%    (1)","Nein (1)","Wir haben diesbezüglich keine Kenntnis    (1)","Die Position einer Führungskraft   (5) ",8,2,6,2,"Mit Dekretes\n des Landeshauptmannes vom 10.07.2017 Nr. 22 ist diese Zuständigkeit auf das Amt für Gesundheitsordnung übergegangen.\n\nDie Kriterien werden mit Beschluss der Landesregierung festgelegt. Die Anerkennungsbecsheinigung wird mit Dekret  erlassen. ","Bereithaltung von Listen von möglichen fachliche kompetenten Kommissionsmitgliedern,Erklärungen seitens der Kommissionsmitglieder über das Fehlen von einem Interessenskonfliktes, ","Erstellung einer Liste von möglichen Kommissionsmitgliedern, Erstellung von Formularen für die Erklärungen  seitens der Kommissionsmitglieder,","Amt für Gesundheitsordnung","bereits abgelaufen","Ja","Ja","wirksam"]
["23.4 Amt für Gesundheitsordnung","- Weiteres (angeben ob weitere riskante Tätigkeiten außer der oben genannten bestehen)","Akkredtierung ","Akkredtierung von Körperschaften für die Ausbildung in Komplementärmedizin ",null,"Bildungseinrichtungen ","Qualitätskontrolle der Bildungsanbieter im Gesundheitswesen im Bereich der Komplementärmedizin ","Möglichkeit der Bildungseinrichtungen, Ausbildungen im Bereich Komplementärmedizin anzubieten und der Interessierten, diese Ausbildung in Südtirol zu besuchen ","Bedarf, die Qualität der Ausbildung und die Ausübung der Akupunktur, der Phytotherapie und der Homoöpathie zu zerifizieren ","Konstituierung on Landeskommissionen und regionale Kommissionen, Ernennung der Landeskommission","Abkommen Staat Regionen vom 7.02.2013, Schreiben des Gesundheitsministeriums vom 24.07.2014, Beschluss der Landesregierung Nr. 1274/2015  ","- Amtsdirektor",0,1,"Der Bedarf, die Körperschaften für die  Ausbildung in Komplementärrmedizin zu zertifizieren, wurde im Rahmen des Abkommens Staat Regionen erhoben. Das Land hat die Anweisungen des Abkommens umgesetzt und die Landeskommission im Jahr 2015 ernannt, welche die Körperschaften für die Ausbildung in Komplementätrmedizin akkreditieren wird. ","Der Bedarf, die Körperschaften für die  Ausbildung in Komplementärrmedizin zu zertifizieren, wurde im Rahmen des Abkommens Staat Regionen erhoben. Das Land hat die Anweisungen des Abkommens umgesetzt und die Landeskommission im Jahr 2015 ernannt, welche die Körperschaften für die Ausbildung in Komplementätrmedizin akkreditieren wird. ","keine","Das Verfahren ist teilweise von Gesetzen und/oder Verwaltungsakten geregelt (3) ","Ja, das Ergebnis des Entscheidungsprozesses ist an Subjekte außerhalb der Landesverwaltung gerichtet (5)","Nein, der Entscheidungsprozess betrifft ausschließlich die Landesverwaltung  (1)","Der Entscheidungsprozess bedingt die Gewährung von erheblichen Vergünstigungen bzw. Vorteilen an externe Subjekte (z.B. Erteilung von öffentlichen Aufträgen)  (5)","Nein  (1)","Von mehreren Personen, darunter auch jene Person, die für vorhergehende Phasen zuständig war (3)","Ja (1)","Ja (5)",24,{"$f":"ROUND(+Z71/8,1)","v":3},"Bis ungefähr 20%    (1)","Nein (1)","Wir haben diesbezüglich keine Kenntnis    (1)","Die Position einer Führungskraft   (5) ",8,{"$f":"ROUND(+AF71/4,1)","v":2},6,3,"Mit Dekretes\n des Landeshauptmannes vom 10.07.2017 Nr. 22 ist diese Zuständigkeit auf das Amt für Gesundheitsordnung übergegangen.\n\nDer Bedarf, die Körperschaften für die  Ausbildung in Komplementärrmedizin zu zertifizieren, wurde im Rahmen des Abkommens Staat Regionen erhoben. Das Land hat die Anweisungen des Abkommens umgesetzt und die Landeskommission im Jahr 2015 ernannt, welche die Körperschaften für die Ausbildung in Komplementätrmedizin akkreditieren wird. ","keine Maßnahme notwendig, weil das Verfahren  vollständig geregelt ist. ","keine Maßnahme notwendig, weil das Verfahren  vollständig geregelt ist. ","Amt für Gesundheitsordnung","bereits abgelaufen","Ja","Ja","wirksam"]
["23.4 Amt für Gesundheitsordnung","- A) Wettbewerbe und Auswahlverfahren im Personalbereich",null,"Weiterbildung der Pädiater ",null,"BasispädiaterInnen","Sicherung der Qualität der Dienstleistung in","Sicherung der Qualität der Dienstleistung für die PatientInnen","Festlegung des jährlichen Bedarfs, Bewertung des Angebots ","Beauftragung des Vereins für die Ausbildung von Pädiatern und Liquidierung ","LG 17/1993, Gvt. D. 163/2006","- Zuständiger Bediensteter",0,1,"verzerrte oder unterlassene Bewertung des Angebots","Kontrolle seitens eines einzigen Bediensteten im Interessenskonflikt, ","keine","Das Verfahren ist teilweise von Gesetzen und/oder Verwaltungsakten geregelt (3) ","Ja, das Ergebnis des Entscheidungsprozesses ist an Subjekte außerhalb der Landesverwaltung gerichtet (5)","Nein, der Entscheidungsprozess betrifft ausschließlich die Landesverwaltung  (1)","Der Entscheidungsprozess bedingt die Gewährung von erheblichen Vergünstigungen bzw. Vorteilen an externe Subjekte (z.B. Erteilung von öffentlichen Aufträgen)  (5)","Nein  (1)","Nein, es ist keine Kontrolle vorgesehen  (5) ","Ja (1)","Nein (1)",22,2.8,"Bis ungefähr 20%    (1)","Nein (1)","Wir haben diesbezüglich keine Kenntnis    (1)","Die Position einer Führungskraft   (5) ",8,2,5.6,7,"Mit Dekretes\n des Landeshauptmannes vom 10.07.2017 Nr. 22 ist diese Zuständigkeit auf das Amt für Gesundheitsordnung übergegangen.\n\nDer Ausbildungsbedarf wird vom Sanitätsbetrieb mitgeteilt. Direktbeauftragung an den Verein, welcher auf Landesebene die Kategorie der Pädiater vertritt. Aufgrund des Zuschalges, welcher in der telematischen Plattform der Ausschreibungen Südtirols erfolgt, wird der Auftrag vergeben.   ","interne Anweisungen, welche die Zusammenarbeit von mehreren Bediensteten (mindestens zwei) bei der Bewertung des Angebots gewährleisten, unter der Verantwortung der Amtsdirektorin","Interne Organisation des Amtes, um zu gewährleisten, dass mindestens zwei Bedienstete die Bewertung durchführen, ","Amt für Gesundheitsordnung","bereits abgelaufen","Ja","Ja","wirksam"]
["23.4 Amt für Gesundheitsordnung","- Weiteres (angeben ob weitere riskante Tätigkeiten außer der oben genannten bestehen)","Bewertung der Ausbildungserfahrungen","Bewertung der Ausbildungserfahrungen, welche im Ausland von den Gesundheitsberufler absolviert wurden (CME-Weiterbildung)",null,"Gesundheitsberufe des Südtiroler Gesundheitswesens ","Ausdehnung des CME-Angebots auch auf das deutschsprachige Ausland und der Qualität der Weiterbildung ","Möglichkeit der Gesundheitsberufe auch im Ausland  Weiterbildung zu besuchen und diese akkreditieren zu lassen, sodass das Bildungsangebot erweitert ist","Kontrolle des Antrages in Papierform oder welche per E-Mail eingegangen ist oder welche direkt vom Professionsten auf die CME Plattform hochgeladen wurde, Eintragung der Dtaen in der CME Plattform oder Überprüfung seitens des Amtes ","Ausstellung der CME Credits","Akommen Staat Regionen vom 05.11.2009, Beschluss der Landesregierung Nr. 425/2011, Dekret des Landesrates Nr. 145/2012","- Amtsdirektor",0,49,"verzerrte oder unterlassene Kontrolle","Kontrolle seitens eines einzigen Bediensteten im Interessenskonflikt, ","keine","Das Verfahren ist teilweise von Gesetzen und/oder Verwaltungsakten geregelt (3) ","Ja, das Ergebnis des Entscheidungsprozesses ist an Subjekte außerhalb der Landesverwaltung gerichtet (5)","Nein, der Entscheidungsprozess betrifft ausschließlich die Landesverwaltung  (1)","Der Entscheidungsprozess bedingt die Gewährung von erheblichen Vergünstigungen bzw. Vorteilen an externe Subjekte (z.B. Erteilung von öffentlichen Aufträgen)  (5)","Nein  (1)","Nein, die Kontrolle wird von derselben Person ausgeübt (4) ","Ja (1)","Nein (1)",21,2.6,"Bis ungefähr 20%    (1)","Nein (1)","Wir haben diesbezüglich keine Kenntnis    (1)","Die Position einer Führungskraft   (5) ",8,2,5.2,2,"Mit Dekretes\n des Landeshauptmannes vom 10.07.2017 Nr. 22 ist diese Zuständigkeit auf das Amt für Gesundheitsordnung übergegangen.","interne Anweisungen, welche die Zusammenarbeit von mehreren Bediensteten (mindestens zwei) bei der Kontrolle des Antrages gewährleisten, unter der Verantwortung der Amtsdirektorin","Interne Organisation des Amtes, um zu gewährleisten, dass mindestens zwei Bedienstete die Kontrolle durchführen, ","Amt für Gesundheitsordnung","bereits abgelaufen","Ja","Ja","wirksam"]
["23.4 Amt für Gesundheitsordnung","- B) Öffentliche Verträge",null,"Ankauf von Leistungen für die Virtuelle Medizinische Bibliothek ","Auswahl des Wirtschaftsteilnehmers","internationale wissenschaftliche Verlage ","Sicherung der Qualität der Dienstleistung im Gesundheitswesen durch den Zugang zu aktuellsten wissenschaftlichen Studien","Zugang zu aktuellsten wissenschafltichen Studien und Informationen sowie Unterstützung in der Entscheidungsfindung der Diagnose und Therapie","Bedarfserhebung und Programmierung der Ankäufe, Erstellung der Ausschreibungsunterlagen, Auswahl des Verfahrens, Bewertung der Angebote ","Zuweisung des Auftrages und Vertragsabschluss, ","L.G.17/1993 \nGvt. D.  163/2006     \n\n","- Amtsdirektor",66978,1,"übertriebener Anwenung von Dringlichkeitsverfahren, Abweichnung von den Bestimmungen im Bereich der Auftragvergabe,  verzerrte Festleghung der wirtschaftlichen und fachlichen Voraussetzungen um Auswahl an Teilnehmern an der Ausschreibung  widerrechtlich zu verringern, fehlende Anwendung des Rotationsprinzips bei der Auswahl des Vertragspartners bei Ankäufen von Standarddienstleistungen und - lieferungen, Veränderung oder Unterlassung bei der Überprüfung der Voraussetzungen, verzerrte oder unterlassene Überprüfung in Bezug auf das effektive Vorschreiten der Leistungen, verzerrte oder unterlassene Kontrolle der Ausgaben ","fehlende Programmierung, non spezificsh ausgebildetes Personal im Bereich der öffentlichen Aufträge, fehelnde Marktrecherchen, Kommissionsmitglieder in Interessenskonflikt, Überprüfung der Vorausssetzungen seitens eine einzigen Bediensteten in Interessenskonflikt, Unvollständigkeit der vom Wirtschaftsteilnehmer übermittelten Unterlagen, Kontrolle seitens eines einzigen Bediensteten im Interessenskonflikt","keine","Keine, es ist vollständig geregelt (1)","Ja, das Ergebnis des Entscheidungsprozesses ist an Subjekte außerhalb der Landesverwaltung gerichtet (5)","Nein, der Entscheidungsprozess betrifft ausschließlich die Landesverwaltung  (1)","Der Entscheidungsprozess bedingt die Gewährung von erheblichen Vergünstigungen bzw. Vorteilen an externe Subjekte (z.B. Erteilung von öffentlichen Aufträgen)  (5)","Nein  (1)","Ja, die Kontrolle stellt ein wirksames Instrument zur Neutralisierung des Risikos dar  (1)","Ja (1)","Ja (5)",22,2.8,"Bis ungefähr 20%    (1)","Nein (1)","Wir haben diesbezüglich keine Kenntnis    (1)","Die Position einer Führungskraft   (5) ",8,2,5.6,8,"Mit Dekretes\n des Landeshauptmannes vom 10.07.2017 Nr. 22 ist diese Zuständigkeit auf das Amt für Gesundheitsordnung übergegangen.","Jahresprogramm der Ankäufe von Leistungen, Erstellung der Unterlagen der Markrecherchen, Bereithaltung von Listen von möglichen Kommissionsmitgliedern, welche nach Professionalität unterteilt sind, und Auswahl der Mitglieder durch Zufallsziehung, interne Anweisungen, welche die Zusammenarbeit von mehreren Bediensteten (mindestens zwei) bei Überprüfung der Voraussetzungen gewährleisten, unter der Verantwortung der Amtsdirektorin, interne Anweisungen, welche die Aufteilung der Kompetenzen gewährleisten:Der Bedienstete, welcher das Auftragsverfahren durchführt, wickelt nicht die Kontrolle der Ausgabendokumentation ab, welche stattdessen von einem anderen Bediensteten druchgeführt wird, Gewährung an den Wirtschaftsteilnehmer einer Frist für die Ergänzung der fehlenden Ausgabendokumentation. \n ","Erstellung am Anfang jeden Jahres des Jahresprogramms, interne Organisation des Amtes, um zu gewährleisten, dass mindestens zwei Bedienstete die Überprüfungen durchführen, Rotierung der Kommissionsmitglieder der Ausschreibungen, interne Organisation des Amtes, um die Aufteilung der Kompetenzen zu gewährleisten, ","Amt für Gesundheitsordnung","bereits abgelaufen","Ja","Ja","wirksam"]
["23.4 Amt für Gesundheitsordnung ","- D) Gewährung und Auszahlung von Subventionen, Beiträgen, Zuschüssen, Prämien und wirtschaftlichen Vergünstigungen jeglicher Art",null,"Gewährung con Beiträgen für laufende Ausgaben und Initiativen","Phasen 1,2,3","öffentliche und private Einrichtungen, die im Gesundheitsbereich tätig sind","Unterstützung der Bevölkerung und Entlastung der Gesundheitsdienste","Aufwertung der Freiwilligentätigkeit und Netzwerke unter Bürgerinnen und Bürger","Gesuch zur Gewährung\nGesuch zur Auszahlung ","Dekret zur Gewährung und Liquidierung ","LG Nr. 7/2001, Art. 81 und Beschluss der Landesregierung n. 48/2019","- Amtsdirektor",3212948.46,63,"\nunterlassene oder verzerrte Bewertung der Zulässigkeit des Gesuches, Schwierigkeiten bei der Überprüfung der Abrechnung und der Zusammenhang zwischen den abgerechneten und den zugelassenen Ausgaben ","geringe Genauigkeit der Kriterien mit folglich übermäßigem Ermessensspielraum in der Überprüfungsphase der Ansuchen und Bewertung der Möglichkeit, den Beitrag zu gewähren, sowie bei der Festlegung der würdigkeit der einzelnen Initiativen Menge; wenig Möglichkeit, eine Personalrotation zu betreiben und eine Bewertungsgruppe zu haben, auch über die Würdigkeit der einzelnen Initiativen für welche den Beitrag angesucht wird; geringe Kompetenz und mangelnde Transparenz der Einrichtungen  bei der Verwaltung der Anträge und der Abrechnung, mangelnde Zusammenarbeit mit einigen Einrichtungen, Rationalisierung und effizienteres Verfahren","keine","Keine, es ist vollständig geregelt (1)","Ja, das Ergebnis des Entscheidungsprozesses ist an Subjekte außerhalb der Landesverwaltung gerichtet (5)","Nein, der Entscheidungsprozess betrifft ausschließlich die Landesverwaltung  (1)","Der Entscheidungsprozess bedingt die Gewährung von erheblichen Vergünstigungen bzw. Vorteilen an externe Subjekte (z.B. Erteilung von öffentlichen Aufträgen)  (5)","Nein  (1)","Von mehreren Personen, darunter auch jene Person, die für vorhergehende Phasen zuständig war (3)","Ja (1)","Nein (1)",18,2.2999999999999998,"Bis ungefähr 20%    (1)","Ja (5)","Ja, in lokalen Zeitungen oder Zeitschriften   (3)","Die Position einer Führungskraft   (5) ",14,1,2,null,"Mit Dekretes\n des Landeshauptmannes vom 10.07.2017 Nr. 22 ist diese Zuständigkeit auf das Amt für Gesundheitsordnung übergegangen.","Bewertung der Finanzierbarkeit der Einrichtung in Abstimmung mit anderen Ämtern, die Beiträge gewähren zur Vermeidung von doppelte Finanzierung.\nRückverfolgbarkeit möglicher Unregelmäßigkeiten.","Überprüfung der Stabilität und der Tätigkeiten der einzelnen Einrichtungen, der Beliebtheit der Initiativen und der Anerkennung und Bekanntheit der Einrichtung auf der Bevölkerungsebene.","Amt für Gesundheitsordnung","bereits abgelaufen","Ja","Ja","neutro"]
["23.4 Amt für Gesundheitsordnung ","- A) Wettbewerbe und Auswahlverfahren im Personalbereich",null,"Eintragungsverfahren in die Landesverzeichnisse für die Ernennung von Generaldirektor, Sanitätsdirektor, Verwaltungsdirektor und Pflegedirektors des Südtiriroler Sanitätsbetriebes","Ernennung der Bewertungskommission und deren Ersatzmitgliedern.\nFestlegung von detaillierten Richtilinien.","Angehende Führungskräfte des Sanitätsbetriebes","Schaffung eines Führungskräftepools für den Südtiroler Sanitätsbetrieb","Möglichkeit der Ernennung als Führungskraft im Südtiroler Sanitätsbetrieb","Südtiroler Sanitätsbetrieb","Ernennungsdekret der Abteilungsdirektorin","LG n. 3/2017; DLH n. 27 und 28/2017","- Amtsdirektor",0,4,"Bevorzugung von einem Kandidaten bei der Ernennung der Prüfungskommissionsmitglieder","Mögliche Mangel an potentieller Mitglieder im Besitz der vorgesehenen Voraussetzungen ","keine","Keine, es ist vollständig geregelt (1)","Ja, das Ergebnis des Entscheidungsprozesses ist an Subjekte außerhalb der Landesverwaltung gerichtet (5)","Ja, der Entscheidungsprozess sieht die Beteiligung von mehr als 3 Verwaltungen vor  (3)","Der Entscheidungsprozess bedingt zwar die Gewährung von Vergünstigungen bzw. Vorteilen an externe Subjekte, aber diese Vorteile haben keine besondere wirtschaftliche Relevanz (z.B. Gewährung von Studienbeihilfen an Studenten)  (3)","Nein  (1)","Nein, die Kontrolle wird von derselben Person ausgeübt (4) ","Ja (1)","Ja (5)",23,2.9,"Bis ungefähr 20%    (1)","Ja (5)","Ja, in lokalen Zeitungen oder Zeitschriften   (3)","Die Position einer Führungskraft   (5) ",14,1,{"$f":"+AA76*AG76","v":2.9},null,"Mit Dekretes\n des Landeshauptmannes vom 10.07.2017 Nr. 22 ist diese Zuständigkeit auf das Amt für Gesundheitsordnung übergegangen.","gesetzliche Vorgaben in Bezug auf Proporz, Ernennungsverfahren, usw","die Ernennungen erfolgen aufgrund der gesetzlichen Bestimmungen","Amt für Gesundheitsordnung","bereits abgelaufen","Ja","Ja","wirksam"]
[{"$f":"$A$42","v":"23.4 Amt für Gesundheitsordnung"},"- D) Gewährung und Auszahlung von Subventionen, Beiträgen, Zuschüssen, Prämien und wirtschaftlichen Vergünstigungen jeglicher Art",null,"Gewährung von Beihilfen für die Deckung der aufgrund einer Organentnahme oder -verpflanzung entstandenen Ausgaben und für die Deckung von Reise- und Aufenthaltsspesen, die von Querschnittgelähmten und Tetraplegikern im Rahmen von Therapien in Rehabilitationseinrichtungen getragen wurden","Bewertung des Ansuchens","Patienten/innen und Organisationen","Eine Erhöhung der Organspende und finanzielle Unterstützung der Familien von Patienten/innen","Finanzielle Unterstützung für transplantierte und querschnittsgelähmte Patienten und die Erben von Organspender/innen","Kontrolle des Antrages,Kontrolle der Dokumentation","Gewährung der Beihilfe Liquidireung der Beihilfe","L.G. 7/2001 ","- Amtsdirektor",20753.009999999998,8," verzerrte oder unterlassene Kontrolle der Gesuchs,  verzerrte oder unterlassene Kontrolle der Dokumentation","Kontrolle seitens eines einzigen Bediensteten im Interessenskonflikt, ","keine","Keine, es ist vollständig geregelt (1)","Ja, das Ergebnis des Entscheidungsprozesses ist an Subjekte außerhalb der Landesverwaltung gerichtet (5)","Nein, der Entscheidungsprozess betrifft ausschließlich die Landesverwaltung  (1)","Der Entscheidungsprozess bedingt zwar die Gewährung von Vergünstigungen bzw. Vorteilen an externe Subjekte, aber diese Vorteile haben keine besondere wirtschaftliche Relevanz (z.B. Gewährung von Studienbeihilfen an Studenten)  (3)","Nein  (1)","Nein, die Kontrolle wird von derselben Person ausgeübt (4) ","Ja (1)","Nein (1)",17,{"$f":"ROUND(+Z77/8,1)","v":2.1},"Bis ungefähr 20%    (1)","Nein (1)","Wir haben diesbezüglich keine Kenntnis    (1)","Die Position einer Führungskraft   (5) ",8,{"$f":"ROUND(+AF77/4,1)","v":2},4.2,9,"Mit Dekretes\n des Landeshauptmannes vom 10.07.2017 Nr. 22 ist diese Zuständigkeit auf das Amt für Gesundheitsordnung übergegangen.\n\n"," interne Anweisungen, welche die Zusammenarbeit von mehreren Bediensteten (mindestens zwei) bei der Kontrolle des  Antrages   und der Dokumentation gewährleisten, unter der Verantwortung der Amtsdirektorin, ","Interne Organisation des Amtes, um zu gewährleisten, dass mindestens zwei Bedienstete die Kontrolle durchführen, ","Amt für Gesundheitsordnung","1 Jahr"]
["23.5 Amt für Prävention, Gesundheitsförderung und öffentliche Gesundheit","- I) Kontrollen, Überprüfungen, Inspektionen und Sanktionen",null,"Verwaltungsstrafen: Bereich Lebensmittel, Rauch, Impfungen, Arbeitsmedizin,  Kosmetik\n\nBeurteilung Verteidigungsschreiben und/oder Anhörungsprotokoll, falls vorhanden und Festlegung der Verwaltungstrafe",null,"Bürger, Unternehmen ","Verwaltungsstrafe einnehmen","Zahlung der Verwaltungsstrafe vermeiden","Übertretungsprotokolle der Kontrollorgane","Erlass der Zahlungverodnung oder des Archivierungsdekretes","L.G. 9/1977\nL.G.  24/11/1981, n. 689 \nStaatliche und Europäische Gesetzesbestimmungen im Bereich Lebensmittel, Rauch, Impfungen, Arbeitsmedizin,  Kosmetik","- Amtsdirektor",0,766,"Potentielle Möglichkeit der Beeinflussung auf die Bewertung der Verteidigungsschreiben und der Anhörungsprotokolle zum Zwecke der Festlegung der Verwaltungstrafen\n","potenzielle Möglichkeit zur Festlegung des Ausmaßes der Verwaltungstrafe (Min. - Max)\n","keine","Das Verfahren ist teilweise von Gesetzen und/oder Verwaltungsakten geregelt (3) ","Ja, das Ergebnis des Entscheidungsprozesses ist an Subjekte außerhalb der Landesverwaltung gerichtet (5)","Nein, der Entscheidungsprozess betrifft ausschließlich die Landesverwaltung  (1)","Der Entscheidungsprozess bedingt zwar die Gewährung von Vergünstigungen bzw. Vorteilen an externe Subjekte, aber diese Vorteile haben keine besondere wirtschaftliche Relevanz (z.B. Gewährung von Studienbeihilfen an Studenten)  (3)","Nein  (1)","Von mehreren Personen, darunter auch jene Person, die für vorhergehende Phasen zuständig war (3)","Ja (1)","Nein (1)",18,2.2999999999999998,"Bis ungefähr 20%    (1)","Nein (1)","Nein    (0)","Die Position einer Führungskraft   (5) ",7,1.8,4.1399999999999997,1,"keine","Rundschreiben des Amtsdirektors zur Festlegung eines internen Verfahrens (z.B. doppelte Unterschrift für besonders komlexe Fälle) und Anfrage einer Stellungnahmen vonseiten des Kontrollorgans ","Umsetzung des Rundschreibens","Amt für Prävention, Gesundheitsförderung und öffentliche Gesundheit","sofort","Ja","Ja","wirksam"]
["23.5 Amt für Prävention, Gesundheitsförderung und öffentliche Gesundheit","- I) Kontrollen, Überprüfungen, Inspektionen und Sanktionen",null,"Verwaltungsstrafen - Rekurse: Bereich Lebensmittel, Rauch, Impfungen, Arbeitsmedizin,  Kosmetik\n\nBeurteilung Rekurse",null,"Bürger, Unternehmen ","Rekurs ablehnen und Verwaltungsstrafe einnehmen","Zahlung der Verwaltungsstrafe vermeiden","Aufsichtsbeschwerde","Beschluss der Landesregierung","LG 1/1992 Art. 3 Absatz 5\n\nStaatliche und Europäische Gesetzesbestimmungen im Bereich Lebensmittel, Rauch, Impfungen, Arbeitsmedizin,  Kosmetik","- Amtsdirektor",0,2,"Potentielle Möglichkeit der Beeinflussung auf die Bewertung des Rekurses (Annahme/Zurückweisung Rekurse)","potenzielle Möglichkeit zur Festlegung des Ausmaßes der Verwaltungstrafe (Min. - Max)\n","keine","Das Verfahren ist teilweise von Gesetzen und/oder Verwaltungsakten geregelt (3) ","Ja, das Ergebnis des Entscheidungsprozesses ist an Subjekte außerhalb der Landesverwaltung gerichtet (5)","Nein, der Entscheidungsprozess betrifft ausschließlich die Landesverwaltung  (1)","Der Entscheidungsprozess bedingt zwar die Gewährung von Vergünstigungen bzw. Vorteilen an externe Subjekte, aber diese Vorteile haben keine besondere wirtschaftliche Relevanz (z.B. Gewährung von Studienbeihilfen an Studenten)  (3)","Nein  (1)","Von mehreren Personen, darunter auch jene Person, die für vorhergehende Phasen zuständig war (3)","Ja (1)","Nein (1)",18,2.2999999999999998,"Bis ungefähr 20%    (1)","Nein (1)","Nein    (0)","Die Position einer Führungskraft   (5) ",7,1.8,4.1399999999999997,4,"keine","Miteinbeziehung mehrerer Landesämter bei der Ausarbeitung des Beschlussvorschlages","weniger Anfechtungen bei der Justizbehörde","Amt für Prävention, Gesundheitsförderung und öffentliche Gesundheit","sofort","Ja","Ja","wirksam"]
["23.5 Amt für Prävention, Gesundheitsförderung und öffentliche Gesundheit","- C) Ermächtigungen oder Konzessionen",null,"Bewilligung für den Handel und den Verkauf von Pflanzenschutzmitteln\n\nÜberprüfung des Ansuchens, Anfrage des Gutachtens beim Dienst für Hygiene des Sanitätsbetriebes, Überprüfung des Gutachtens, Genehmigungsdekret des Landesrates und  Zustellung an den Antragsteller",null,"Unternehmen, welche Pflanzenschutzmittel handeln","Befähigung von Verkäufern, welche die Bestimmungen zum Schutz der Gesundheit garantieren","Zum Handel mit Pflanzenschutzmitteln ermächtigt sein","Anfrage um Genehmigung","Dekret des Landesrates","Beschluss Landesregierung 1110 vom 02.04.2002, D.P.R. 290/2001 Art. 5","- Amtsdirektor",0,6,"Potentiell mögliche zeitliche Beeinflussung beim Termin zur Ausstellung der Genehmigung","potenzielle Möglichkeit hinsichtlich des zeitlichen Ablaufs des Aktes  ","keine","Keine, es ist vollständig geregelt (1)","Ja, das Ergebnis des Entscheidungsprozesses ist an Subjekte außerhalb der Landesverwaltung gerichtet (5)","Ja, der Entscheidungsprozess sieht die Beteiligung von mehr als 3 Verwaltungen vor  (3)","Der Entscheidungsprozess bedingt zwar die Gewährung von Vergünstigungen bzw. Vorteilen an externe Subjekte, aber diese Vorteile haben keine besondere wirtschaftliche Relevanz (z.B. Gewährung von Studienbeihilfen an Studenten)  (3)","Nein  (1)","Von mehreren Personen, darunter auch jene Person, die für vorhergehende Phasen zuständig war (3)","Ja (1)","Nein (1)",18,2.2999999999999998,"Bis ungefähr 20%    (1)","Nein (1)","Nein    (0)","Die Position einer Führungskraft   (5) ",7,1.8,4.1399999999999997,6,"keine","Verwaltung der Anfragen in chronologischer Reihenfolge","Keine Beanstandungen vonseiten der Antragsteller","Amt für Prävention, Gesundheitsförderung und öffentliche Gesundheit","sofort","Ja","Ja","wirksam"]
["23.5 Amt für Prävention, Gesundheitsförderung und öffentliche Gesundheit","- C) Ermächtigungen oder Konzessionen ",null,"Antrag auf Anerkennung der Betriebe, die Lebensmittelzusatzstoffe, Aromen für Lebensmittel und Enzyme herstellen, vertreiben oder lagern.\n\nÜberprüfung des Ansuchens, Anfrage des Gutachtens beim Dienst für Hygiene des Sanitätsbetriebes, Überprüfung des Gutachtens, Genehmigungsdekret des Landesrates und Zustellung an den Antragsteller\n",null,"Unternehmen, welche Lebensmittelzusatzstoffe, Aromen für Lebensmittel und Enzyme herstellen, vertreiben oder lagern","Genehmigung der Betriebe, welche die Voraussetzungen zum Schutz der öffentlichen Gesundheit gewährleisten","Erhalt der Ermächtigung für die Betriebsführung zur Durchführung der Handelstätigkeit im Bereich","Anfrage um Genehmigung","Dekret des Landesrates"," Verordnung (EU) 852/2004, GvD 514/1997","- Amtsdirektor",0,2,"Potentiell mögliche zeitliche Beeinflussung beim Termin zum Erlass des Befähigungsnachweises","potenzielle Möglichkeit hinsichtlich des zeitlichen Ablaufs des Aktes  ","keine","Keine, es ist vollständig geregelt (1)","Ja, das Ergebnis des Entscheidungsprozesses ist an Subjekte außerhalb der Landesverwaltung gerichtet (5)","Ja, der Entscheidungsprozess sieht die Beteiligung von mehr als 3 Verwaltungen vor  (3)","Der Entscheidungsprozess bedingt zwar die Gewährung von Vergünstigungen bzw. Vorteilen an externe Subjekte, aber diese Vorteile haben keine besondere wirtschaftliche Relevanz (z.B. Gewährung von Studienbeihilfen an Studenten)  (3)","Nein  (1)","Von mehreren Personen, darunter auch jene Person, die für vorhergehende Phasen zuständig war (3)","Ja (1)","Nein (1)",18,2.2999999999999998,"Bis ungefähr 20%    (1)","Nein (1)","Nein    (0)","Die Position einer Führungskraft   (5) ",7,1.8,4.1399999999999997,5,"keine","Verwaltung der Anfragen in chronologischer Reihenfolge","Keine Beanstandungen vonseiten der Antragsteller","Amt für Prävention, Gesundheitsförderung und öffentliche Gesundheit","sofort","Ja","Ja","wirksam"]
["23.5 Amt für Prävention, Gesundheitsförderung und öffentliche Gesundheit","- C) Ermächtigungen oder Konzessionen ",null,"Antrag auf Anerkennung von Betrieben, die Nahrungsergänzungsmittel, mit Vitaminen und Mineralstoffen angereicherte Lebensmittel und Lebensmittel für besondere Bevölkerungsgruppen herstellen und verpacken\n\nÜberprüfung des Ansuchens, Anfrage des Gutachtens beim Dienst für Hygiene des Sanitätsbetriebes, Überprüfung des Gutachtens, Genehmigungsdekret des Landesrates und Zustellung an den Antragsteller\n",null,"Unternehmen, welche Nahrungsergänzungsmittel, mit Vitaminen und Mineralstoffen angereicherte Lebensmittel und Lebensmittel für besondere Bevölkerungsgruppen herstellen und verpacken","Genehmigung der Betriebe, welche die Voraussetzungen zum Schutz der öffentlichen Gesundheit gewährleisten","Erhalt der Ermächtigung für die Betriebsführung zur Durchführung der Handelstätigkeit im Bereich","Anfrage um Genehmigung","Dekret des Landesrates","Beschluss Landesregierung  n. 254 vom 18.02.2013, Verordnung (EU) 609/2013, Verordnung  (EU) 852/2004, G. 189/2012, GvD 169/2004, Verordnung (EU) 1925/2006","- Amtsdirektor",0,1,"Potentiell mögliche zeitliche Beeinflussung beim Termin zum Erlass des Befähigungsnachweises","potenzielle Möglichkeit hinsichtlich des zeitlichen Ablaufs des Aktes  ","keine","Keine, es ist vollständig geregelt (1)","Ja, das Ergebnis des Entscheidungsprozesses ist an Subjekte außerhalb der Landesverwaltung gerichtet (5)","Ja, der Entscheidungsprozess sieht die Beteiligung von mehr als 3 Verwaltungen vor  (3)","Der Entscheidungsprozess bedingt zwar die Gewährung von Vergünstigungen bzw. Vorteilen an externe Subjekte, aber diese Vorteile haben keine besondere wirtschaftliche Relevanz (z.B. Gewährung von Studienbeihilfen an Studenten)  (3)","Nein  (1)","Von mehreren Personen, darunter auch jene Person, die für vorhergehende Phasen zuständig war (3)","Ja (1)","Nein (1)",18,2.2999999999999998,"Bis ungefähr 20%    (1)","Nein (1)","Nein    (0)","Die Position einer Führungskraft   (5) ",7,1.8,4.1399999999999997,7,"keine","Verwaltung der Anfragen in chronologischer Reihenfolge","Keine Beanstandungen vonseiten der Antragsteller","Amt für Prävention, Gesundheitsförderung und öffentliche Gesundheit","sofort","Ja","Ja","wirksam"]
["23.5 Amt für Prävention, Gesundheitsförderung und öffentliche Gesundheit","- C) Ermächtigungen oder Konzessionen ",null,"Ausstellung und Verlängerung der Befähigungsnachweise für Verkäufer von Pflanzenschutzmitteln\n\nÜberprüfung des Ansuchens, Einladung zum Besuch des nächsten Kurses (obligatorisch) für die Austellung oder Verlängerung des Befähigungsnachweises,  Überprüfung des Prüfungsergebnisses, welche bei der Abt. Landwirtschaft (nur für die Austellung) erworben wird und Überprüfung der Teilnahmebestätigungen für die obligatorische Weiterbildung (nur für die Erneuerung), Austellung des Nachweises bei positiven Prüfungsergebniss oder Erneuerung des Nachweises",null,"Verkäufer von Pflanzenschutzmitteln","Befähigung von Verkäufern, welche die Bestimmungen zum Schutz der Gesundheit garantieren","Erhalt des Befähigungsnachweises für den Verkauf von Planzenschutzmitteln","Anfrage um Austellung des Nachweises","Austellung des Nachweises","- GvD. 14 August 2012, Nr. 150\n- Beschluss der Landesregierung vom 25.11.2014 Nr. 1410\n- Ministerialdekret vom  22 Jänner 2014 (NAP)","- Amtsdirektor",280,44,"Potentiell mögliche zeitliche Beeinflussung beim Termin zum Erlass des Nachweises","potenzielle Möglichkeit hinsichtlich des zeitlichen Ablaufs des Aktes  ","keine","Keine, es ist vollständig geregelt (1)","Ja, das Ergebnis des Entscheidungsprozesses ist an Subjekte außerhalb der Landesverwaltung gerichtet (5)","Nein, der Entscheidungsprozess betrifft ausschließlich die Landesverwaltung  (1)","Der Entscheidungsprozess bedingt die Gewährung von erheblichen Vergünstigungen bzw. Vorteilen an externe Subjekte (z.B. Erteilung von öffentlichen Aufträgen)  (5)","Nein  (1)","Von mehreren Personen, darunter auch jene Person, die für vorhergehende Phasen zuständig war (3)","Ja (1)","Nein (1)",18,2.2999999999999998,"Bis ungefähr 20%    (1)","Nein (1)","Nein    (0)","Die Position einer Führungskraft   (5) ",7,1.8,4.1399999999999997,2,"keine","Verwaltung der Anfragen in chronologischer Reihenfolge","Keine Beanstandungen vonseiten der Antragsteller","Amt für Prävention, Gesundheitsförderung und öffentliche Gesundheit","sofort","Ja","Ja","wirksam"]
["23.5 Amt für Prävention, Gesundheitsförderung und öffentliche Gesundheit","- Weiteres (angeben ob weitere riskante Tätigkeiten außer der oben genannten bestehen)","Verwaltung von Verzeichnissen","Verzeichnis der Labors, welche Analysen im Rahmen der Lebensmitteleigenkontrolle durchführen und  Landesverzeichnisse der Fachärzte im Bereich der Sportmedizin \n\nBeurteilung der Unterlagen und ev. Antrag um weitere Unterlagen",null,"Labors der Lebensmitteleigenkontrolle und der Fachärzte im Bereich Sportmedizin","Eintragung der Lebensmittellabors und der Fachärzte im Bereich der Sportmedizin zur Gewährleistung des Schutzes der öffentlichen Gesundheit","Eintragung in den Verzeichnissen zur Ausübung der Tätigkeit","Anfrage um Eintragung ","Dekret des Landesrates","Beschluss der Landesregierung  1763 vom   25.10.2010 und Beschluss der Landesregierung  1421 vom 25.11.2004","- Amtsdirektor",0,2,"Potentiell mögliche zeitliche Beeinflussung beim Eintragungstermin ","potenzielle Möglichkeit hinsichtlich des zeitlichen Ablaufs des Aktes  ","keine","Keine, es ist vollständig geregelt (1)","Ja, das Ergebnis des Entscheidungsprozesses ist an Subjekte außerhalb der Landesverwaltung gerichtet (5)","Nein, der Entscheidungsprozess betrifft ausschließlich die Landesverwaltung  (1)","Der Entscheidungsprozess bedingt zwar die Gewährung von Vergünstigungen bzw. Vorteilen an externe Subjekte, aber diese Vorteile haben keine besondere wirtschaftliche Relevanz (z.B. Gewährung von Studienbeihilfen an Studenten)  (3)","Nein  (1)","Von mehreren Personen, darunter auch jene Person, die für vorhergehende Phasen zuständig war (3)","Ja (1)","Nein (1)",16,2,"Bis ungefähr 20%    (1)","Nein (1)","Nein    (0)","Die Position einer Führungskraft   (5) ",7,1.8,3.6,1,"keine","Verwaltung der Anfragen in chronologischer Reihenfolge","Keine Beanstandungen vonseiten der Antragsteller","Amt für Prävention, Gesundheitsförderung und öffentliche Gesundheit","sofort","Ja","Ja","wirksam"]
["23.5 Amt für Prävention, Gesundheitsförderung und öffentliche Gesundheit","- K) Rechtsangelegenheiten und Streitsachen",null,"Rekurse für: \nZivilinvalidität, Blindheit und Taubheit, Rechtsmedizin,   Ausübung ders Wettkampsports\n\n\nRekurse Befreiung Impfungen\n\n\nÜberprüfung des Ansuchens, Einberufung der zuständigen Berufungskommission, Übermittlungn der Ergebnisse an die Rekurssteller und an die betroffenen Ämter\n",null,"Bürger","Verwaltungstechnische Abwicklung des Verfahrens","Annahme des in erster Instanz abgelehnten Antrages","Ansuchen  des Antragsstellers","Ergebnisse der Kommission ","L.G. n.  46 vom   21.08.1978 , G. 5/92 n. 104, G. 1/1992,  Ministerialdekret 18.2.1982, L.G. 10 vom 28.10.1994 Art. 4\n","- Amtsdirektor",0,465,"Potentiell mögliche zeitliche Beeinflussung beim Termin zur Einberufung der Gesundheitskommission","potenzielle Möglichkeit hinsichtlich des zeitlichen Ablaufs des Aktes  ","keine","Das Verfahren ist teilweise von Gesetzen und/oder Verwaltungsakten geregelt (3) ","Ja, das Ergebnis des Entscheidungsprozesses ist an Subjekte außerhalb der Landesverwaltung gerichtet (5)","Ja, der Entscheidungsprozess sieht die Beteiligung von mehr als 3 Verwaltungen vor  (3)","Der Entscheidungsprozess bedingt zwar die Gewährung von Vergünstigungen bzw. Vorteilen an externe Subjekte, aber diese Vorteile haben keine besondere wirtschaftliche Relevanz (z.B. Gewährung von Studienbeihilfen an Studenten)  (3)","Nein  (1)","Von mehreren Personen, darunter auch jene Person, die für vorhergehende Phasen zuständig war (3)","Ja (1)","Nein (1)",20,2.5,"Bis ungefähr 20%    (1)","Nein (1)","Nein    (0)","Die Position einer Führungskraft   (5) ",7,1.8,4.5,null,"keine","Verwaltung der Anfragen in chronologischer Reihenfolge","Keine Beanstandungen vonseiten der Antragsteller","Amt für Prävention, Gesundheitsförderung und öffentliche Gesundheit","sofort","Ja","Ja","wirksam"]
["23.5 Amt für Prävention, Gesundheitsförderung und öffentliche Gesundheit","- C) Ermächtigungen oder Konzessionen ",null,"Prüfungskommission für die Erlangung/Erneuerung  des Befähigungsnachweises zur Verwendung von Giftgasen \n\nÜberprüfung des Ansuchens, Einberufung der zuständigen Prüfungskommission, Sekretariatsarbeit, Erlangung/Erneuerung des  Nachweises\n",null,"Verwender von Giftgasen","Befähigung von Verwendern von Giftgasen, welche die Bestimmungen zum Schutz der Gesundheit garantieren","Erhalt des Befähigungsnachweises zur Verwendung von Giftgasen","Ansuchen um Ausstellung des Nachweises ","Ausstellung des Nachweises ","Königliches Dekret 9. Januar 1927 Nr.  147, LG 15.7.1981 Nr. 20","- Amtsdirektor",0,57,"Potentiell mögliche zeitliche Beeinflussung beim Termin zur Einberufung der Kommission","potenzielle Möglichkeit hinsichtlich des zeitlichen Ablaufs des Aktes  ","keine","Keine, es ist vollständig geregelt (1)","Ja, das Ergebnis des Entscheidungsprozesses ist an Subjekte außerhalb der Landesverwaltung gerichtet (5)","Nein, der Entscheidungsprozess betrifft ausschließlich die Landesverwaltung  (1)","Der Entscheidungsprozess bedingt zwar die Gewährung von Vergünstigungen bzw. Vorteilen an externe Subjekte, aber diese Vorteile haben keine besondere wirtschaftliche Relevanz (z.B. Gewährung von Studienbeihilfen an Studenten)  (3)","Nein  (1)","Von mehreren Personen, darunter auch jene Person, die für vorhergehende Phasen zuständig war (3)","Ja (1)","Nein (1)",16,2,"Bis ungefähr 20%    (1)","Nein (1)","Nein    (0)","Die Position einer Führungskraft   (5) ",7,1.8,3.6,2,"keine","Verwaltung der Anfragen in chronologischer Reihenfolge","Keine Beanstandungen vonseiten der Antragsteller","Amt für Prävention, Gesundheitsförderung und öffentliche Gesundheit","sofort","Ja","Ja","wirksam"]
["23.5 Amt für Prävention, Gesundheitsförderung und öffentliche Gesundheit","- C) Ermächtigungen oder Konzessionen ",null,"Ausstellung des Gutachtens bzw. einer Genehmigung für den Schutz der Bevölkerung vor ionisierenden Strahlungen\n\nÜberprüfung des Ansuchens, Einberufung der zuständigen Landeskommission, Überprüfung Gutachten der Kommission, Genehmigungsdekret und Zustellung an den Antragsteller\n",null,"Regierungskommissariat, Unternehmen, Krankenhaus Bozen","Verwaltungstechnische Abwicklung des Verfahrens","Einhaltung der gesetzlichen Normen - Regierungskommissariat\nBenutzung von Gerätschaften mit Strahlenquellen - Unternehmen\nBenutzung von medizinischen Radioisotopen für die Behandlung von Tumoren - Krankenhaus Bozen","Ansuchen um Unbedenklichkeitserklärung","Dekret des Landesrates hinsichtlich Unbedenklichkeitserklärung","D.L.vo 230/1995 L.G. 1/92","- Amtsdirektor",0,4,"Potentiell mögliche zeitliche Beeinflussung beim Termin zur Austellung der Unbedenklichkeitserklärung","potenzielle Möglichkeit hinsichtlich des zeitlichen Ablaufs des Aktes  ","keine","Keine, es ist vollständig geregelt (1)","Ja, das Ergebnis des Entscheidungsprozesses ist an Subjekte außerhalb der Landesverwaltung gerichtet (5)","Ja, der Entscheidungsprozess sieht die Beteiligung von mehr als 3 Verwaltungen vor  (3)","Der Entscheidungsprozess bedingt zwar die Gewährung von Vergünstigungen bzw. Vorteilen an externe Subjekte, aber diese Vorteile haben keine besondere wirtschaftliche Relevanz (z.B. Gewährung von Studienbeihilfen an Studenten)  (3)","Nein  (1)","Von mehreren Personen, darunter auch jene Person, die für vorhergehende Phasen zuständig war (3)","Ja (1)","Nein (1)",18,2.2999999999999998,"Bis ungefähr 20%    (1)","Nein (1)","Nein    (0)","Die Position einer Führungskraft   (5) ",7,1.8,4.1399999999999997,3,"keine","Verwaltung der Anfragen in chronologischer Reihenfolge","Keine Beanstandungen vonseiten der Antragsteller","Amt für Prävention, Gesundheitsförderung und öffentliche Gesundheit","sofort","Ja","Ja","wirksam"]

{"sheet":"Verzeichnisse","index":1,"n_rows":115,"n_cols":1,"rows_kept":115,"cut":false,"hidden":false,"merged":[]}
["Ermessensfreiheit"]
["Spalte1"]
["Keine, es ist vollständig geregelt (1)"]
["Das Verfahren ist teilweise von Gesetzen und/oder Verwaltungsakten geregelt (3) "]
["Das Verfahren sieht eine völlige Ermessensfreiheit vor (5)"]
[]
["Verwaltungsexterne Relevanz"]
["Spalte1"]
["Nein, das Ergebnis des Entscheidungsprozesses richtet sich ausschließlich an ein internes Amt (2)"]
["Ja, das Ergebnis des Entscheidungsprozesses ist an Subjekte außerhalb der Landesverwaltung gerichtet (5)"]
[]
["Komplexität des Entscheidungsprozesses"]
["Spalte1"]
["Nein, der Entscheidungsprozess betrifft ausschließlich die Landesverwaltung  (1)"]
["Ja, der Entscheidungsprozess sieht die Beteiligung von mehr als 3 Verwaltungen vor  (3)"]
["Ja, der Entscheidungsprozess sieht die Beteiligung von mehr als 5 Verwaltungen vor (5)"]
[]
["Wirtschaftliche Bedeutung"]
["Spalte1"]
["Der Entscheidungsprozess hat ausschließlich interne Bedeutung  (1)"]
["Der Entscheidungsprozess bedingt zwar die Gewährung von Vergünstigungen bzw. Vorteilen an externe Subjekte, aber diese Vorteile haben keine besondere wirtschaftliche Relevanz (z.B. Gewährung von Studienbeihilfen an Studenten)  (3)"]
["Der Entscheidungsprozess bedingt die Gewährung von erheblichen Vergünstigungen bzw. Vorteilen an externe Subjekte (z.B. Erteilung von öffentlichen Aufträgen)  (5)"]
[]
["Teilbarkeit des Entscheidungsprozesses"]
["Spalte1"]
["Nein  (1)"]
["Ja (5)"]
[]
["Kontrollen "]
["Spalte1"]
["Ja, von einer anderen Person  (1)"]
["Von mehreren Personen, darunter auch jene Person, die für vorhergehende Phasen zuständig war (3)"]
["Nein, die Kontrolle wird von derselben Person ausgeübt (4) "]
["Nein, es ist keine Kontrolle vorgesehen  (5) "]
[]
["Rückverfolgbarkeit und Transparenz"]
["Spalte1"]
["Ja (1)"]
["Zum Teil (3)"]
["Nein (5)"]
[]
["Beteiligung von externen Subjekten"]
["Spalte1"]
["Nein (1)"]
["Ja (5)"]
[]
["Organisatorische Auswirkungen"]
["Spalte1"]
["Bis ungefähr 20%    (1)"]
["Von 20% bis ungefähr 60%    (3)"]
["Von 60% bis ungefähr 100% (5)"]
[]
["Wirtschaftliche Auswirkungen"]
["Spalte1"]
["Nein (1)"]
["Ja (5)"]
[]
["Rufschädigende Auswirkungen"]
["Spalte1"]
["Nein    (0)"]
["Wir haben diesbezüglich keine Kenntnis    (1)"]
["Ja, in lokalen Zeitungen oder Zeitschriften   (3)"]
["Ja, in lokalen und nationalen Zeitungen oder Zeitschriften    (5)"]
[]
["Auswirkungen auf Image und Organisation"]
["Spalte1"]
["Die Position eines einfachen Mitarbeiters   (1)"]
["Die Position einer Führungskraft   (5) "]
[]
["Risikobereiche gemäß Art. 1, Abs. 16, G.190/2012:"]
["Spalte1"]
["- A) Wettbewerbe und Auswahlverfahren im Personalbereich"]
["- B) Öffentliche Verträge"]
["- C) Ermächtigungen oder Konzessionen"]
["- D) Gewährung und Auszahlung von Subventionen, Beiträgen, Zuschüssen, Prämien und wirtschaftlichen Vergünstigungen jeglicher Art "]
["- E) Landesplanung und Ortsplanung"]
["- F) Landschaftsplanung"]
["- G) Umweltverträglichkeitsprüfung und Sammelgenehmigungsverfahren"]
["- H) Verwaltung der Einnahmen, der Ausgaben und des Vermögens"]
["- I) Kontrollen, Überprüfungen, Inspektionen und Sanktionen"]
["- J) Aufträge und Ernennungen"]
["- K) Rechtsangelegenheiten und Streitsachen"]
["- L) Programmierung und Verwaltung der EU-Fonds"]
["- Weiteres (angeben ob weitere riskante Tätigkeiten außer der oben genannten bestehen)"]
[]
["Verantwortlicher (Art. 10 und 11, LG Nr. 17/1993)"]
["Spalte1"]
["- Abteilungsdirektor"]
["- Bereichskoordinator"]
["- Amtsdirektor"]
["- Zuständiger Bediensteter"]
[]
["TermineAttuazione"]
["Spalte1"]
["bereits abgelaufen"]
["sofort"]
["6 Monate"]
["1 Jahr"]
["3 Jahre"]
[]
["Monitoraggio"]
["Si è attuata la misura?"]
["Spalte1"]
["Ja"]
["Nein"]
[]
["Si è rispettato il termine?"]
["Spalte1"]
["Ja"]
["Nein"]
[]
["ValutazioneAttuazione"]
["wirksam"]
["neutral"]
["unwirksam"]